Ref No,Fund Type,Dept,Cost Centre Description    ,Description    ,Creditor Name    ,GL Code Net Amount,Payment date        
2,Revenue,CCHD,Bed Purchasing - South,Permanent Nursing,.,2640.40, 17-Mar-2015
3,Revenue,CCHD,Bed Purchasing - South,Permanent Residential,.,5080.00, 17-Mar-2015
4,Revenue,CCHD,18-25 Year Olds,Permanent Residential,1 St Georges House,13206.60, 17-Mar-2015
5,Revenue,CCHD,Breakthrough and Inclusion Work,Other Supplies & Services,121Turnaround Limited,2728.89, 09-Mar-2015
6,Revenue,CCHD,Breakthrough and Inclusion Work,Other Supplies & Services,121Turnaround Limited,2595.10, 31-Mar-2015
7,Revenue,CCHD,Home Care - Elderly - South,Day Care / Social Activities,3 Trees Community Support Ltd,196.68, 06-Mar-2015
8,Revenue,CCHD,Home Care - Elderly - North,Day Care / Social Activities,3 Trees Community Support Ltd,2842.92, 06-Mar-2015
9,Revenue,CCHD,Home Care - Elderly - North,Other Small Contracts,3 Trees Community Support Ltd,107.28, 06-Mar-2015
10,Revenue,CCHD,Home Care - Elderly - North,Supported Living,3 Trees Community Support Ltd,8564.12, 06-Mar-2015
11,Revenue,CCHD,Home Care - Elderly - South,Day Care / Social Activities,3 Trees Community Support Ltd,89.40, 06-Mar-2015
12,Revenue,CCHD,Home Care - Elderly - North,Day Care / Social Activities,3 Trees Community Support Ltd,2807.16, 06-Mar-2015
13,Revenue,CCHD,Home Care - Elderly - North,Other Small Contracts,3 Trees Community Support Ltd,107.28, 06-Mar-2015
14,Revenue,CCHD,Home Care - Elderly - North,Supported Living,3 Trees Community Support Ltd,8575.64, 06-Mar-2015
15,Revenue,CCHD,Home Care - Elderly - South,Day Care / Social Activities,3 Trees Community Support Ltd,196.68, 17-Mar-2015
16,Revenue,CCHD,Home Care - Elderly - North,Day Care / Social Activities,3 Trees Community Support Ltd,2833.98, 17-Mar-2015
17,Revenue,CCHD,Home Care - Elderly - North,Other Small Contracts,3 Trees Community Support Ltd,107.28, 17-Mar-2015
18,Revenue,CCHD,Home Care - Elderly - North,Supported Living,3 Trees Community Support Ltd,9506.98, 17-Mar-2015
19,Revenue,CCHD,Bed Purchasing - South,Permanent Residential,5Th Floor Harlech Court,16062.20, 17-Mar-2015
20,Revenue,CCHD,18-25 Year Olds,Permanent Residential,5Th Floor Harlech Court,13689.08, 17-Mar-2015
21,Revenue,CCHD,18-25 Year Olds,Permanent Residential,5Th Floor Harlech Court,13962.28, 17-Mar-2015
22,Revenue,CCHD,18-25 Year Olds,Permanent Residential,5Th Floor Harlech Court,12519.88, 17-Mar-2015
23,Revenue,CCHD,Bed Purchasing - North,Permanent Residential,5Th Floor Harlech Court,16589.72, 17-Mar-2015
24,Revenue,CCHD,18-25 Year Olds,Permanent Residential,5Th Floor Harlech Court,15754.12, 17-Mar-2015
25,Revenue,CCHD,Bed Purchasing - South,Permanent Residential,5Th Floor Harlech Court,9301.84, 17-Mar-2015
26,Revenue,CCHD,Bed purchasing - S28A Under 65 - South,Permanent Residential,5Th Floor Harlech Court,10570.16, 17-Mar-2015
27,Revenue,CCHD,Bed purchasing - S28A Under 65 - South,Permanent Residential,5Th Floor Harlech Court,10717.48, 17-Mar-2015
28,Revenue,CCHD,Bed Purchasing - South,Permanent Nursing,5Th Floor Harlech Court,10240.88, 17-Mar-2015
29,Revenue,CCHD,Woodleaze,Operational Equipment,A E Horder (Contracting) Limited,4272.00, 27-Mar-2015
30,Revenue,CCHD,Alexandra Way,Premises Maintenance by Contractor,A E Horder (Contracting) Limited,495.48, 27-Mar-2015
31,Revenue,CCHD,Bed Purchasing - North,Permanent Nursing,ABI Development Limited,6970.24, 25-Mar-2015
32,Revenue,CCHD,Housing Needs,Storage & Removal,Ablemove-Wottons,600.00, 09-Mar-2015
33,Revenue,CCHD,Housing Needs,Storage & Removal,Ablemove-Wottons,700.00, 09-Mar-2015
34,Revenue,CCHD,Housing Needs,Storage & Removal,Ablemove-Wottons,768.00, 11-Mar-2015
35,Revenue,CCHD,Day Care - South,Day Care / Social Activities,About Me Care and Support Limited,1467.53, 02-Mar-2015
36,Revenue,CCHD,Day Care - North,Day Care / Social Activities,About Me Care and Support Limited,863.52, 04-Mar-2015
37,Revenue,CCHD,Day Care - South,Day Care / Social Activities,About Me Care and Support Limited,764.76, 02-Mar-2015
38,Revenue,CCHD,Day Care - South,Day Care / Social Activities,About Me Care and Support Limited,1347.63, 31-Mar-2015
39,Revenue,CCHD,Day Care - South,Day Care / Social Activities,About Me Care and Support Limited,780.17, 31-Mar-2015
40,Revenue,CCHD,Bed purchasing - Under 65s PWLD - North,Permanent Residential,Acorn Care Providers,74677.20, 17-Mar-2015
41,Revenue,CCHD,18-25 Year Olds,Permanent Residential,Acorn Care Providers,21861.00, 17-Mar-2015
42,Revenue,CCHD,Bed purchasing - Under 65s PWLD - North,Permanent Residential,Acorn Care Providers,2032.15, 17-Mar-2015
43,Revenue,CCHD,18-25 Year Olds,Permanent Residential,Acorn Care Providers,22833.00, 17-Mar-2015
44,Revenue,CCHD,Mental Health and Emotional Wellbeing,Project Funding,Age UK South Gloucestershire,9000.00, 30-Mar-2015
45,Revenue,CCHD,Home Care - Elderly - South,Other Small Contracts,Agincare Chippenham,1584.60, 09-Mar-2015
46,Revenue,CCHD,Home Care - Elderly - South,Other Small Contracts,Agincare Chippenham,1561.80, 17-Mar-2015
47,Revenue,CCHD,Home Care - Elderly - North,Other Small Contracts,Agincare Chippenham,155.80, 17-Mar-2015
48,Revenue,CCHD,Home Care - Elderly - South,Other Small Contracts,Agincare Chippenham,1824.00, 18-Mar-2015
49,Revenue,CCHD,Home Care - Elderly - North,Other Small Contracts,Agincare Chippenham,163.40, 18-Mar-2015
50,Revenue,CCHD,Home Care - Elderly - South,Other Small Contracts,Agincare Chippenham,1873.40, 25-Mar-2015
51,Revenue,CCHD,Home Care - Elderly - North,Other Small Contracts,Agincare Chippenham,155.80, 25-Mar-2015
52,Revenue,CCHD,Home Care - Elderly - South,Other Small Contracts,Agincare Chippenham,1843.00, 31-Mar-2015
53,Revenue,CCHD,Home Care - Elderly - North,Other Small Contracts,Agincare Chippenham,159.60, 31-Mar-2015
54,Revenue,CCHD,Home Care - Elderly - South,Other Small Contracts,Agincare UK Limited,323.00, 11-Mar-2015
55,Revenue,CCHD,Home Care - Elderly - North,Other Small Contracts,Agincare UK Limited,174.80, 11-Mar-2015
56,Revenue,CCHD,Elderly MH Day Care North,Day Care / Social Activities,Agincare UK Limited,60.80, 11-Mar-2015
57,Revenue,CCHD,Home Care - Elderly - South,Other Small Contracts,Agincare UK Limited,288.80, 18-Mar-2015
58,Revenue,CCHD,Home Care - Elderly - North,Other Small Contracts,Agincare UK Limited,155.80, 18-Mar-2015
59,Revenue,CCHD,Elderly MH Day Care North,Day Care / Social Activities,Agincare UK Limited,57.00, 18-Mar-2015
60,Revenue,CCHD,Home Care - Elderly - South,Other Small Contracts,Agincare UK Limited,323.00, 25-Mar-2015
61,Revenue,CCHD,Home Care - Elderly - North,Other Small Contracts,Agincare UK Limited,159.60, 25-Mar-2015
62,Revenue,CCHD,Elderly MH Day Care North,Day Care / Social Activities,Agincare UK Limited,49.40, 25-Mar-2015
63,Revenue,CCHD,Home Care - Elderly - North,Other Small Contracts,Agincare UK Nutfield,1550.40, 09-Mar-2015
64,Revenue,CCHD,Home Care - Elderly - North,Other Small Contracts,Agincare UK Nutfield,1599.80, 11-Mar-2015
65,Revenue,CCHD,Home Care - Elderly - North,Other Small Contracts,Agincare UK Nutfield,1615.00, 19-Mar-2015
66,Revenue,CCHD,Home Care - Elderly - North,Other Small Contracts,Agincare UK Nutfield,1805.00, 25-Mar-2015
67,Revenue,CCHD,Minor Adaptations Service,Operational Equipment,Aidapt Bathrooms Limited,4600.00, 27-Mar-2015
68,Revenue,CCHD,Home Care - Elderly - South,Other Small Contracts,AliMo Care Ltd,1874.94, 04-Mar-2015
69,Revenue,CCHD,Home Care - Elderly - South,Other Small Contracts,AliMo Care Ltd,1738.65, 11-Mar-2015
70,Revenue,CCHD,Home Care - Elderly - South,Other Small Contracts,AliMo Care Ltd,767.82, 18-Mar-2015
71,Revenue,CCHD,Home Care - Elderly - South,Other Small Contracts,AliMo Care Ltd,731.01, 25-Mar-2015
72,Revenue,CCHD,Mental Health and Emotional Wellbeing,Project Funding,Alzheimers Society,1000.00, 30-Mar-2015
73,Revenue,CCHD,Bed Purchasing - Southmead Hospital,Permanent Nursing,Ambleside Nusing Ho!,1443.84, 17-Mar-2015
74,Revenue,CCHD,Alexandra Way,Prop.Serv. General Repairs,Apre Surfacing Limited,631.00, 20-Mar-2015
75,Revenue,CCHD,Direct Payments - Phys Dis - North,Grants to Voluntary Bodies,Aquarium Card Management Solutions Ltd,909.50, 02-Mar-2015
76,Revenue,CCHD,Direct Payments - Phys Dis - North,Grants to Voluntary Bodies,Aquarium Card Management Solutions Ltd,1040.00, 02-Mar-2015
77,Revenue,CCHD,Training - Adult Services,Training Expenses,Aquila Partnership,810.00, 17-Mar-2015
78,Revenue,CCHD,Tenancy Start Up Scheme,Other Supplies & Services,ARIM,2000.00, 27-Mar-2015
79,Revenue,CCHD,Bed Purchasing - North,Permanent Residential,Ark Care Homes Ltd,10314.64, 17-Mar-2015
80,Revenue,CCHD,Mental Capacity Act - Advocacy,Other Supplies & Services,Armadillo Youth Venue & Cafe,640.00, 11-Mar-2015
81,Revenue,CCHD,S117 Placements PCT,Permanent Residential,Ash View House,6977.40, 17-Mar-2015
82,Revenue,CCHD,18-25 Year Olds,Permanent Residential,Ash View House,6158.40, 17-Mar-2015
83,Revenue,CCHD,Section 117 Placements MH Younger,Permanent Residential,Ash View House,6495.60, 17-Mar-2015
84,Revenue,CCHD,Bed purchasing - Elderly S117 - South,Permanent Residential,Ash View House,6180.00, 17-Mar-2015
85,Revenue,CCHD,Bed Purchasing - South,Permanent Residential,Ashbourne House,1122.44, 17-Mar-2015
86,Revenue,CCHD,Home Care - Elderly - South,Other Small Contracts,Ashley Commercial Finance Ltd,583.59, 09-Mar-2015
87,Revenue,CCHD,Home Care - Elderly - North,Other Small Contracts,Ashley Commercial Finance Ltd,5224.53, 09-Mar-2015
88,Revenue,CCHD,Home Care - Elderly - South,Other Small Contracts,Ashley Commercial Finance Ltd,484.34, 11-Mar-2015
89,Revenue,CCHD,Home Care - Elderly - North,Other Small Contracts,Ashley Commercial Finance Ltd,5530.04, 11-Mar-2015
90,Revenue,CCHD,Bed and Breakfast,Bed & Breakfast,Ashley Guest Houses Limited,750.00, 04-Mar-2015
91,Revenue,CCHD,Bed and Breakfast,Bed & Breakfast,Ashley Guest Houses Limited,840.00, 19-Mar-2015
92,Revenue,CCHD,Bed and Breakfast,Bed & Breakfast,Ashley Guest Houses Limited,870.00, 11-Mar-2015
93,Revenue,CCHD,Bed and Breakfast,Bed & Breakfast,Ashley Guest Houses Limited,1090.00, 18-Mar-2015
94,Revenue,CCHD,Bed and Breakfast,Bed & Breakfast,Ashley Guest Houses Limited,690.00, 10-Mar-2015
95,Revenue,CCHD,DAT Treatment,Rent,Ashville Asset Management Limited,2905.20, 25-Mar-2015
96,Revenue,CCHD,DAT Treatment,Rent,Ashville Asset Management Limited,540.37, 12-Mar-2015
97,Revenue,CCHD,DAT Treatment,Rent,Ashville Asset Management Limited,7390.80, 25-Mar-2015
98,Revenue,CCHD,Bed Purchasing - North,Permanent Residential,Aspects 2 Limited,6358.44, 17-Mar-2015
99,Revenue,CCHD,Purchase of Non-Res Care - South,Day Care / Social Activities,Aspirations Support Bristol Limited,2499.48, 13-Mar-2015
100,Revenue,CCHD,Supported Living - South,Private & Voluntary Home Care,Aspirations Support Bristol Limited,515.84, 13-Mar-2015
101,Revenue,CCHD,Bed Purchasing - South,Permanent Residential,Autism Specialised Care Homes,5611.16, 17-Mar-2015
102,Revenue,CCHD,S75 CCG Interim Beds,Permanent Nursing,Avon Lodge Care Centre,10200.00, 12-Mar-2015
103,Revenue,CCHD,Planning and Partnerships Procurement,Other Supplies & Services,Avon Valley Railway Company Limited,2116.69, 30-Mar-2015
104,Revenue,CCHD,Day Care - North,Day Care / Social Activities,Avonedge Limited,600.00, 04-Mar-2015
105,Revenue,CCHD,Senior Management,Agency Staff (Admin/Support Staff) Pay,Baltimore Consulting Group,2352.00, 27-Mar-2015
106,Revenue,CCHD,Senior Management,Agency Staff (Admin/Support Staff) Pay,Baltimore Consulting Group,2352.00, 12-Mar-2015
107,Revenue,CCHD,Senior Management,Agency Staff (Admin/Support Staff) Pay,Baltimore Consulting Group,2352.00, 20-Mar-2015
108,Revenue,CCHD,Senior Management,Agency Staff (Admin/Support Staff) Pay,Baltimore Consulting Group,2352.00, 27-Mar-2015
109,Revenue,CCHD,Sexual Health,Other Supplies & Services,Barts Health NHS Trust,574.60, 25-Mar-2015
110,Revenue,CCHD,Mental Health and Emotional Wellbeing,Project Funding,Battle Against Tranquillisers,2000.00, 30-Mar-2015
111,Revenue,CCHD,Bed Purchasing - Southmead Hospital,Permanent Nursing,Bayview Nursing & Residential Home,1482.40, 17-Mar-2015
112,Revenue,CCHD,South Glos Users in South Glos Homes,Permanent Nursing,Beaufort Grange Care Home,1108.90, 17-Mar-2015
113,Revenue,CCHD,South Glos Users in South Glos Homes,Permanent Nursing,Beaufort Grange Care Home,982.17, 17-Mar-2015
114,Revenue,CCHD,South Glos Users in South Glos Homes,Permanent Nursing,Beaufort Grange Care Home,918.80, 17-Mar-2015
115,Revenue,CCHD,South Glos Users in South Glos Homes,Permanent Nursing,Beaufort Grange Care Home,1140.58, 17-Mar-2015
116,Revenue,CCHD,Bed Purchasing - Elderly S117- North,Permanent Nursing,Beaufort Grange Care Home,4008.00, 17-Mar-2015
117,Revenue,CCHD,Bed Purchasing - Elderly S117- North,Permanent Nursing,Beaufort Grange Care Home,1336.00, 17-Mar-2015
118,Revenue,CCHD,South Glos Users in South Glos Homes,Permanent Nursing,Beaufort Grange Care Home,2550.47, 17-Mar-2015
119,Revenue,CCHD,Bed Purchasing - North,Permanent Nursing,Beaufort Grange Care Home,953.20, 17-Mar-2015
120,Revenue,CCHD,Bed Purchasing - North,Permanent Residential,Beaufort House,1900.32, 17-Mar-2015
121,Revenue,CCHD,Bed Purchasing - North,Permanent Residential,Beaufort House,1674.72, 17-Mar-2015
122,Revenue,CCHD,Bed Purchasing - North,Permanent Residential,Beaufort House,1824.20, 17-Mar-2015
123,Revenue,CCHD,Bed Purchasing - North,Permanent Residential,Beaufort House,1390.40, 17-Mar-2015
124,Revenue,CCHD,Bed Purchasing - South,Permanent Residential,Beaufort House,1434.24, 17-Mar-2015
125,Revenue,CCHD,Bed Purchasing - North,Permanent Residential,Beaufort House,1800.08, 17-Mar-2015
126,Revenue,CCHD,Bed Purchasing - Southmead Hospital,Permanent Residential,Beaufort House,2320.00, 17-Mar-2015
127,Revenue,CCHD,Bed Purchasing - North,Permanent Residential,Beaufort House,1357.16, 17-Mar-2015
128,Revenue,CCHD,Bed Purchasing - Southmead Hospital,Permanent Residential,Beaufort House,1904.20, 17-Mar-2015
129,Revenue,CCHD,Bed Purchasing - Southmead Hospital,Permanent Residential,Beaufort House,1700.18, 17-Mar-2015
130,Revenue,CCHD,Bed Purchasing - North,Respite Emergency - Residential,Beaufort House,1905.71, 17-Mar-2015
131,Revenue,CCHD,Bed Purchasing - North,Permanent Residential,Beaufort House,1860.64, 17-Mar-2015
132,Revenue,CCHD,Bed Purchasing - North,Permanent Residential,Beaufort House,1755.08, 17-Mar-2015
133,Revenue,CCHD,Bed Purchasing - North,Permanent Residential,Beaufort House,1706.44, 17-Mar-2015
134,Revenue,CCHD,Bed Purchasing - South,Permanent Residential,Bedrock Lodge,3151.80, 17-Mar-2015
135,Revenue,CCHD,Bed Purchasing - South,Permanent Residential,Bedrock Lodge,2949.44, 17-Mar-2015
136,Revenue,CCHD,Section 117 Placements MH Younger,Permanent Residential,Bedrock Lodge,1864.88, 17-Mar-2015
137,Revenue,CCHD,Bed Purchasing - North,Permanent Nursing,Beech House,2378.48, 17-Mar-2015
138,Revenue,CCHD,Bed Purchasing - South,Permanent Residential,Beech House,1260.20, 17-Mar-2015
139,Revenue,CCHD,Bed Purchasing - North,Permanent Nursing,Beech House,1320.20, 17-Mar-2015
140,Revenue,CCHD,Bed Purchasing - North,Permanent Nursing,Beech House,1653.80, 17-Mar-2015
141,Revenue,CCHD,Bed Purchasing - North,Permanent Residential,Beech House,1432.20, 17-Mar-2015
142,Revenue,CCHD,Bed Purchasing - North,Permanent Nursing,Beech House,2552.64, 17-Mar-2015
143,Revenue,CCHD,Bed Purchasing - North,Permanent Nursing,Beech House,879.56, 17-Mar-2015
144,Revenue,CCHD,Bed Purchasing - North,Permanent Residential,Beech House,1911.24, 17-Mar-2015
145,Revenue,CCHD,Bed Purchasing - Southmead Hospital,Permanent Nursing,Beech House,2987.92, 17-Mar-2015
146,Revenue,CCHD,Bed Purchasing - Southmead Hospital,Permanent Nursing,Beech House,2460.64, 17-Mar-2015
147,Revenue,CCHD,Bed Purchasing - North,Permanent Residential,Beech House,1394.08, 17-Mar-2015
148,Revenue,CCHD,South Glos Users in South Glos Homes,Permanent Nursing,Bloomfield Care Centre,2534.63, 17-Mar-2015
149,Revenue,CCHD,Bed Purchasing - North,Permanent Nursing,Blossom Field,1824.88, 17-Mar-2015
150,Revenue,CCHD,Bed Purchasing - North,Permanent Nursing,Blossom Field,10740.00, 17-Mar-2015
151,Revenue,CCHD,Bed Purchasing - North,Permanent Nursing,Blossom Field,2980.64, 17-Mar-2015
152,Revenue,CCHD,Bed Purchasing - Elderly S117- North,Permanent Nursing,Blossom Field,1992.00, 17-Mar-2015
153,Revenue,CCHD,South Glos Users in South Glos Homes,Permanent Nursing,Blossom Field,3643.53, 17-Mar-2015
154,Revenue,CCHD,Bed Purchasing - North,Permanent Nursing,Blossom Field,1369.96, 17-Mar-2015
155,Revenue,CCHD,Bed Purchasing - North,Permanent Nursing,Blossom Field,4968.16, 17-Mar-2015
156,Revenue,CCHD,Bed Purchasing - North,Permanent Nursing,Blossom Field,2675.16, 17-Mar-2015
157,Revenue,CCHD,Bed Purchasing - North,Permanent Nursing,Blossom Field,2337.00, 17-Mar-2015
158,Revenue,CCHD,Bed Purchasing - North,Permanent Nursing,Blossom Field,2697.08, 17-Mar-2015
159,Revenue,CCHD,Bed Purchasing - South,Permanent Nursing,Blossom Field,1909.84, 17-Mar-2015
160,Revenue,CCHD,Bed Purchasing - Southmead Hospital,Permanent Nursing,Blossom Field,2545.44, 17-Mar-2015
161,Revenue,CCHD,Bed Purchasing - North,Permanent Nursing,Blossom Fields,2588.96, 31-Mar-2015
162,Revenue,CCHD,Bed Purchasing - Southmead Hospital,Permanent Nursing,Blossom Fields,2093.16, 31-Mar-2015
163,Revenue,CCHD,Bed Purchasing - North,Permanent Nursing,Blossom Fields,2588.96, 31-Mar-2015
164,Revenue,CCHD,South Glos Users in South Glos Homes,Permanent Nursing,Blossom Fields,3041.55, 31-Mar-2015
165,Revenue,CCHD,Training - Adult Services,Training Expenses,Individual,1350.00, 05-Mar-2015
166,Revenue,CCHD,18-25 Year Olds,Permanent Residential,Bradbury House,8760.16, 17-Mar-2015
167,Revenue,CCHD,Bed Purchasing - North,Permanent Residential,Bradley House,1533.80, 17-Mar-2015
168,Revenue,CCHD,Home Care - Elderly - North,Other Small Contracts,Bradley House Home Care Services,674.66, 06-Mar-2015
169,Revenue,CCHD,Day Care - North,Day Care / Social Activities,Bradley House Home Care Services,102.48, 06-Mar-2015
170,Revenue,CCHD,Home Care - Elderly - North,Other Small Contracts,Bradley House Home Care Services,687.47, 06-Mar-2015
171,Revenue,CCHD,Day Care - North,Day Care / Social Activities,Bradley House Home Care Services,102.48, 06-Mar-2015
172,Revenue,CCHD,Home Care - Elderly - North,Other Small Contracts,Bradley House Home Care Services,691.74, 31-Mar-2015
173,Revenue,CCHD,Day Care - North,Day Care / Social Activities,Bradley House Home Care Services,102.48, 31-Mar-2015
174,Revenue,CCHD,Home Care - Elderly - North,Other Small Contracts,Bradley House Home Care Services,700.28, 31-Mar-2015
175,Revenue,CCHD,Day Care - North,Day Care / Social Activities,Bradley House Home Care Services,102.48, 31-Mar-2015
176,Revenue,CCHD,Home Care - Elderly - North,Other Small Contracts,Bradley House Home Care Services,691.74, 31-Mar-2015
177,Revenue,CCHD,Day Care - North,Day Care / Social Activities,Bradley House Home Care Services,102.48, 31-Mar-2015
178,Revenue,CCHD,Alexandra Way,"Provisions (Food, etc)",Brake Bros,528.96, 23-Mar-2015
179,Revenue,CCHD,Alexandra Way,"Provisions (Food, etc)",Brake Bros,552.75, 23-Mar-2015
180,Revenue,CCHD,Woodleaze,"Provisions (Food, etc)",Brake Bros,521.60, 06-Mar-2015
181,Revenue,CCHD,Alexandra Way,"Provisions (Food, etc)",Brake Bros,576.91, 23-Mar-2015
182,Revenue,CCHD,Woodleaze,"Provisions (Food, etc)",Brake Bros,510.20, 26-Mar-2015
183,Revenue,CCHD,Bed Purchasing - South,Permanent Nursing,Brandon Trust,5036.84, 17-Mar-2015
184,Revenue,CCHD,Bed Purchasing - S28A - Over 65- North,Permanent Residential,Brandon Trust,3097.08, 17-Mar-2015
185,Revenue,CCHD,Bed Purchasing - South,Permanent Residential,Brandon Trust,10268.44, 17-Mar-2015
186,Revenue,CCHD,Bed Purchasing - South,Permanent Residential,Brandon Trust,4036.12, 17-Mar-2015
187,Revenue,CCHD,Bed Purchasing - South,Permanent Residential,Brandon Trust,3459.92, 17-Mar-2015
188,Revenue,CCHD,Bed Purchasing - Southmead Hospital,Permanent Nursing,Brandon Trust,7298.16, 17-Mar-2015
189,Revenue,CCHD,Bed Purchasing - Southmead Hospital,Permanent Nursing,Brandon Trust,4541.08, 17-Mar-2015
190,Revenue,CCHD,Bed Purchasing - LD S28A- Over 65- South,Permanent Nursing,Brandon Trust,4860.44, 17-Mar-2015
191,Revenue,CCHD,Bed Purchasing - South,Permanent Nursing,Brandon Trust,5036.84, 17-Mar-2015
192,Revenue,CCHD,Bed purchasing - S28A Under 65 - South,Permanent Nursing,Brandon Trust,5359.12, 17-Mar-2015
193,Revenue,CCHD,Bed purchasing - S28A Under 65 - South,Permanent Residential,Brandon Trust,4901.16, 17-Mar-2015
194,Revenue,CCHD,Bed Purchasing - LD S28A- Over 65- South,Permanent Nursing,Brandon Trust,5182.72, 17-Mar-2015
195,Revenue,CCHD,Bed Purchasing - LD S28A- Over 65- South,Permanent Nursing,Brandon Trust,4849.76, 17-Mar-2015
196,Revenue,CCHD,Bed Purchasing - South,Permanent Residential,Brandon Trust,3273.48, 17-Mar-2015
197,Revenue,CCHD,Bed purchasing - S28A Under 65 - South,Permanent Residential,Brandon Trust,5202.76, 17-Mar-2015
198,Revenue,CCHD,Bed purchasing - S28A Under 65 - South,Permanent Residential,Brandon Trust,5258.44, 17-Mar-2015
199,Revenue,CCHD,Bed purchasing - S28A Under 65 - South,Permanent Nursing,Brandon Trust,5399.12, 17-Mar-2015
200,Revenue,CCHD,Bed purchasing - S28A Under 65 - South,Permanent Nursing,Brandon Trust,5359.12, 17-Mar-2015
201,Revenue,CCHD,Bed purchasing -S28A  Under 65 - North,Permanent Nursing,Brandon Trust,4783.16, 17-Mar-2015
202,Revenue,CCHD,Bed purchasing - S28A Under 65 - South,Permanent Residential,Brandon Trust,5258.44, 17-Mar-2015
203,Revenue,CCHD,Bed Purchasing - LD S28A- Over 65- South,Permanent Residential,Brandon Trust,4748.20, 17-Mar-2015
204,Revenue,CCHD,Tenancy Start Up Scheme,Fees & Charges Income - General,Individual,643.17, 02-Mar-2015
205,Revenue,CCHD,Bed Purchasing - North,Respite Planned - Residential,Bridge House Care Home,662.86, 17-Mar-2015
206,Revenue,CCHD,Bed Purchasing - North,Permanent Residential,Bridge House Care Home,1513.00, 17-Mar-2015
207,Revenue,CCHD,Bed Purchasing - North,Permanent Residential,Bridge House Care Home,1167.32, 17-Mar-2015
208,Revenue,CCHD,Bed Purchasing - North,Permanent Residential,Bridge House Care Home,1524.60, 17-Mar-2015
209,Revenue,CCHD,Bed Purchasing - North,Permanent Residential,Bridge House Care Home,598.95, 17-Mar-2015
210,Revenue,CCHD,Bed Purchasing - South,Permanent Residential,Brightbow,2095.28, 17-Mar-2015
211,Revenue,CCHD,MH Purchasing - Younger,Permanent Residential,Brightbow,1493.96, 17-Mar-2015
212,Revenue,CCHD,Supported Living - North,Private & Voluntary Home Care,Bristol Houses UK Limited,1056.60, 20-Mar-2015
213,Revenue,CCHD,Supported Living - North,Private & Voluntary Home Care,Bristol Houses UK Limited,1056.60, 27-Mar-2015
214,Revenue,CCHD,Supported Living - North,Private & Voluntary Home Care,Bristol Houses UK Limited,620.80, 25-Mar-2015
215,Revenue,CCHD,Supported Living - North,Private & Voluntary Home Care,Bristol Houses UK Limited,620.80, 27-Mar-2015
216,Revenue,CCHD,Purchase of Non-Res Care - South,Day Care / Social Activities,Bristol Houses UK Limited,884.64, 20-Mar-2015
217,Revenue,CCHD,Purchase of Non-Res Care - South,Day Care / Social Activities,Bristol Houses UK Limited,1179.52, 27-Mar-2015
218,Revenue,CCHD,Bed and Breakfast,Bed & Breakfast,Bristol Housing & Support Limited,2250.00, 05-Mar-2015
219,Revenue,CCHD,Bed and Breakfast,Bed & Breakfast,Bristol Housing & Support Limited,1930.00, 09-Mar-2015
220,Revenue,CCHD,Bed and Breakfast,Bed & Breakfast,Bristol Housing & Support Limited,1890.00, 24-Mar-2015
221,Revenue,CCHD,Bed and Breakfast,Bed & Breakfast,Bristol Housing & Support Limited,2240.00, 24-Mar-2015
222,Revenue,CCHD,Bed and Breakfast,Bed & Breakfast,Bristol Housing & Support Limited,2640.00, 30-Mar-2015
223,Revenue,CCHD,Tenancy Start Up Scheme,Other Supplies & Services,Bristol Property Partnership,1050.00, 30-Mar-2015
224,Revenue,CCHD,Alexandra Way,Water Charges,Bristol Wessex Billing Services Limited,6682.57, 30-Mar-2015
225,Revenue,CCHD,Home Care - Elderly - North,Day Care / Social Activities,Britannia House,914.88, 17-Mar-2015
226,Revenue,CCHD,Home Care - Elderly - South,Day Care / Social Activities,Britannia House,914.88, 17-Mar-2015
227,Revenue,CCHD,Home Care - Elderly - North,Day Care / Social Activities,Britannia House,914.88, 17-Mar-2015
228,Revenue,CCHD,Home Care - Elderly - South,Day Care / Social Activities,Britannia House,686.16, 17-Mar-2015
229,Revenue,CCHD,Home Care - Elderly - North,Day Care / Social Activities,Britannia House,914.88, 17-Mar-2015
230,Revenue,CCHD,Home Care - Elderly - South,Day Care / Social Activities,Britannia House,1143.60, 17-Mar-2015
231,Revenue,CCHD,Home Care - Elderly - South,Day Care / Social Activities,Britannia House,686.16, 17-Mar-2015
232,Revenue,CCHD,Home Care - Elderly - South,Day Care / Social Activities,Britannia House,686.16, 17-Mar-2015
233,Revenue,CCHD,Home Care - Elderly - South,Day Care / Social Activities,Britannia House,686.16, 17-Mar-2015
234,Revenue,CCHD,Planning and Partnerships Procurement,Other Supplies & Services,British Red Cross,10000.00, 27-Mar-2015
235,Revenue,CCHD,Bed Purchasing - North,Permanent Residential,Broadgate House,2825.04, 17-Mar-2015
236,Revenue,CCHD,Bed Purchasing - North,Permanent Nursing,Broadgate House,569.21, 17-Mar-2015
237,Revenue,CCHD,Bed Purchasing - North,Permanent Nursing,Brunel Care  Saffron Gardens,631.52, 17-Mar-2015
238,Revenue,CCHD,Bed Purchasing - Southmead Hospital,Permanent Nursing,Brunel Care  Saffron Gardens,2052.32, 17-Mar-2015
239,Revenue,CCHD,Bed Purchasing - Southmead Hospital,Permanent Nursing,Brunel Care  Saffron Gardens,25207.68, 17-Mar-2015
240,Revenue,CCHD,Bed Purchasing - Frenchay Hospital,Permanent Nursing,Brunel Care  Saffron Gardens,1643.13, 17-Mar-2015
241,Revenue,CCHD,Bed Purchasing - Southmead Hospital,Permanent Nursing,Brunel Care  Saffron Gardens,1164.12, 17-Mar-2015
242,Revenue,CCHD,Bed Purchasing - Frenchay Hospital,Permanent Nursing,Brunel Care  Saffron Gardens,551.40, 17-Mar-2015
243,Revenue,CCHD,South Glos Users in South Glos Homes,Permanent Nursing,Brunel Care  Saffron Gardens,4942.53, 17-Mar-2015
244,Revenue,CCHD,Bed purchasing - Elderly S117 - South,Permanent Nursing,Brunel Care  Saffron Gardens,2335.04, 17-Mar-2015
245,Revenue,CCHD,Bed purchasing - Elderly S117 - South,Permanent Nursing,Brunel Care  Saffron Gardens,1751.28, 17-Mar-2015
246,Revenue,CCHD,Bed Purchasing - Southmead Hospital,Permanent Residential,Brunel Care  Saffron Gardens,1270.68, 17-Mar-2015
247,Revenue,CCHD,18-25 Year Olds,Permanent Nursing,Brunel Care  Saffron Gardens,2800.00, 17-Mar-2015
248,Revenue,CCHD,South Glos Users in South Glos Homes,Permanent Nursing,Brunel Care  Saffron Gardens,998.01, 17-Mar-2015
249,Revenue,CCHD,Bed Purchasing - South,Permanent Nursing,Brunel Care  Saffron Gardens,2072.32, 17-Mar-2015
250,Revenue,CCHD,Bed Purchasing - Southmead Hospital,Permanent Nursing,Brunel Care  Saffron Gardens,1391.72, 17-Mar-2015
251,Revenue,CCHD,Bed Purchasing - South,Permanent Residential,Brunel Care  Saffron Gardens,1296.84, 17-Mar-2015
252,Revenue,CCHD,Home Care - Elderly - North,Private & Voluntary Home Care,Brunelcare,23503.00, 02-Mar-2015
253,Revenue,CCHD,Home Care - Elderly - North,Private & Voluntary Home Care,Brunelcare,23503.00, 09-Mar-2015
254,Revenue,CCHD,Home Care - Elderly - North,Private & Voluntary Home Care,Brunelcare,23503.00, 16-Mar-2015
255,Revenue,CCHD,Home Care - Elderly - North,Private & Voluntary Home Care,Brunelcare,23503.00, 23-Mar-2015
256,Revenue,CCHD,Home Care - Elderly - North,Private & Voluntary Home Care,Brunelcare,23503.00, 30-Mar-2015
257,Revenue,CCHD,S75 CCG Interim Beds,Permanent Nursing,Brunelcare,54600.00, 13-Mar-2015
258,Revenue,CCHD,S75 CCG Interim Beds,Permanent Nursing,Brunelcare,32400.00, 19-Mar-2015
259,Revenue,CCHD,Bed Purchasing - South,Permanent Nursing,Brunelcare,1750.48, 24-Mar-2015
260,Revenue,CCHD,Bed Purchasing - South,Permanent Nursing,Brunelcare,831.33, 24-Mar-2015
261,Revenue,CCHD,Bed Purchasing - Southmead Hospital,Permanent Nursing,Brunelcare,853.93, 24-Mar-2015
262,Revenue,CCHD,Bed Purchasing - South,Permanent Nursing,Brunelcare,1460.28, 24-Mar-2015
263,Revenue,CCHD,Bed Purchasing - South,Permanent Nursing,Brunelcare,1787.24, 24-Mar-2015
264,Revenue,CCHD,Bed Purchasing - South,Permanent Nursing,Brunelcare,1839.24, 24-Mar-2015
265,Revenue,CCHD,Bed Purchasing - Southmead Hospital,Permanent Nursing,Brunelcare,1634.96, 24-Mar-2015
266,Revenue,CCHD,Bed Purchasing - South,Permanent Nursing,Brunelcare,1825.44, 24-Mar-2015
267,Revenue,CCHD,Bed Purchasing - North,Permanent Nursing,Brunelcare,1497.08, 24-Mar-2015
268,Revenue,CCHD,Bed Purchasing - Elderly S117- North,Permanent Nursing,Brunelcare,1891.48, 24-Mar-2015
269,Revenue,CCHD,Bed Purchasing - Elderly S117- North,Permanent Nursing,Brunelcare,2335.04, 24-Mar-2015
270,Revenue,CCHD,Bed Purchasing - South,Permanent Nursing,Brunelcare,532.69, 24-Mar-2015
271,Revenue,CCHD,Bed Purchasing - South,Permanent Nursing,Brunelcare,1379.43, 24-Mar-2015
272,Revenue,CCHD,Bed Purchasing - Southmead Hospital,Permanent Nursing,Brunelcare,1568.68, 24-Mar-2015
273,Revenue,CCHD,Bed Purchasing - Southmead Hospital,Permanent Nursing,Brunelcare,825.52, 24-Mar-2015
274,Revenue,CCHD,Bed Purchasing - Southmead Hospital,Permanent Nursing,Brunelcare,1529.80, 24-Mar-2015
275,Revenue,CCHD,Bed Purchasing - South,Permanent Nursing,Brunelcare,1191.40, 24-Mar-2015
276,Revenue,CCHD,Bed Purchasing - South,Permanent Nursing,Brunelcare,1370.40, 24-Mar-2015
277,Revenue,CCHD,Bed purchasing - Elderly S117 - South,Permanent Nursing,Brunelcare,1667.89, 24-Mar-2015
278,Revenue,CCHD,Bed Purchasing - North,Permanent Nursing,Brunelcare,1775.48, 24-Mar-2015
279,Revenue,CCHD,Bed Purchasing - Southmead Hospital,Permanent Nursing,Brunelcare,1036.84, 24-Mar-2015
280,Revenue,CCHD,Bed Purchasing - South,Permanent Nursing,Brunelcare,1839.24, 24-Mar-2015
281,Revenue,CCHD,Bed Purchasing - North,Permanent Nursing,Brunelcare,1779.48, 24-Mar-2015
282,Revenue,CCHD,Bed Purchasing - South,Permanent Nursing,Brunelcare,1369.77, 24-Mar-2015
283,Revenue,CCHD,Bed Purchasing - South,Permanent Nursing,Brunelcare,608.79, 24-Mar-2015
284,Revenue,CCHD,Bed Purchasing - North,Permanent Nursing,Brunelcare,1634.96, 24-Mar-2015
285,Revenue,CCHD,Bed Purchasing - Southmead Hospital,Permanent Nursing,Brunelcare,1634.96, 24-Mar-2015
286,Revenue,CCHD,Bed Purchasing - Southmead Hospital,Permanent Nursing,Brunelcare,1538.32, 24-Mar-2015
287,Revenue,CCHD,Bed Purchasing - Elderly S117- North,Permanent Nursing,Brunelcare,2335.04, 24-Mar-2015
288,Revenue,CCHD,Bed Purchasing - Southmead Hospital,Permanent Nursing,Brunelcare,1334.84, 24-Mar-2015
289,Revenue,CCHD,Bed Purchasing - South,Permanent Nursing,Brunelcare,1634.96, 24-Mar-2015
290,Revenue,CCHD,Bed Purchasing - South,Respite Planned - Nursing,Brunelcare,2130.76, 24-Mar-2015
291,Revenue,CCHD,Bed Purchasing - South,Permanent Nursing,Brunelcare,917.65, 24-Mar-2015
292,Revenue,CCHD,S75 CCG Interim Beds,Permanent Nursing,Brunelcare,15200.00, 12-Mar-2015
293,Revenue,CCHD,Home Care - Elderly - South,Other Small Contracts,Brunelcare,3182.40, 06-Mar-2015
294,Revenue,CCHD,Home Care - Elderly - North,Other Small Contracts,Brunelcare,2900.88, 06-Mar-2015
295,Revenue,CCHD,Day Care - South,Day Care / Social Activities,Brunelcare,28.56, 06-Mar-2015
296,Revenue,CCHD,Home Care - Elderly - South,Other Small Contracts,Brunelcare,3080.40, 06-Mar-2015
297,Revenue,CCHD,Home Care - Elderly - North,Other Small Contracts,Brunelcare,3006.96, 06-Mar-2015
298,Revenue,CCHD,Day Care - South,Day Care / Social Activities,Brunelcare,28.56, 06-Mar-2015
299,Revenue,CCHD,Home Care - Elderly - South,Other Small Contracts,Brunelcare,3039.60, 17-Mar-2015
300,Revenue,CCHD,Home Care - Elderly - North,Other Small Contracts,Brunelcare,2990.64, 17-Mar-2015
301,Revenue,CCHD,Day Care - South,Day Care / Social Activities,Brunelcare,28.56, 17-Mar-2015
302,Revenue,CCHD,Home Care - Elderly - North,Private & Voluntary Home Care,Brunelcare,36234.60, 17-Mar-2015
303,Revenue,CCHD,Information Systems - Software,Computer Equipment - Purchase,BT Global Services Solutions,984.77, 24-Mar-2015
304,Revenue,CCHD,Bed Purchasing - Southmead Hospital,Permanent Nursing,Bupa Care Services  Bridge House,1902.40, 17-Mar-2015
305,Revenue,CCHD,Bed Purchasing - Southmead Hospital,Permanent Nursing,Bupa Care Services  Bridge House,1674.48, 17-Mar-2015
306,Revenue,CCHD,Bed Purchasing - North,Permanent Nursing,Bupa Care Services  Bridge House,5938.28, 17-Mar-2015
307,Revenue,CCHD,South Glos Users in all other LA Homes,Permanent Nursing,Bupa Care Services  Bridge House,610.44, 17-Mar-2015
308,Revenue,CCHD,Bed Purchasing - North,Permanent Residential,Bupa Care Services  Bridge House,1987.24, 17-Mar-2015
309,Revenue,CCHD,Supported Living - North,Private & Voluntary Home Care,Camphill Communities Thornbury Limited,511.68, 25-Mar-2015
310,Revenue,CCHD,Supported Living - North,Private & Voluntary Home Care,Camphill Communities Thornbury Limited,998.40, 04-Mar-2015
311,Revenue,CCHD,Supported Living - North,Private & Voluntary Home Care,Camphill Communities Thornbury Limited,599.04, 04-Mar-2015
312,Revenue,CCHD,Supported Living - North,Private & Voluntary Home Care,Camphill Communities Thornbury Limited,599.04, 04-Mar-2015
313,Revenue,CCHD,Supported Living - North,Private & Voluntary Home Care,Camphill Communities Thornbury Limited,773.76, 04-Mar-2015
314,Revenue,CCHD,Supported Living - North,Private & Voluntary Home Care,Camphill Communities Thornbury Limited,1223.04, 04-Mar-2015
315,Revenue,CCHD,Supported Living - North,Private & Voluntary Home Care,Camphill Communities Thornbury Limited,511.68, 04-Mar-2015
316,Revenue,CCHD,Supported Living - North,Private & Voluntary Home Care,Camphill Communities Thornbury Limited,698.88, 04-Mar-2015
317,Revenue,CCHD,Supported Living - North,Private & Voluntary Home Care,Camphill Communities Thornbury Limited,549.12, 04-Mar-2015
318,Revenue,CCHD,Supported Living - North,Private & Voluntary Home Care,Camphill Communities Thornbury Limited,1148.16, 04-Mar-2015
319,Revenue,CCHD,Bed Purchasing - Elderly S117- North,Permanent Residential,Canjayor,2334.04, 17-Mar-2015
320,Revenue,CCHD,Home Care - Elderly - South,Other Small Contracts,Care 1st Homecare,3158.40, 03-Mar-2015
321,Revenue,CCHD,Home Care - Elderly - North,Other Small Contracts,Care 1st Homecare,3637.20, 03-Mar-2015
322,Revenue,CCHD,Home care - Elderly MH - North,Other Small Contracts,Care 1st Homecare,16.80, 03-Mar-2015
323,Revenue,CCHD,Home Care - Elderly - South,Other Small Contracts,Care 1st Homecare,3255.00, 03-Mar-2015
324,Revenue,CCHD,Home Care - Elderly - North,Other Small Contracts,Care 1st Homecare,3628.80, 03-Mar-2015
325,Revenue,CCHD,Home care - Elderly MH - North,Other Small Contracts,Care 1st Homecare,16.80, 03-Mar-2015
326,Revenue,CCHD,Home Care - Elderly - South,Other Small Contracts,Care 1st Homecare,4053.00, 03-Mar-2015
327,Revenue,CCHD,Home Care - Elderly - North,Other Small Contracts,Care 1st Homecare,3729.60, 03-Mar-2015
328,Revenue,CCHD,Home care - Elderly MH - North,Other Small Contracts,Care 1st Homecare,16.80, 03-Mar-2015
329,Revenue,CCHD,Home Care - Elderly - South,Other Small Contracts,Care 1st Homecare,4485.60, 03-Mar-2015
330,Revenue,CCHD,Home Care - Elderly - North,Other Small Contracts,Care 1st Homecare,3628.80, 03-Mar-2015
331,Revenue,CCHD,Home care - Elderly MH - North,Other Small Contracts,Care 1st Homecare,16.80, 03-Mar-2015
332,Revenue,CCHD,Home Care - Elderly - South,Other Small Contracts,Care 1st Homecare,4384.80, 03-Mar-2015
333,Revenue,CCHD,Home Care - Elderly - North,Other Small Contracts,Care 1st Homecare,3620.40, 03-Mar-2015
334,Revenue,CCHD,Home care - Elderly MH - North,Other Small Contracts,Care 1st Homecare,16.80, 03-Mar-2015
335,Revenue,CCHD,Home Care - Elderly - South,Other Small Contracts,Care 1st Homecare,4082.40, 17-Mar-2015
336,Revenue,CCHD,Home Care - Elderly - North,Other Small Contracts,Care 1st Homecare,3229.80, 17-Mar-2015
337,Revenue,CCHD,Purchase of Non-Res Care - South,Day Care / Social Activities,Care Futures,1944.30, 13-Mar-2015
338,Revenue,CCHD,Purchase of Non-Res Care - North,Day Care / Social Activities,Care Horizons Limited,1594.29, 23-Mar-2015
339,Revenue,CCHD,Purchase of Non-Res Care - North,Day Care / Social Activities,Care Horizons Limited,1351.82, 23-Mar-2015
340,Revenue,CCHD,Supported Living - South,Private & Voluntary Home Care,Care Horizons Limited,1889.22, 24-Mar-2015
341,Revenue,CCHD,Supported Living - North,Private & Voluntary Home Care,Care Horizons Limited,4806.24, 23-Mar-2015
342,Revenue,CCHD,Electronic Home Care Monitoring,Other Supplies & Services,Care Monitoring 2000 Limited,1310.00, 10-Mar-2015
343,Revenue,CCHD,Electronic Home Care Monitoring,Other Supplies & Services,Care Monitoring 2000 Limited,9553.88, 13-Mar-2015
344,Revenue,CCHD,Home Care - Elderly - South,Other Small Contracts,Care UK,4288.48, 09-Mar-2015
345,Revenue,CCHD,Home Care - Elderly - North,Other Small Contracts,Care UK,1281.84, 09-Mar-2015
346,Revenue,CCHD,Day Care - North,Day Care / Social Activities,Care UK,196.00, 09-Mar-2015
347,Revenue,CCHD,Home care - Elderly MH - North,Other Small Contracts,Care UK,525.28, 09-Mar-2015
348,Revenue,CCHD,Elderly MH Day Care North,Day Care / Social Activities,Care UK,141.12, 09-Mar-2015
349,Revenue,CCHD,Home Care - Elderly - South,Other Small Contracts,Care UK,4100.32, 19-Mar-2015
350,Revenue,CCHD,Home Care - Elderly - North,Other Small Contracts,Care UK,1164.24, 19-Mar-2015
351,Revenue,CCHD,Day Care - North,Day Care / Social Activities,Care UK,250.88, 19-Mar-2015
352,Revenue,CCHD,Home care - Elderly MH - North,Other Small Contracts,Care UK,529.20, 19-Mar-2015
353,Revenue,CCHD,Elderly MH Day Care North,Day Care / Social Activities,Care UK,145.04, 19-Mar-2015
354,Revenue,CCHD,Home Care - Elderly - South,Other Small Contracts,Care UK,4061.12, 23-Mar-2015
355,Revenue,CCHD,Home Care - Elderly - North,Other Small Contracts,Care UK,1415.12, 23-Mar-2015
356,Revenue,CCHD,Day Care - North,Day Care / Social Activities,Care UK,125.44, 23-Mar-2015
357,Revenue,CCHD,Home care - Elderly MH - North,Other Small Contracts,Care UK,497.84, 23-Mar-2015
358,Revenue,CCHD,Elderly MH Day Care North,Day Care / Social Activities,Care UK,137.20, 23-Mar-2015
359,Revenue,CCHD,Home Care - Elderly - South,Other Small Contracts,Care UK,4127.76, 26-Mar-2015
360,Revenue,CCHD,Home Care - Elderly - North,Other Small Contracts,Care UK,1560.16, 26-Mar-2015
361,Revenue,CCHD,Home care - Elderly MH - North,Other Small Contracts,Care UK,490.00, 26-Mar-2015
362,Revenue,CCHD,Elderly MH Day Care North,Day Care / Social Activities,Care UK,141.12, 26-Mar-2015
363,Revenue,CCHD,Home Care - Elderly - South,Other Small Contracts,Carers R Us (Bristol) Limited,383.04, 03-Mar-2015
364,Revenue,CCHD,Home Care - Elderly - North,Other Small Contracts,Carers R Us (Bristol) Limited,175.56, 03-Mar-2015
365,Revenue,CCHD,Bed Purchasing - North,Permanent Residential,Charlton House,1071.28, 17-Mar-2015
366,Revenue,CCHD,Bed Purchasing - North,Permanent Residential,Charlton House,5353.69, 17-Mar-2015
367,Revenue,CCHD,Home Care - Elderly - South,Other Small Contracts,Cherish Able Care Limited,5525.25, 04-Mar-2015
368,Revenue,CCHD,Home Care - Elderly - North,Other Small Contracts,Cherish Able Care Limited,849.49, 04-Mar-2015
369,Revenue,CCHD,Home Care - Elderly - South,Other Small Contracts,Cherish Able Care Limited,5667.03, 11-Mar-2015
370,Revenue,CCHD,Home Care - Elderly - North,Other Small Contracts,Cherish Able Care Limited,849.49, 11-Mar-2015
371,Revenue,CCHD,Home Care - Elderly - South,Other Small Contracts,Cherish Able Care Limited,5454.36, 18-Mar-2015
372,Revenue,CCHD,Home Care - Elderly - North,Other Small Contracts,Cherish Able Care Limited,1024.63, 18-Mar-2015
373,Revenue,CCHD,Home Care - Elderly - South,Other Small Contracts,Cherish Able Care Limited,5245.86, 25-Mar-2015
374,Revenue,CCHD,Home Care - Elderly - North,Other Small Contracts,Cherish Able Care Limited,1037.14, 25-Mar-2015
375,Revenue,CCHD,Bed purchasing -S28A  Under 65 - North,Permanent Residential,Chescombe Lodge,8697.00, 17-Mar-2015
376,Revenue,CCHD,Tenancy Start Up Scheme,Other Supplies & Services,Chew Valley Estates,1640.00, 09-Mar-2015
377,Revenue,CCHD,Bed Purchasing - Southmead Hospital,Permanent Nursing,Cholwell House Nursing Home Ltd,1972.64, 17-Mar-2015
378,Revenue,CCHD,Bed Purchasing - North,Permanent Nursing,Cholwell House Nursing Home Ltd,1496.20, 17-Mar-2015
379,Revenue,CCHD,Training - Adult Services,Training Expenses,Individual,700.00, 06-Mar-2015
380,Revenue,CCHD,Bed Purchasing - North,Permanent Residential,Church House,10507.68, 17-Mar-2015
381,Revenue,CCHD,Bed Purchasing - North,Permanent Residential,Church House,5914.96, 17-Mar-2015
382,Revenue,CCHD,Section 117 Placements MH Younger,Permanent Residential,Church House,7567.32, 17-Mar-2015
383,Revenue,CCHD,Section 117 Placements MH Younger,Permanent Residential,Church House,7307.08, 17-Mar-2015
384,Revenue,CCHD,Learning Difficulties,Premises Hire,Circadian Trust,702.00, 05-Mar-2015
385,Revenue,CCHD,Learning Difficulties,Premises Hire,Circadian Trust,661.33, 20-Mar-2015
386,Revenue,CCHD,18-25 Year Olds,Permanent Residential,Citibase Watford,7012.00, 17-Mar-2015
387,Revenue,CCHD,Bed Purchasing - Elderly S117- North,Permanent Residential,Citibase Watford,8932.12, 17-Mar-2015
388,Revenue,CCHD,18-25 Year Olds,Permanent Residential,Citibase Watford,5454.64, 17-Mar-2015
389,Revenue,CCHD,Home Care - Elderly - South,Other Small Contracts,Cleeve Care Group,619.50, 18-Mar-2015
390,Revenue,CCHD,Home Care - Elderly - North,Other Small Contracts,Cleeve Care Group,21.00, 18-Mar-2015
391,Revenue,CCHD,Home Care - Elderly - South,Other Small Contracts,Cleeve Care Group,731.50, 04-Mar-2015
392,Revenue,CCHD,Home Care - Elderly - South,Other Small Contracts,Cleeve Care Group,521.50, 18-Mar-2015
393,Revenue,CCHD,Bed Purchasing - Southmead Hospital,Permanent Residential,Cleeve Lodge,1457.16, 17-Mar-2015
394,Revenue,CCHD,Bed Purchasing - North,Permanent Nursing,Cleeve Lodge,1874.24, 17-Mar-2015
395,Revenue,CCHD,Bed Purchasing - North,Permanent Residential,Cleeve Lodge,1904.20, 17-Mar-2015
396,Revenue,CCHD,Bed Purchasing - North,Permanent Residential,Cleeve Lodge,1156.12, 17-Mar-2015
397,Revenue,CCHD,Bed Purchasing - South,Respite Planned - Residential,Cleeve Lodge,2460.00, 17-Mar-2015
398,Revenue,CCHD,Bed Purchasing - South,Respite Planned - Residential,Cleeve Lodge,2108.57, 17-Mar-2015
399,Revenue,CCHD,Bed Purchasing - South,Permanent Residential,Cleeve Lodge,1801.44, 17-Mar-2015
400,Revenue,CCHD,Bed Purchasing - South,Respite Planned - Residential,Cleeve Lodge,2460.00, 17-Mar-2015
401,Revenue,CCHD,Bed Purchasing - South,Permanent Residential,Cleeve Lodge,2291.88, 17-Mar-2015
402,Revenue,CCHD,Bed Purchasing - South,Permanent Residential,Cleeve Lodge,1806.32, 17-Mar-2015
403,Revenue,CCHD,Bed Purchasing - South,Permanent Residential,Collingwood Residential Home,1427.48, 17-Mar-2015
404,Revenue,CCHD,Bed Purchasing - South,Permanent Residential,Collingwood Residential Home,1448.60, 17-Mar-2015
405,Revenue,CCHD,Bed Purchasing - South,Permanent Residential,Collingwood Residential Home,1072.80, 17-Mar-2015
406,Revenue,CCHD,Bed Purchasing - South,Permanent Residential,Collingwood Residential Home,1323.04, 17-Mar-2015
407,Revenue,CCHD,Bed Purchasing - South,Permanent Residential,Collingwood Residential Home,1280.20, 17-Mar-2015
408,Revenue,CCHD,Mental Health and Emotional Wellbeing,Project Funding,Coniston Community Association,1500.00, 30-Mar-2015
409,Revenue,CCHD,Bed and Breakfast,Bed & Breakfast,Connolly & Callaghan Limited,459.90, 06-Mar-2015
410,Revenue,CCHD,Bed and Breakfast,Bed & Breakfast,Connolly & Callaghan Limited,491.40, 06-Mar-2015
411,Revenue,CCHD,Bed and Breakfast,Bed & Breakfast,Connolly & Callaghan Limited,585.90, 06-Mar-2015
412,Revenue,CCHD,Bed and Breakfast,Bed & Breakfast,Connolly & Callaghan Limited,585.90, 06-Mar-2015
413,Revenue,CCHD,Bed and Breakfast,Bed & Breakfast,Connolly & Callaghan Limited,522.90, 06-Mar-2015
414,Revenue,CCHD,Tenancy Start Up Scheme,Other Supplies & Services,Connolly & Callaghan Limited,583.20, 04-Mar-2015
415,Revenue,CCHD,Tenancy Start Up Scheme,Other Supplies & Services,Connolly & Callaghan Limited,680.40, 04-Mar-2015
416,Revenue,CCHD,Bed and Breakfast,Bed & Breakfast,Connolly & Callaghan Limited,459.90, 05-Mar-2015
417,Revenue,CCHD,Bed and Breakfast,Bed & Breakfast,Connolly & Callaghan Limited,491.40, 06-Mar-2015
418,Revenue,CCHD,Bed and Breakfast,Bed & Breakfast,Connolly & Callaghan Limited,554.40, 06-Mar-2015
419,Revenue,CCHD,Bed and Breakfast,Bed & Breakfast,Connolly & Callaghan Limited,525.00, 06-Mar-2015
420,Revenue,CCHD,Bed and Breakfast,Bed & Breakfast,Connolly & Callaghan Limited,581.00, 06-Mar-2015
421,Revenue,CCHD,Bed and Breakfast,Bed & Breakfast,Connolly & Callaghan Limited,648.90, 06-Mar-2015
422,Revenue,CCHD,Bed and Breakfast,Bed & Breakfast,Connolly & Callaghan Limited,491.40, 06-Mar-2015
423,Revenue,CCHD,Bed and Breakfast,Bed & Breakfast,Connolly & Callaghan Limited,554.40, 06-Mar-2015
424,Revenue,CCHD,Bed and Breakfast,Bed & Breakfast,Connolly & Callaghan Limited,522.90, 06-Mar-2015
425,Revenue,CCHD,Bed and Breakfast,Bed & Breakfast,Connolly & Callaghan Limited,651.00, 06-Mar-2015
426,Revenue,CCHD,Bed and Breakfast,Bed & Breakfast,Connolly & Callaghan Limited,522.90, 12-Mar-2015
427,Revenue,CCHD,Bed and Breakfast,Bed & Breakfast,Connolly & Callaghan Limited,522.90, 06-Mar-2015
428,Revenue,CCHD,Bed and Breakfast,Bed & Breakfast,Connolly & Callaghan Limited,546.00, 06-Mar-2015
429,Revenue,CCHD,Bed and Breakfast,Bed & Breakfast,Connolly & Callaghan Limited,522.90, 06-Mar-2015
430,Revenue,CCHD,Bed and Breakfast,Bed & Breakfast,Connolly & Callaghan Limited,490.00, 06-Mar-2015
431,Revenue,CCHD,Bed and Breakfast,Bed & Breakfast,Connolly & Callaghan Limited,630.00, 06-Mar-2015
432,Revenue,CCHD,Bed and Breakfast,Bed & Breakfast,Connolly & Callaghan Limited,459.90, 06-Mar-2015
433,Revenue,CCHD,Bed and Breakfast,Bed & Breakfast,Connolly & Callaghan Limited,2381.40, 17-Mar-2015
434,Revenue,CCHD,Bed and Breakfast,Bed & Breakfast,Connolly & Callaghan Limited,441.00, 19-Mar-2015
435,Revenue,CCHD,Bed and Breakfast,Bed & Breakfast,Connolly & Callaghan Limited,491.40, 19-Mar-2015
436,Revenue,CCHD,Bed and Breakfast,Bed & Breakfast,Connolly & Callaghan Limited,581.00, 19-Mar-2015
437,Revenue,CCHD,Bed and Breakfast,Bed & Breakfast,Connolly & Callaghan Limited,491.40, 19-Mar-2015
438,Revenue,CCHD,Bed and Breakfast,Bed & Breakfast,Connolly & Callaghan Limited,522.90, 19-Mar-2015
439,Revenue,CCHD,Bed and Breakfast,Bed & Breakfast,Connolly & Callaghan Limited,522.90, 19-Mar-2015
440,Revenue,CCHD,Bed and Breakfast,Bed & Breakfast,Connolly & Callaghan Limited,522.90, 19-Mar-2015
441,Revenue,CCHD,Bed and Breakfast,Bed & Breakfast,Connolly & Callaghan Limited,522.90, 19-Mar-2015
442,Revenue,CCHD,Bed and Breakfast,Bed & Breakfast,Connolly & Callaghan Limited,490.00, 19-Mar-2015
443,Revenue,CCHD,Bed and Breakfast,Bed & Breakfast,Connolly & Callaghan Limited,441.00, 09-Mar-2015
444,Revenue,CCHD,Bed and Breakfast,Bed & Breakfast,Connolly & Callaghan Limited,421.20, 09-Mar-2015
445,Revenue,CCHD,Bed and Breakfast,Bed & Breakfast,Connolly & Callaghan Limited,700.00, 09-Mar-2015
446,Revenue,CCHD,Bed and Breakfast,Bed & Breakfast,Connolly & Callaghan Limited,648.90, 09-Mar-2015
447,Revenue,CCHD,Bed and Breakfast,Bed & Breakfast,Connolly & Callaghan Limited,581.00, 09-Mar-2015
448,Revenue,CCHD,Bed and Breakfast,Bed & Breakfast,Connolly & Callaghan Limited,522.90, 09-Mar-2015
449,Revenue,CCHD,Bed and Breakfast,Bed & Breakfast,Connolly & Callaghan Limited,651.00, 09-Mar-2015
450,Revenue,CCHD,Bed and Breakfast,Bed & Breakfast,Connolly & Callaghan Limited,522.90, 09-Mar-2015
451,Revenue,CCHD,Bed and Breakfast,Bed & Breakfast,Connolly & Callaghan Limited,522.90, 09-Mar-2015
452,Revenue,CCHD,Bed and Breakfast,Bed & Breakfast,Connolly & Callaghan Limited,546.00, 09-Mar-2015
453,Revenue,CCHD,Bed and Breakfast,Bed & Breakfast,Connolly & Callaghan Limited,617.40, 09-Mar-2015
454,Revenue,CCHD,Bed and Breakfast,Bed & Breakfast,Connolly & Callaghan Limited,546.00, 09-Mar-2015
455,Revenue,CCHD,Bed and Breakfast,Bed & Breakfast,Connolly & Callaghan Limited,522.90, 09-Mar-2015
456,Revenue,CCHD,Bed and Breakfast,Bed & Breakfast,Connolly & Callaghan Limited,490.00, 09-Mar-2015
457,Revenue,CCHD,Bed and Breakfast,Bed & Breakfast,Connolly & Callaghan Limited,630.00, 09-Mar-2015
458,Revenue,CCHD,Bed and Breakfast,Bed & Breakfast,Connolly & Callaghan Limited,459.90, 09-Mar-2015
459,Revenue,CCHD,Bed and Breakfast,Bed & Breakfast,Connolly & Callaghan Limited,1078.00, 24-Mar-2015
460,Revenue,CCHD,Bed and Breakfast,Bed & Breakfast,Connolly & Callaghan Limited,595.00, 24-Mar-2015
461,Revenue,CCHD,Bed and Breakfast,Bed & Breakfast,Connolly & Callaghan Limited,1929.90, 24-Mar-2015
462,Revenue,CCHD,Bed and Breakfast,Bed & Breakfast,Connolly & Callaghan Limited,708.90, 24-Mar-2015
463,Revenue,CCHD,Bed and Breakfast,Bed & Breakfast,Connolly & Callaghan Limited,522.90, 27-Mar-2015
464,Revenue,CCHD,Bed and Breakfast,Bed & Breakfast,Connolly & Callaghan Limited,1068.90, 24-Mar-2015
465,Revenue,CCHD,Bed and Breakfast,Bed & Breakfast,Connolly & Callaghan Limited,596.40, 27-Mar-2015
466,Revenue,CCHD,Bed and Breakfast,Bed & Breakfast,Connolly & Callaghan Limited,490.00, 23-Mar-2015
467,Revenue,CCHD,Bed and Breakfast,Bed & Breakfast,Connolly & Callaghan Limited,730.80, 27-Mar-2015
468,Revenue,CCHD,Bed and Breakfast,Bed & Breakfast,Connolly & Callaghan Limited,1600.90, 27-Mar-2015
469,Revenue,CCHD,Bed and Breakfast,Bed & Breakfast,Connolly & Callaghan Limited,490.00, 27-Mar-2015
470,Revenue,CCHD,Bed and Breakfast,Bed & Breakfast,Connolly & Callaghan Limited,630.00, 23-Mar-2015
471,Revenue,CCHD,Bed and Breakfast,Bed & Breakfast,Connolly & Callaghan Limited,602.00, 24-Mar-2015
472,Revenue,CCHD,Bed and Breakfast,Bed & Breakfast,Connolly & Callaghan Limited,1607.90, 23-Mar-2015
473,Revenue,CCHD,Bed and Breakfast,Bed & Breakfast,Connolly & Callaghan Limited,812.00, 27-Mar-2015
474,Revenue,CCHD,Bed and Breakfast,Bed & Breakfast,Connolly & Callaghan Limited,926.00, 10-Mar-2015
475,Revenue,CCHD,Bed and Breakfast,Bed & Breakfast,Connolly & Callaghan Limited,987.00, 10-Mar-2015
476,Revenue,CCHD,Bed and Breakfast,Bed & Breakfast,Connolly & Callaghan Limited,1929.90, 10-Mar-2015
477,Revenue,CCHD,Bed and Breakfast,Bed & Breakfast,Connolly & Callaghan Limited,522.90, 10-Mar-2015
478,Revenue,CCHD,Bed and Breakfast,Bed & Breakfast,Connolly & Callaghan Limited,455.00, 10-Mar-2015
479,Revenue,CCHD,Bed and Breakfast,Bed & Breakfast,Connolly & Callaghan Limited,1068.90, 24-Mar-2015
480,Revenue,CCHD,Bed and Breakfast,Bed & Breakfast,Connolly & Callaghan Limited,596.40, 27-Mar-2015
481,Revenue,CCHD,Bed and Breakfast,Bed & Breakfast,Connolly & Callaghan Limited,490.00, 27-Mar-2015
482,Revenue,CCHD,Bed and Breakfast,Bed & Breakfast,Connolly & Callaghan Limited,730.80, 24-Mar-2015
483,Revenue,CCHD,Bed and Breakfast,Bed & Breakfast,Connolly & Callaghan Limited,490.00, 23-Mar-2015
484,Revenue,CCHD,Bed and Breakfast,Bed & Breakfast,Connolly & Callaghan Limited,630.00, 24-Mar-2015
485,Revenue,CCHD,Bed and Breakfast,Bed & Breakfast,Connolly & Callaghan Limited,602.00, 27-Mar-2015
486,Revenue,CCHD,Bed and Breakfast,Bed & Breakfast,Connolly & Callaghan Limited,1148.00, 24-Mar-2015
487,Revenue,CCHD,Bed and Breakfast,Bed & Breakfast,Connolly & Callaghan Limited,1102.00, 24-Mar-2015
488,Revenue,CCHD,Bed and Breakfast,Bed & Breakfast,Connolly & Callaghan Limited,987.00, 17-Mar-2015
489,Revenue,CCHD,Bed and Breakfast,Bed & Breakfast,Connolly & Callaghan Limited,1929.90, 17-Mar-2015
490,Revenue,CCHD,Bed and Breakfast,Bed & Breakfast,Connolly & Callaghan Limited,522.90, 17-Mar-2015
491,Revenue,CCHD,Bed and Breakfast,Bed & Breakfast,Connolly & Callaghan Limited,1423.90, 23-Mar-2015
492,Revenue,CCHD,Bed and Breakfast,Bed & Breakfast,Connolly & Callaghan Limited,686.00, 31-Mar-2015
493,Revenue,CCHD,Bed and Breakfast,Bed & Breakfast,Connolly & Callaghan Limited,700.00, 31-Mar-2015
494,Revenue,CCHD,Bed and Breakfast,Bed & Breakfast,Connolly & Callaghan Limited,648.90, 31-Mar-2015
495,Revenue,CCHD,Bed and Breakfast,Bed & Breakfast,Connolly & Callaghan Limited,581.00, 31-Mar-2015
496,Revenue,CCHD,Bed and Breakfast,Bed & Breakfast,Connolly & Callaghan Limited,522.90, 31-Mar-2015
497,Revenue,CCHD,Bed and Breakfast,Bed & Breakfast,Connolly & Callaghan Limited,522.90, 31-Mar-2015
498,Revenue,CCHD,Bed and Breakfast,Bed & Breakfast,Connolly & Callaghan Limited,511.00, 31-Mar-2015
499,Revenue,CCHD,Bed and Breakfast,Bed & Breakfast,Connolly & Callaghan Limited,546.00, 31-Mar-2015
500,Revenue,CCHD,Bed and Breakfast,Bed & Breakfast,Connolly & Callaghan Limited,522.90, 31-Mar-2015
501,Revenue,CCHD,Bed and Breakfast,Bed & Breakfast,Connolly & Callaghan Limited,490.00, 31-Mar-2015
502,Revenue,CCHD,Bed and Breakfast,Bed & Breakfast,Connolly & Callaghan Limited,441.00, 31-Mar-2015
503,Revenue,CCHD,Bed and Breakfast,Bed & Breakfast,Connolly & Callaghan Limited,630.00, 31-Mar-2015
504,Revenue,CCHD,Bed and Breakfast,Bed & Breakfast,Connolly & Callaghan Limited,1600.90, 20-Mar-2015
505,Revenue,CCHD,Bed Purchasing - Southmead Hospital,Permanent Residential,Coombs Wood House,965.00, 17-Mar-2015
506,Revenue,CCHD,"Physical Activity, Nutrition & Obesity",Computer Services,Core Business Systems Limited,3027.67, 30-Mar-2015
507,Revenue,CCHD,Bed Purchasing - S28A - Over 65- North,Permanent Residential,Cream Ii Ltd  Longrun House,8039.76, 17-Mar-2015
508,Revenue,CCHD,Bed Purchasing - South,Permanent Residential,Cream Ii Ltd  Longrun House,5628.52, 17-Mar-2015
509,Revenue,CCHD,Mental Health and Emotional Wellbeing,Project Funding,Creativity Works,2400.00, 30-Mar-2015
510,Revenue,CCHD,Bed purchasing -S28A  Under 65 - North,Permanent Residential,Creedy Court,9294.40, 17-Mar-2015
511,Revenue,CCHD,Bed Purchasing - S28A - Over 65- North,Permanent Residential,Creedy Court,7726.88, 17-Mar-2015
512,Revenue,CCHD,Bed Purchasing - North,Permanent Residential,Creedy Court,12580.08, 13-Mar-2015
513,Revenue,CCHD,Mental Health and Emotional Wellbeing,Project Funding,CVS South Gloucestershire,2000.00, 30-Mar-2015
514,Revenue,CCHD,Mental Health and Emotional Wellbeing,Project Funding,CVS South Gloucestershire,10000.00, 30-Mar-2015
515,Revenue,CCHD,Planning and Partnerships Procurement,Other Supplies & Services,D H I,10000.00, 27-Mar-2015
516,Revenue,CCHD,Brokerage and Information Service,Grants to Voluntary Bodies,D H I,32576.00, 27-Mar-2015
517,Revenue,CCHD,Public Health Project Funding,Consultants Fees,D Harvey Consulting Limited,3175.50, 09-Mar-2015
518,Revenue,CCHD,Public Health Project Funding,Consultants Fees,D Harvey Consulting Limited,2189.50, 09-Mar-2015
519,Revenue,CCHD,Public Health Project Funding,Consultants Fees,D Harvey Consulting Limited,3688.30, 09-Mar-2015
520,Revenue,CCHD,Public Health Project Funding,Consultants Fees,D Harvey Consulting Limited,3971.75, 09-Mar-2015
521,Revenue,CCHD,Public Health Project Funding,Consultants Fees,D Harvey Consulting Limited,3626.50, 30-Mar-2015
522,Revenue,CCHD,Bed Purchasing - South,Permanent Residential,Daneswood,11009.48, 17-Mar-2015
523,Revenue,CCHD,Bed Purchasing - North,Permanent Residential,Daneswood,9114.88, 17-Mar-2015
524,Revenue,CCHD,Bed Purchasing - Elderly S117- North,Permanent Nursing,Danshell Healthcare Group,11529.00, 17-Mar-2015
525,Revenue,CCHD,Learning Difficulties PSL,Other Supplies & Services,Individual,2105.50, 20-Mar-2015
526,Revenue,CCHD,Public Health Project Funding,Membership Fees,Debigno Ltd trading as Pathway Analytics,2700.00, 20-Mar-2015
527,Revenue,CCHD,Community Support - South,Preventative Assistance,Design 4 Life Ltd,1122.90, 17-Mar-2015
528,Revenue,CCHD,Purchase of Non-Res Care - North,Day Care / Social Activities,Design 4 Life Ltd,1180.98, 23-Mar-2015
529,Revenue,CCHD,Purchase of Non-Res Care - North,Day Care / Social Activities,Design 4 Life Ltd,1574.64, 23-Mar-2015
530,Revenue,CCHD,Purchase of Non-Res Care - North,Day Care / Social Activities,Design 4 Life Ltd,1226.96, 23-Mar-2015
531,Revenue,CCHD,Purchase of Non-Res Care - North,Day Care / Social Activities,Design 4 Life Ltd,1049.76, 20-Mar-2015
532,Revenue,CCHD,Purchase of Non-Res Care - North,Day Care / Social Activities,Design 4 Life Ltd,1226.96, 20-Mar-2015
533,Revenue,CCHD,Home Care - Elderly - South,Supported Living,Design House,3930.08, 17-Mar-2015
534,Revenue,CCHD,Bed Purchasing - South,Permanent Residential,Devon & Cornwall Autistic Community Trus,8796.92, 17-Mar-2015
535,Revenue,CCHD,Home Care - Elderly - South,Day Care / Social Activities,Dhek Bhal,193.60, 06-Mar-2015
536,Revenue,CCHD,Home Care - Elderly - South,Other Small Contracts,Dhek Bhal,271.04, 06-Mar-2015
537,Revenue,CCHD,Home Care - Elderly - North,Other Small Contracts,Dhek Bhal,193.60, 06-Mar-2015
538,Revenue,CCHD,Home Care - Elderly - South,Day Care / Social Activities,Dhek Bhal,193.60, 09-Mar-2015
539,Revenue,CCHD,Home Care - Elderly - South,Other Small Contracts,Dhek Bhal,271.04, 09-Mar-2015
540,Revenue,CCHD,Home Care - Elderly - North,Day Care / Social Activities,Dhek Bhal,38.72, 09-Mar-2015
541,Revenue,CCHD,Home Care - Elderly - North,Other Small Contracts,Dhek Bhal,154.88, 09-Mar-2015
542,Revenue,CCHD,Home Care - Elderly - South,Day Care / Social Activities,Dhek Bhal,135.52, 23-Mar-2015
543,Revenue,CCHD,Home Care - Elderly - South,Other Small Contracts,Dhek Bhal,271.04, 23-Mar-2015
544,Revenue,CCHD,Home Care - Elderly - North,Day Care / Social Activities,Dhek Bhal,38.72, 23-Mar-2015
545,Revenue,CCHD,Home Care - Elderly - North,Other Small Contracts,Dhek Bhal,154.88, 23-Mar-2015
546,Revenue,CCHD,Home Care - Elderly - South,Day Care / Social Activities,Dhek Bhal,251.68, 30-Mar-2015
547,Revenue,CCHD,Home Care - Elderly - South,Other Small Contracts,Dhek Bhal,271.04, 30-Mar-2015
548,Revenue,CCHD,Home Care - Elderly - North,Other Small Contracts,Dhek Bhal,193.60, 30-Mar-2015
549,Revenue,CCHD,Home Care - Elderly - South,Day Care / Social Activities,Dhek Bhal,193.60, 30-Mar-2015
550,Revenue,CCHD,Home Care - Elderly - South,Other Small Contracts,Dhek Bhal,271.04, 30-Mar-2015
551,Revenue,CCHD,Home Care - Elderly - North,Day Care / Social Activities,Dhek Bhal,38.72, 30-Mar-2015
552,Revenue,CCHD,Home Care - Elderly - North,Other Small Contracts,Dhek Bhal,154.88, 30-Mar-2015
553,Revenue,CCHD,Day Care - South,Day Care / Social Activities,Dhek Bhal,1685.79, 30-Mar-2015
554,Revenue,CCHD,Bed Purchasing - South,Permanent Residential,Dimensions,4880.00, 17-Mar-2015
555,Revenue,CCHD,Supported Living - South,Private & Voluntary Home Care,Dimensions (UK) Ltd,8006.68, 30-Mar-2015
556,Revenue,CCHD,Home Care - Elderly - South,Day Care / Social Activities,DoCare Ltd,38.00, 17-Mar-2015
557,Revenue,CCHD,Home Care - Elderly - South,Other Small Contracts,DoCare Ltd,2403.50, 17-Mar-2015
558,Revenue,CCHD,Home Care - Elderly - North,Other Small Contracts,DoCare Ltd,7357.75, 17-Mar-2015
559,Revenue,CCHD,Home Care - Elderly - South,Day Care / Social Activities,DoCare Ltd,38.00, 17-Mar-2015
560,Revenue,CCHD,Home Care - Elderly - South,Other Small Contracts,DoCare Ltd,2403.51, 17-Mar-2015
561,Revenue,CCHD,Home Care - Elderly - North,Other Small Contracts,DoCare Ltd,7139.25, 17-Mar-2015
562,Revenue,CCHD,Home Care - Elderly - South,Day Care / Social Activities,DoCare Ltd,38.00, 17-Mar-2015
563,Revenue,CCHD,Home Care - Elderly - South,Other Small Contracts,DoCare Ltd,2379.75, 17-Mar-2015
564,Revenue,CCHD,Home Care - Elderly - North,Other Small Contracts,DoCare Ltd,6854.25, 17-Mar-2015
565,Revenue,CCHD,Home Care - Elderly - South,Day Care / Social Activities,DoCare Ltd,28.50, 17-Mar-2015
566,Revenue,CCHD,Home Care - Elderly - South,Other Small Contracts,DoCare Ltd,2322.76, 17-Mar-2015
567,Revenue,CCHD,Home Care - Elderly - North,Other Small Contracts,DoCare Ltd,6621.50, 17-Mar-2015
568,Revenue,CCHD,Home Care - Elderly - South,Day Care / Social Activities,DoCare Ltd,38.00, 17-Mar-2015
569,Revenue,CCHD,Home Care - Elderly - South,Other Small Contracts,DoCare Ltd,2104.25, 17-Mar-2015
570,Revenue,CCHD,Home Care - Elderly - North,Other Small Contracts,DoCare Ltd,6132.25, 17-Mar-2015
571,Revenue,CCHD,Home Care - Elderly - South,Day Care / Social Activities,DoCare Ltd,42.75, 17-Mar-2015
572,Revenue,CCHD,Home Care - Elderly - South,Other Small Contracts,DoCare Ltd,1999.76, 17-Mar-2015
573,Revenue,CCHD,Home Care - Elderly - North,Other Small Contracts,DoCare Ltd,6512.25, 17-Mar-2015
574,Revenue,CCHD,Home Care - Elderly - South,Day Care / Social Activities,DoCare Ltd,38.00, 31-Mar-2015
575,Revenue,CCHD,Home Care - Elderly - South,Other Small Contracts,DoCare Ltd,2075.75, 31-Mar-2015
576,Revenue,CCHD,Home Care - Elderly - North,Other Small Contracts,DoCare Ltd,6574.00, 31-Mar-2015
577,Revenue,CCHD,Social Lettings Agency,Other Supplies & Services,Individual,580.74, 24-Mar-2015
578,Revenue,CCHD,MH Purchasing - Younger,Permanent Residential,Dunraven House,1854.32, 17-Mar-2015
579,Revenue,CCHD,Bed and Breakfast,Bed & Breakfast,E J Bartlett,504.00, 06-Mar-2015
580,Revenue,CCHD,Bed and Breakfast,Bed & Breakfast,E J Bartlett,420.00, 06-Mar-2015
581,Revenue,CCHD,Bed and Breakfast,Bed & Breakfast,E J Bartlett,504.00, 06-Mar-2015
582,Revenue,CCHD,Bed and Breakfast,Bed & Breakfast,E J Bartlett,420.00, 06-Mar-2015
583,Revenue,CCHD,Bed and Breakfast,Bed & Breakfast,E J Bartlett,504.00, 13-Mar-2015
584,Revenue,CCHD,Bed and Breakfast,Bed & Breakfast,E J Bartlett,420.00, 13-Mar-2015
585,Revenue,CCHD,Bed and Breakfast,Bed & Breakfast,E J Bartlett,504.00, 20-Mar-2015
586,Revenue,CCHD,Bed and Breakfast,Bed & Breakfast,E J Bartlett,420.00, 20-Mar-2015
587,Revenue,CCHD,Bed Purchasing - North,Permanent Residential,East Court,2213.44, 17-Mar-2015
588,Revenue,CCHD,Minor Adaptations Service,Operational Equipment,Eastman & Co (Timber) Limited,609.00, 26-Mar-2015
589,Revenue,CCHD,Home Care - Elderly - South,Day Care / Social Activities,Easton Community Centre,520.56, 17-Mar-2015
590,Revenue,CCHD,Home Care - Elderly - South,Day Care / Social Activities,Easton Community Centre,520.56, 17-Mar-2015
591,Revenue,CCHD,Home Care - Elderly - North,Day Care / Social Activities,Easton Community Centre,520.56, 17-Mar-2015
592,Revenue,CCHD,Home Care - Elderly - North,Day Care / Social Activities,Easton Community Centre,520.56, 17-Mar-2015
593,Revenue,CCHD,Home Care - Elderly - South,Day Care / Social Activities,Eclipse Office Park,735.12, 17-Mar-2015
594,Revenue,CCHD,Home Care - Elderly - North,Day Care / Social Activities,Eclipse Office Park,980.16, 17-Mar-2015
595,Revenue,CCHD,Home Care - Elderly - South,Day Care / Social Activities,Eclipse Office Park,612.60, 17-Mar-2015
596,Revenue,CCHD,Home Care - Elderly - South,Day Care / Social Activities,Eclipse Office Park,857.64, 17-Mar-2015
597,Revenue,CCHD,Home Care - Elderly - South,Day Care / Social Activities,Eclipse Office Park,735.12, 17-Mar-2015
598,Revenue,CCHD,Home Care - Elderly - South,Day Care / Social Activities,Eclipse Office Park,857.64, 17-Mar-2015
599,Revenue,CCHD,Home Care - Elderly - South,Day Care / Social Activities,Eclipse Office Park,1225.20, 17-Mar-2015
600,Revenue,CCHD,Home Care - Elderly - South,Day Care / Social Activities,Eclipse Office Park,735.12, 17-Mar-2015
601,Revenue,CCHD,Home Care - Elderly - South,Day Care / Social Activities,Eclipse Office Park,857.64, 17-Mar-2015
602,Revenue,CCHD,Home Care - Elderly - South,Day Care / Social Activities,Eclipse Office Park,980.16, 17-Mar-2015
603,Revenue,CCHD,Bed Purchasing - South,Permanent Residential,Edgecumbe Lodge,1177.76, 17-Mar-2015
604,Revenue,CCHD,Bed Purchasing - Southmead Hospital,Permanent Residential,Edgecumbe Lodge,1260.20, 17-Mar-2015
605,Revenue,CCHD,Bed Purchasing - South,Permanent Residential,Edgecumbe Lodge,1056.36, 17-Mar-2015
606,Revenue,CCHD,Bed Purchasing - Southmead Hospital,Permanent Residential,Edgecumbe Lodge,1604.20, 17-Mar-2015
607,Revenue,CCHD,Bed Purchasing - South,Permanent Residential,Edgecumbe Lodge,1427.00, 17-Mar-2015
608,Revenue,CCHD,Bed Purchasing - Southmead Hospital,Permanent Residential,Edgecumbe Lodge,1533.80, 17-Mar-2015
609,Revenue,CCHD,Bed Purchasing - South,Permanent Residential,Edgecumbe Lodge,1141.04, 17-Mar-2015
610,Revenue,CCHD,Bed Purchasing - North,Permanent Residential,Edgecumbe Lodge,1372.64, 17-Mar-2015
611,Revenue,CCHD,Bed Purchasing - South,Respite Planned - Residential,Edgemont House Ltd,1275.00, 17-Mar-2015
612,Revenue,CCHD,Bed Purchasing - South,Permanent Residential,Edgemont House Ltd,1430.32, 17-Mar-2015
613,Revenue,CCHD,Bed Purchasing - South,Permanent Residential,Edgemont House Ltd,1293.48, 17-Mar-2015
614,Revenue,CCHD,Bed Purchasing - North,Permanent Nursing,Edgemont View Nursing Home,1217.24, 17-Mar-2015
615,Revenue,CCHD,Bed Purchasing - South,Permanent Nursing,Edgemont View Nursing Home,1660.52, 17-Mar-2015
616,Revenue,CCHD,Bed Purchasing - South,Permanent Nursing,Edgemont View Nursing Home,1445.88, 17-Mar-2015
617,Revenue,CCHD,Bed Purchasing - South,Permanent Nursing,Edgemont View Nursing Home,1634.80, 17-Mar-2015
618,Revenue,CCHD,Bed Purchasing - South,Permanent Nursing,Edgemont View Nursing Home,1196.68, 17-Mar-2015
619,Revenue,CCHD,Planning and Partnerships Procurement,Other Supplies & Services,Eldercare,1472.46, 09-Mar-2015
620,Revenue,CCHD,Home Care - Elderly - South,Day Care / Social Activities,Elite Home Care Ltd,34.96, 03-Mar-2015
621,Revenue,CCHD,Home Care - Elderly - South,Other Small Contracts,Elite Home Care Ltd,5882.02, 03-Mar-2015
622,Revenue,CCHD,Home Care - Elderly - North,Other Small Contracts,Elite Home Care Ltd,332.12, 03-Mar-2015
623,Revenue,CCHD,Home Care - Elderly - South,Day Care / Social Activities,Elite Home Care Ltd,34.96, 23-Mar-2015
624,Revenue,CCHD,Home Care - Elderly - South,Other Small Contracts,Elite Home Care Ltd,5571.75, 23-Mar-2015
625,Revenue,CCHD,Home Care - Elderly - North,Other Small Contracts,Elite Home Care Ltd,336.49, 23-Mar-2015
626,Revenue,CCHD,Home Care - Elderly - South,Day Care / Social Activities,Elite Home Care Ltd,34.96, 23-Mar-2015
627,Revenue,CCHD,Home Care - Elderly - South,Other Small Contracts,Elite Home Care Ltd,6078.67, 23-Mar-2015
628,Revenue,CCHD,Home Care - Elderly - North,Other Small Contracts,Elite Home Care Ltd,332.12, 23-Mar-2015
629,Revenue,CCHD,Home Care - Elderly - South,Day Care / Social Activities,Elite Home Care Ltd,34.96, 23-Mar-2015
630,Revenue,CCHD,Home Care - Elderly - South,Other Small Contracts,Elite Home Care Ltd,6043.71, 23-Mar-2015
631,Revenue,CCHD,Home Care - Elderly - North,Other Small Contracts,Elite Home Care Ltd,327.75, 23-Mar-2015
632,Revenue,CCHD,Bed Purchasing - North,Permanent Residential,Epworth House,1046.40, 17-Mar-2015
633,Revenue,CCHD,Training - Adult Services,Training Expenses,Equality & Diversity UK Limited,1056.10, 11-Mar-2015
634,Revenue,CCHD,Home Care - Elderly - South,Other Small Contracts,Everycare (Bristol) Ltd,4817.68, 05-Mar-2015
635,Revenue,CCHD,Home Care - Elderly - North,Day Care / Social Activities,Everycare (Bristol) Ltd,136.00, 05-Mar-2015
636,Revenue,CCHD,Home Care - Elderly - North,Other Small Contracts,Everycare (Bristol) Ltd,3140.75, 05-Mar-2015
637,Revenue,CCHD,Under 65s -MH  Home Care Purch,Other Small Contracts,Everycare (Bristol) Ltd,51.00, 05-Mar-2015
638,Revenue,CCHD,Home Care - Elderly - South,Other Small Contracts,Everycare (Bristol) Ltd,4075.75, 11-Mar-2015
639,Revenue,CCHD,Home Care - Elderly - North,Day Care / Social Activities,Everycare (Bristol) Ltd,161.50, 11-Mar-2015
640,Revenue,CCHD,Home Care - Elderly - North,Other Small Contracts,Everycare (Bristol) Ltd,3017.50, 11-Mar-2015
641,Revenue,CCHD,Under 65s -MH  Home Care Purch,Other Small Contracts,Everycare (Bristol) Ltd,55.25, 11-Mar-2015
642,Revenue,CCHD,Home Care - Elderly - South,Other Small Contracts,Everycare (Bristol) Ltd,4322.25, 18-Mar-2015
643,Revenue,CCHD,Home Care - Elderly - North,Day Care / Social Activities,Everycare (Bristol) Ltd,170.00, 18-Mar-2015
644,Revenue,CCHD,Home Care - Elderly - North,Other Small Contracts,Everycare (Bristol) Ltd,3289.50, 18-Mar-2015
645,Revenue,CCHD,Under 65s -MH  Home Care Purch,Other Small Contracts,Everycare (Bristol) Ltd,46.75, 18-Mar-2015
646,Revenue,CCHD,Bed Purchasing - Southmead Hospital,Permanent Nursing,Fairview Court,1879.96, 17-Mar-2015
647,Revenue,CCHD,Bed purchasing - Elderly S117 - South,Permanent Nursing,Fairview Court,3876.84, 17-Mar-2015
648,Revenue,CCHD,Bed purchasing - Elderly S117 - South,Permanent Nursing,Fairview Court,1496.20, 17-Mar-2015
649,Revenue,CCHD,South Glos Users in South Glos Homes,Permanent Nursing,Fairview Court,887.12, 17-Mar-2015
650,Revenue,CCHD,South Glos Users in South Glos Homes,Permanent Nursing,Fairview Court,855.44, 17-Mar-2015
651,Revenue,CCHD,Bed Purchasing - South,Permanent Nursing,Fairview Court,1646.60, 17-Mar-2015
652,Revenue,CCHD,Bed Purchasing - South,Permanent Nursing,Fairview Court,1774.64, 17-Mar-2015
653,Revenue,CCHD,Bed Purchasing - Southmead Hospital,Permanent Nursing,Fairview Court,3510.60, 17-Mar-2015
654,Revenue,CCHD,Bed Purchasing - Southmead Hospital,Permanent Nursing,Fairview Court,668.69, 17-Mar-2015
655,Revenue,CCHD,Bed Purchasing - South,Permanent Nursing,Fairview Court,2001.48, 17-Mar-2015
656,Revenue,CCHD,Bed Purchasing - South,Permanent Nursing,Fairview Court,1858.80, 17-Mar-2015
657,Revenue,CCHD,Bed Purchasing - North,Permanent Nursing,Fairview Court,2320.28, 17-Mar-2015
658,Revenue,CCHD,Bed Purchasing - South,Permanent Nursing,Fairview Court,1864.16, 17-Mar-2015
659,Revenue,CCHD,Bed Purchasing - Southmead Hospital,Permanent Nursing,Fairview Court,1888.20, 17-Mar-2015
660,Revenue,CCHD,Bed Purchasing - South,Permanent Nursing,Fairview Court Care Home,1163.96, 30-Mar-2015
661,Revenue,CCHD,Bed Purchasing - South,Permanent Nursing,Fairview Court Care Home,1018.00, 30-Mar-2015
662,Revenue,CCHD,Bed Purchasing - South,Permanent Nursing,Fairview Court Care Home,2057.43, 30-Mar-2015
663,Revenue,CCHD,Bed Purchasing - South,Permanent Nursing,Fairview Court Care Home,2063.67, 30-Mar-2015
664,Revenue,CCHD,Bed Purchasing - Southmead Hospital,Permanent Nursing,Fairview Court Care Home,1532.24, 30-Mar-2015
665,Revenue,CCHD,Bed purchasing - Elderly S117 - South,Permanent Nursing,Fairview Court Care Home,2612.59, 30-Mar-2015
666,Revenue,CCHD,Bed Purchasing - South,Permanent Nursing,Fairview Court Care Home,1051.32, 12-Mar-2015
667,Revenue,CCHD,Bed Purchasing - South,Permanent Nursing,Fairview Court Care Home,949.48, 12-Mar-2015
668,Revenue,CCHD,Bed Purchasing - South,Permanent Nursing,Fairview Court Care Home,1858.32, 12-Mar-2015
669,Revenue,CCHD,Bed Purchasing - South,Permanent Nursing,Fairview Court Care Home,1863.96, 12-Mar-2015
670,Revenue,CCHD,Bed Purchasing - Southmead Hospital,Permanent Nursing,Fairview Court Care Home,1383.96, 12-Mar-2015
671,Revenue,CCHD,Bed purchasing - Elderly S117 - South,Permanent Nursing,Fairview Court Care Home,2359.76, 12-Mar-2015
672,Revenue,CCHD,Bed Purchasing - South,Permanent Nursing,Fairview Court Care Home,1163.96, 12-Mar-2015
673,Revenue,CCHD,Bed Purchasing - South,Permanent Nursing,Fairview Court Care Home,1018.00, 12-Mar-2015
674,Revenue,CCHD,Bed Purchasing - South,Permanent Nursing,Fairview Court Care Home,2057.43, 12-Mar-2015
675,Revenue,CCHD,Bed Purchasing - South,Permanent Nursing,Fairview Court Care Home,2063.67, 12-Mar-2015
676,Revenue,CCHD,Bed Purchasing - Southmead Hospital,Permanent Nursing,Fairview Court Care Home,1532.24, 12-Mar-2015
677,Revenue,CCHD,Bed purchasing - Elderly S117 - South,Permanent Nursing,Fairview Court Care Home,2612.59, 12-Mar-2015
678,Revenue,CCHD,S75 CCG Interim Beds,Permanent Nursing,Fairview Court Care Home,10200.00, 12-Mar-2015
679,Revenue,CCHD,Bed purchasing - Elderly S117 - South,Permanent Residential,Fairview House,1756.00, 17-Mar-2015
680,Revenue,CCHD,Bed purchasing - Elderly S117 - South,Permanent Residential,Fairview House,1916.84, 17-Mar-2015
681,Revenue,CCHD,Bed Purchasing - Southmead Hospital,Permanent Residential,Fairview House,1023.16, 17-Mar-2015
682,Revenue,CCHD,Bed Purchasing - South,Permanent Residential,Fairview House,865.24, 17-Mar-2015
683,Revenue,CCHD,Bed Purchasing - South,Permanent Residential,Fairview House,1260.20, 17-Mar-2015
684,Revenue,CCHD,Bed Purchasing - South,Permanent Residential,Fairview House,1192.92, 17-Mar-2015
685,Revenue,CCHD,Bed Purchasing - South,Permanent Residential,Fairview House,1117.92, 17-Mar-2015
686,Revenue,CCHD,Bed Purchasing - Southmead Hospital,Permanent Residential,Fairview House,1260.20, 17-Mar-2015
687,Revenue,CCHD,Bed Purchasing - Southmead Hospital,Permanent Residential,Fairview House,1077.32, 17-Mar-2015
688,Revenue,CCHD,Bed Purchasing - South,Permanent Residential,Fairview House,1039.60, 17-Mar-2015
689,Revenue,CCHD,Bed Purchasing - South,Permanent Residential,Fairview House,1437.40, 17-Mar-2015
690,Revenue,CCHD,Bed Purchasing - Southmead Hospital,Permanent Residential,Faith House,1223.28, 17-Mar-2015
691,Revenue,CCHD,Bed Purchasing - North,Permanent Residential,Fernbank,7706.00, 17-Mar-2015
692,Revenue,CCHD,Home Care - Elderly - South,Day Care / Social Activities,Firstpoint Homecare Ltd,92.16, 09-Mar-2015
693,Revenue,CCHD,Home Care - Elderly - South,Other Small Contracts,Firstpoint Homecare Ltd,1244.16, 09-Mar-2015
694,Revenue,CCHD,Home Care - Elderly - North,Other Small Contracts,Firstpoint Homecare Ltd,1451.52, 09-Mar-2015
695,Revenue,CCHD,Under 65s -MH  Home Care Purch,Other Small Contracts,Firstpoint Homecare Ltd,46.08, 09-Mar-2015
696,Revenue,CCHD,Home care - Elderly MH - North,Day Care / Social Activities,Firstpoint Homecare Ltd,46.08, 09-Mar-2015
697,Revenue,CCHD,Home Care - Elderly - South,Day Care / Social Activities,Firstpoint Homecare Ltd,76.79, 09-Mar-2015
698,Revenue,CCHD,Home Care - Elderly - South,Other Small Contracts,Firstpoint Homecare Ltd,1121.28, 09-Mar-2015
699,Revenue,CCHD,Home Care - Elderly - North,Other Small Contracts,Firstpoint Homecare Ltd,1333.98, 09-Mar-2015
700,Revenue,CCHD,Home Care - Elderly - South,Day Care / Social Activities,Firstpoint Homecare Ltd,88.32, 05-Mar-2015
701,Revenue,CCHD,Home Care - Elderly - South,Other Small Contracts,Firstpoint Homecare Ltd,1132.80, 05-Mar-2015
702,Revenue,CCHD,Home Care - Elderly - North,Other Small Contracts,Firstpoint Homecare Ltd,1224.96, 05-Mar-2015
703,Revenue,CCHD,Home Care - Elderly - South,Day Care / Social Activities,Firstpoint Homecare Ltd,65.28, 03-Mar-2015
704,Revenue,CCHD,Home Care - Elderly - South,Other Small Contracts,Firstpoint Homecare Ltd,1336.32, 03-Mar-2015
705,Revenue,CCHD,Home Care - Elderly - North,Other Small Contracts,Firstpoint Homecare Ltd,1422.99, 03-Mar-2015
706,Revenue,CCHD,Under 65s -MH  Home Care Purch,Other Small Contracts,Firstpoint Homecare Ltd,7.68, 03-Mar-2015
707,Revenue,CCHD,Home care - Elderly MH - North,Day Care / Social Activities,Firstpoint Homecare Ltd,46.08, 03-Mar-2015
708,Revenue,CCHD,Home Care - Elderly - South,Day Care / Social Activities,Firstpoint Homecare Ltd,34.56, 03-Mar-2015
709,Revenue,CCHD,Home Care - Elderly - South,Other Small Contracts,Firstpoint Homecare Ltd,1240.32, 03-Mar-2015
710,Revenue,CCHD,Home Care - Elderly - North,Other Small Contracts,Firstpoint Homecare Ltd,1363.20, 03-Mar-2015
711,Revenue,CCHD,Under 65s -MH  Home Care Purch,Other Small Contracts,Firstpoint Homecare Ltd,46.08, 03-Mar-2015
712,Revenue,CCHD,Home care - Elderly MH - North,Day Care / Social Activities,Firstpoint Homecare Ltd,46.08, 03-Mar-2015
713,Revenue,CCHD,Home Care - Elderly - South,Day Care / Social Activities,Firstpoint Homecare Ltd,61.44, 03-Mar-2015
714,Revenue,CCHD,Home Care - Elderly - South,Other Small Contracts,Firstpoint Homecare Ltd,1290.24, 03-Mar-2015
715,Revenue,CCHD,Home Care - Elderly - North,Other Small Contracts,Firstpoint Homecare Ltd,1387.19, 03-Mar-2015
716,Revenue,CCHD,Under 65s -MH  Home Care Purch,Other Small Contracts,Firstpoint Homecare Ltd,46.08, 03-Mar-2015
717,Revenue,CCHD,Home care - Elderly MH - North,Day Care / Social Activities,Firstpoint Homecare Ltd,30.72, 03-Mar-2015
718,Revenue,CCHD,Home Care - Elderly - South,Day Care / Social Activities,Firstpoint Homecare Ltd,76.80, 18-Mar-2015
719,Revenue,CCHD,Home Care - Elderly - South,Other Small Contracts,Firstpoint Homecare Ltd,1255.68, 18-Mar-2015
720,Revenue,CCHD,Home Care - Elderly - North,Day Care / Social Activities,Firstpoint Homecare Ltd,38.40, 18-Mar-2015
721,Revenue,CCHD,Home Care - Elderly - North,Other Small Contracts,Firstpoint Homecare Ltd,1363.20, 18-Mar-2015
722,Revenue,CCHD,Under 65s -MH  Home Care Purch,Other Small Contracts,Firstpoint Homecare Ltd,46.08, 18-Mar-2015
723,Revenue,CCHD,Home care - Elderly MH - North,Day Care / Social Activities,Firstpoint Homecare Ltd,46.08, 18-Mar-2015
724,Revenue,CCHD,Home Care - Elderly - South,Day Care / Social Activities,Firstpoint Homecare Ltd,61.44, 23-Mar-2015
725,Revenue,CCHD,Home Care - Elderly - South,Other Small Contracts,Firstpoint Homecare Ltd,1190.40, 23-Mar-2015
726,Revenue,CCHD,Home Care - Elderly - North,Day Care / Social Activities,Firstpoint Homecare Ltd,30.72, 23-Mar-2015
727,Revenue,CCHD,Home Care - Elderly - North,Other Small Contracts,Firstpoint Homecare Ltd,1236.10, 23-Mar-2015
728,Revenue,CCHD,Under 65s -MH  Home Care Purch,Other Small Contracts,Firstpoint Homecare Ltd,46.08, 23-Mar-2015
729,Revenue,CCHD,Home care - Elderly MH - North,Day Care / Social Activities,Firstpoint Homecare Ltd,42.24, 23-Mar-2015
730,Revenue,CCHD,Home Care - Elderly - South,Day Care / Social Activities,Firstpoint Homecare Ltd,92.16, 23-Mar-2015
731,Revenue,CCHD,Home Care - Elderly - South,Other Small Contracts,Firstpoint Homecare Ltd,1236.48, 23-Mar-2015
732,Revenue,CCHD,Home Care - Elderly - North,Day Care / Social Activities,Firstpoint Homecare Ltd,42.24, 23-Mar-2015
733,Revenue,CCHD,Home Care - Elderly - North,Other Small Contracts,Firstpoint Homecare Ltd,1300.17, 23-Mar-2015
734,Revenue,CCHD,Under 65s -MH  Home Care Purch,Other Small Contracts,Firstpoint Homecare Ltd,46.08, 23-Mar-2015
735,Revenue,CCHD,Home care - Elderly MH - North,Day Care / Social Activities,Firstpoint Homecare Ltd,46.08, 23-Mar-2015
736,Revenue,CCHD,Home Care - Elderly - South,Day Care / Social Activities,Firstpoint Homecare Ltd,92.16, 18-Mar-2015
737,Revenue,CCHD,Home Care - Elderly - South,Other Small Contracts,Firstpoint Homecare Ltd,1397.76, 18-Mar-2015
738,Revenue,CCHD,Home Care - Elderly - North,Day Care / Social Activities,Firstpoint Homecare Ltd,38.40, 18-Mar-2015
739,Revenue,CCHD,Home Care - Elderly - North,Other Small Contracts,Firstpoint Homecare Ltd,1259.52, 18-Mar-2015
740,Revenue,CCHD,Under 65s -MH  Home Care Purch,Other Small Contracts,Firstpoint Homecare Ltd,46.08, 18-Mar-2015
741,Revenue,CCHD,Home Care - Elderly - South,Day Care / Social Activities,Firstpoint Homecare Ltd,92.16, 11-Mar-2015
742,Revenue,CCHD,Home Care - Elderly - South,Other Small Contracts,Firstpoint Homecare Ltd,1105.92, 11-Mar-2015
743,Revenue,CCHD,Home Care - Elderly - North,Day Care / Social Activities,Firstpoint Homecare Ltd,46.08, 11-Mar-2015
744,Revenue,CCHD,Home Care - Elderly - North,Other Small Contracts,Firstpoint Homecare Ltd,1029.12, 11-Mar-2015
745,Revenue,CCHD,Under 65s -MH  Home Care Purch,Other Small Contracts,Firstpoint Homecare Ltd,46.08, 11-Mar-2015
746,Revenue,CCHD,SW HAWB Support,Consultants Fees,Five Square Solutions Limited,1650.00, 20-Mar-2015
747,Revenue,CCHD,Freeways,Permanent Residential,Freeways Trust Limited,3611.80, 13-Mar-2015
748,Revenue,CCHD,Freeways,Permanent Residential,Freeways Trust Limited,2269.08, 13-Mar-2015
749,Revenue,CCHD,Freeways,Permanent Residential,Freeways Trust Limited,2346.88, 13-Mar-2015
750,Revenue,CCHD,Freeways,Permanent Residential,Freeways Trust Limited,2993.72, 13-Mar-2015
751,Revenue,CCHD,Freeways,Permanent Residential,Freeways Trust Limited,2346.88, 13-Mar-2015
752,Revenue,CCHD,Freeways,Permanent Residential,Freeways Trust Limited,2357.44, 13-Mar-2015
753,Revenue,CCHD,Freeways,Permanent Residential,Freeways Trust Limited,3242.64, 13-Mar-2015
754,Revenue,CCHD,Freeways,Permanent Residential,Freeways Trust Limited,3522.28, 13-Mar-2015
755,Revenue,CCHD,Freeways,Permanent Residential,Freeways Trust Limited,2666.28, 13-Mar-2015
756,Revenue,CCHD,Freeways,Permanent Residential,Freeways Trust Limited,2681.60, 13-Mar-2015
757,Revenue,CCHD,Freeways,Permanent Residential,Freeways Trust Limited,3211.48, 13-Mar-2015
758,Revenue,CCHD,Freeways,Permanent Residential,Freeways Trust Limited,3077.36, 13-Mar-2015
759,Revenue,CCHD,Freeways,Permanent Residential,Freeways Trust Limited,3573.72, 13-Mar-2015
760,Revenue,CCHD,Freeways,Permanent Residential,Freeways Trust Limited,7276.56, 13-Mar-2015
761,Revenue,CCHD,Supported Living - South,Private & Voluntary Home Care,Freeways Trust Limited,1267.14, 11-Mar-2015
762,Revenue,CCHD,Supported Living - South,Private & Voluntary Home Care,Freeways Trust Limited,1512.72, 11-Mar-2015
763,Revenue,CCHD,Bed Purchasing - North,Permanent Residential,Freeways Trust Ltd,2860.04, 17-Mar-2015
764,Revenue,CCHD,Bed purchasing - S28A Under 65 - South,Permanent Residential,Freeways Trust Ltd,2924.48, 17-Mar-2015
765,Revenue,CCHD,Bed Purchasing - North,Permanent Residential,Freeways Trust Ltd,3129.84, 17-Mar-2015
766,Revenue,CCHD,Bed Purchasing - North,Permanent Residential,Freeways Trust Ltd,2286.96, 17-Mar-2015
767,Revenue,CCHD,Bed Purchasing - North,Permanent Residential,Freeways Trust Ltd,2731.36, 17-Mar-2015
768,Revenue,CCHD,Bed Purchasing - South,Permanent Residential,Freeways Trust Ltd,3338.76, 17-Mar-2015
769,Revenue,CCHD,Bed Purchasing - North,Permanent Residential,Freeways Trust Ltd,2266.40, 17-Mar-2015
770,Revenue,CCHD,Bed Purchasing - South,Permanent Residential,Freeways Trust Ltd,2397.48, 17-Mar-2015
771,Revenue,CCHD,Bed Purchasing - North,Permanent Residential,Freeways Trust Ltd,2731.36, 17-Mar-2015
772,Revenue,CCHD,Bed Purchasing - North,Permanent Residential,Freeways Trust Ltd,3155.72, 17-Mar-2015
773,Revenue,CCHD,18-25 Year Olds,Permanent Residential,Freeways Trust Ltd,3373.20, 17-Mar-2015
774,Revenue,CCHD,Bed Purchasing - North,Permanent Residential,Freeways Trust Ltd,3823.88, 17-Mar-2015
775,Revenue,CCHD,Bed Purchasing - South,Permanent Residential,Freeways Trust Ltd,7730.16, 17-Mar-2015
776,Revenue,CCHD,Home Care - Elderly - South,Day Care / Social Activities,Frenchay Hospital,1981.28, 17-Mar-2015
777,Revenue,CCHD,Bed Purchasing - Southmead Hospital,Permanent Nursing,Frenchay Park Nursing Home,1010.00, 17-Mar-2015
778,Revenue,CCHD,Bed Purchasing - South,Permanent Nursing,Fshc  1St Floor,896.16, 17-Mar-2015
779,Revenue,CCHD,Bed Purchasing - Southmead Hospital,Permanent Residential,Fshc  1St Floor,894.12, 17-Mar-2015
780,Revenue,CCHD,Bed Purchasing - South,Permanent Nursing,Fshc  1St Floor,953.52, 17-Mar-2015
781,Revenue,CCHD,Bed Purchasing - Southmead Hospital,Permanent Nursing,Fshc  1St Floor,1291.56, 17-Mar-2015
782,Revenue,CCHD,Bed Purchasing - Southmead Hospital,Permanent Nursing,Fshc  1St Floor,922.54, 17-Mar-2015
783,Revenue,CCHD,Bed Purchasing - South,Permanent Nursing,Fshc  1St Floor,2673.77, 17-Mar-2015
784,Revenue,CCHD,Bed Purchasing - South,Permanent Nursing,Fshc  1St Floor,1388.20, 17-Mar-2015
785,Revenue,CCHD,Bed Purchasing - South,Permanent Residential,Fshc  1St Floor,1260.20, 17-Mar-2015
786,Revenue,CCHD,Bed Purchasing - Southmead Hospital,Permanent Nursing,Fshc  1St Floor,1352.20, 17-Mar-2015
787,Revenue,CCHD,South Glos Users in South Glos Homes,Permanent Nursing,Fshc  1St Floor,538.61, 17-Mar-2015
788,Revenue,CCHD,Bed Purchasing - Southmead Hospital,Permanent Nursing,Fshc  1St Floor,1388.20, 17-Mar-2015
789,Revenue,CCHD,Bed Purchasing - Southmead Hospital,Permanent Nursing,Fshc  1St Floor,1388.20, 17-Mar-2015
790,Revenue,CCHD,South Glos Users in South Glos Homes,Permanent Nursing,Fshc  1St Floor,998.01, 17-Mar-2015
791,Revenue,CCHD,Bed Purchasing - Southmead Hospital,Permanent Nursing,Fshc  1St Floor,1325.80, 17-Mar-2015
792,Revenue,CCHD,Bed Purchasing - Southmead Hospital,Permanent Nursing,Fshc  1St Floor,1050.56, 17-Mar-2015
793,Revenue,CCHD,Bed Purchasing - South,Permanent Residential,Fshc  1St Floor,1216.24, 17-Mar-2015
794,Revenue,CCHD,Bed Purchasing - Southmead Hospital,Permanent Nursing,Fshc  1St Floor,1198.92, 17-Mar-2015
795,Revenue,CCHD,Bed Purchasing - South,Permanent Nursing,Fshc  1St Floor,1012.92, 17-Mar-2015
796,Revenue,CCHD,Bed Purchasing - Southmead Hospital,Permanent Nursing,Fshc  1St Floor,1388.20, 17-Mar-2015
797,Revenue,CCHD,Bed Purchasing - South,Permanent Nursing,Fshc  1St Floor,1115.96, 17-Mar-2015
798,Revenue,CCHD,Bed Purchasing - Southmead Hospital,Permanent Nursing,Fshc  1St Floor,1140.31, 17-Mar-2015
799,Revenue,CCHD,South Glos Users in South Glos Homes,Permanent Nursing,Fshc  1St Floor,966.33, 17-Mar-2015
800,Revenue,CCHD,Bed Purchasing - Southmead Hospital,Permanent Nursing,Fshc  1St Floor,1365.64, 17-Mar-2015
801,Revenue,CCHD,Bed Purchasing - Southmead Hospital,Permanent Nursing,Fshc  1St Floor,1388.20, 17-Mar-2015
802,Revenue,CCHD,Bed Purchasing - North,Permanent Nursing,Fshc  1St Floor,1884.00, 17-Mar-2015
803,Revenue,CCHD,Bed Purchasing - Southmead Hospital,Permanent Nursing,Fshc  1St Floor,1204.12, 17-Mar-2015
804,Revenue,CCHD,Bed Purchasing - South,Permanent Nursing,Fshc  1St Floor,1388.20, 17-Mar-2015
805,Revenue,CCHD,Bed Purchasing - Southmead Hospital,Permanent Nursing,Fshc  1St Floor,1388.20, 17-Mar-2015
806,Revenue,CCHD,Bed Purchasing - South,Permanent Nursing,Fshc  1St Floor,1337.52, 17-Mar-2015
807,Revenue,CCHD,Bed Purchasing - Southmead Hospital,Permanent Nursing,Fshc  1St Floor,704.50, 17-Mar-2015
808,Revenue,CCHD,Bed Purchasing - South,Permanent Nursing,Fshc  1St Floor,1229.44, 17-Mar-2015
809,Revenue,CCHD,Bed Purchasing - North,Permanent Nursing,Fshc  1St Floor,781.44, 17-Mar-2015
810,Revenue,CCHD,Bed Purchasing - North,Permanent Residential,Fshc  1St Floor,1260.20, 17-Mar-2015
811,Revenue,CCHD,Bed Purchasing - Southmead Hospital,Permanent Nursing,Fshc  1St Floor,1460.96, 17-Mar-2015
812,Revenue,CCHD,Bed Purchasing - Southmead Hospital,Permanent Nursing,Fshc  1St Floor,1304.43, 17-Mar-2015
813,Revenue,CCHD,Bed Purchasing - Southmead Hospital,Permanent Nursing,Fshc  1St Floor,944.48, 17-Mar-2015
814,Revenue,CCHD,Bed Purchasing - North,Permanent Nursing,Fshc  1St Floor,1290.68, 17-Mar-2015
815,Revenue,CCHD,Bed Purchasing - Southmead Hospital,Permanent Nursing,Fshc  1St Floor,1602.96, 17-Mar-2015
816,Revenue,CCHD,Bed Purchasing - Southmead Hospital,Permanent Nursing,Fshc  1St Floor,2154.53, 17-Mar-2015
817,Revenue,CCHD,Bed Purchasing - Southmead Hospital,Permanent Residential,Fshc  1St Floor,1142.92, 17-Mar-2015
818,Revenue,CCHD,Bed Purchasing - North,Permanent Nursing,Fshc  1St Floor,1039.60, 17-Mar-2015
819,Revenue,CCHD,Bed Purchasing - Southmead Hospital,Permanent Nursing,Fshc  1St Floor,6522.88, 17-Mar-2015
820,Revenue,CCHD,Bed Purchasing - Southmead Hospital,Permanent Nursing,Fshc  1St Floor,1104.08, 17-Mar-2015
821,Revenue,CCHD,Bed Purchasing - Southmead Hospital,Permanent Nursing,Fshc  1St Floor,1129.00, 17-Mar-2015
822,Revenue,CCHD,Bed Purchasing - Southmead Hospital,Permanent Nursing,Fshc  1St Floor,1289.20, 17-Mar-2015
823,Revenue,CCHD,Bed Purchasing - Southmead Hospital,Permanent Nursing,Fshc  1St Floor,2032.72, 17-Mar-2015
824,Revenue,CCHD,Bed Purchasing - Southmead Hospital,Permanent Nursing,Fshc  1St Floor,1388.20, 17-Mar-2015
825,Revenue,CCHD,Bed Purchasing - Southmead Hospital,Permanent Nursing,Fshc  1St Floor,1128.80, 17-Mar-2015
826,Revenue,CCHD,Bed Purchasing - Southmead Hospital,Permanent Nursing,Fshc  1St Floor,1536.94, 17-Mar-2015
827,Revenue,CCHD,Bed Purchasing - Southmead Hospital,Permanent Nursing,Fshc  1St Floor,1509.79, 17-Mar-2015
828,Revenue,CCHD,Bed Purchasing - Southmead Hospital,Permanent Nursing,Fshc  1St Floor,1213.04, 17-Mar-2015
829,Revenue,CCHD,Bed Purchasing - North,Permanent Residential,Fshc  1St Floor,1195.91, 17-Mar-2015
830,Revenue,CCHD,Bed Purchasing - South,Permanent Residential,Fshc  1St Floor,1132.60, 17-Mar-2015
831,Revenue,CCHD,Bed Purchasing - Southmead Hospital,Permanent Nursing,Fshc  1St Floor,2060.00, 17-Mar-2015
832,Revenue,CCHD,Bed Purchasing - Southmead Hospital,Permanent Nursing,Fshc  1St Floor,1375.60, 17-Mar-2015
833,Revenue,CCHD,Bed Purchasing - Southmead Hospital,Permanent Nursing,Fshc  1St Floor,1388.20, 17-Mar-2015
834,Revenue,CCHD,Bed Purchasing - North,Permanent Nursing,Fshc  1St Floor,574.28, 17-Mar-2015
835,Revenue,CCHD,Bed Purchasing - North,Permanent Nursing,Fshc  1St Floor,1489.72, 17-Mar-2015
836,Revenue,CCHD,Bed Purchasing - North,Permanent Nursing,Fshc  1St Floor,1289.20, 17-Mar-2015
837,Revenue,CCHD,Bed Purchasing - Southmead Hospital,Permanent Residential,Fshc  1St Floor,621.36, 17-Mar-2015
838,Revenue,CCHD,Bed Purchasing - Southmead Hospital,Permanent Nursing,Fshc  1St Floor,1372.56, 17-Mar-2015
839,Revenue,CCHD,Bed Purchasing - Southmead Hospital,Permanent Nursing,Fshc  1St Floor,1420.56, 17-Mar-2015
840,Revenue,CCHD,Bed Purchasing - Southmead Hospital,Permanent Nursing,Fshc  1St Floor,608.81, 17-Mar-2015
841,Revenue,CCHD,Bed Purchasing - North,Permanent Nursing,Fshc  1St Floor,1312.76, 17-Mar-2015
842,Revenue,CCHD,Bed Purchasing - North,Permanent Nursing,Fshc  1St Floor,907.72, 17-Mar-2015
843,Revenue,CCHD,Bed Purchasing - Southmead Hospital,Permanent Nursing,Fshc  1St Floor,1564.20, 17-Mar-2015
844,Revenue,CCHD,Bed Purchasing - South,Permanent Nursing,Fshc  1St Floor,1338.84, 17-Mar-2015
845,Revenue,CCHD,Bed Purchasing - North,Permanent Nursing,Fshc  1St Floor,1471.32, 17-Mar-2015
846,Revenue,CCHD,Bed Purchasing - North,Permanent Nursing,Fshc  1St Floor,623.08, 17-Mar-2015
847,Revenue,CCHD,Bed Purchasing - North,Permanent Residential,Fshc  1St Floor,1404.96, 17-Mar-2015
848,Revenue,CCHD,Bed Purchasing - North,Permanent Nursing,Fshc  1St Floor,1552.64, 17-Mar-2015
849,Revenue,CCHD,Bed purchasing - Elderly S117 - South,Permanent Nursing,Fshc  1St Floor,1884.00, 17-Mar-2015
850,Revenue,CCHD,Bed Purchasing - North,Permanent Residential,Fshc  1St Floor,1263.96, 17-Mar-2015
851,Revenue,CCHD,Bed Purchasing - Southmead Hospital,Permanent Nursing,Fshc  1St Floor,5479.97, 17-Mar-2015
852,Revenue,CCHD,South Glos Users in South Glos Homes,Permanent Nursing,Fshc  1St Floor,2201.96, 17-Mar-2015
853,Revenue,CCHD,Bed Purchasing - Southmead Hospital,Permanent Nursing,Fshc  1St Floor,1103.88, 17-Mar-2015
854,Revenue,CCHD,Bed Purchasing - Southmead Hospital,Permanent Residential,Fshc  1St Floor,1260.20, 17-Mar-2015
855,Revenue,CCHD,Bed Purchasing - North,Permanent Nursing,Fshc  1St Floor,1388.20, 17-Mar-2015
856,Revenue,CCHD,Bed Purchasing - North,Permanent Residential,Fshc  1St Floor,1401.92, 17-Mar-2015
857,Revenue,CCHD,Bed Purchasing - North,Permanent Nursing,Fshc  1St Floor,1592.20, 17-Mar-2015
858,Revenue,CCHD,Bed Purchasing - North,Permanent Nursing,Fshc  1St Floor,1388.20, 17-Mar-2015
859,Revenue,CCHD,Bed Purchasing - North,Permanent Nursing,Fshc  1St Floor,1097.84, 17-Mar-2015
860,Revenue,CCHD,Bed Purchasing - North,Permanent Residential,Fshc  1St Floor,1260.20, 17-Mar-2015
861,Revenue,CCHD,Bed Purchasing - Southmead Hospital,Permanent Nursing,Fshc  1St Floor,1192.48, 17-Mar-2015
862,Revenue,CCHD,Bed Purchasing - North,Permanent Nursing,Fshc  1St Floor,5751.11, 17-Mar-2015
863,Revenue,CCHD,Bed Purchasing - North,Permanent Nursing,Fshc  1St Floor,1388.20, 17-Mar-2015
864,Revenue,CCHD,Bed Purchasing - North,Permanent Nursing,Fshc  1St Floor,587.40, 17-Mar-2015
865,Revenue,CCHD,Bed Purchasing - Southmead Hospital,Permanent Nursing,Fshc  1St Floor,1388.20, 17-Mar-2015
866,Revenue,CCHD,Bed Purchasing - North,Permanent Nursing,Fshc  1St Floor,738.40, 17-Mar-2015
867,Revenue,CCHD,Bed Purchasing - North,Permanent Nursing,Fshc  1St Floor,1388.20, 17-Mar-2015
868,Revenue,CCHD,South Glos Users in South Glos Homes,Permanent Nursing,Fshc  1St Floor,744.55, 17-Mar-2015
869,Revenue,CCHD,Bed Purchasing - Southmead Hospital,Permanent Nursing,Fshc  1St Floor,1328.04, 17-Mar-2015
870,Revenue,CCHD,Bed Purchasing - North,Permanent Nursing,Fshc  1St Floor,1017.20, 17-Mar-2015
871,Revenue,CCHD,Bed Purchasing - Southmead Hospital,Permanent Nursing,Fshc  1St Floor,1388.20, 17-Mar-2015
872,Revenue,CCHD,Bed Purchasing - Southmead Hospital,Permanent Nursing,Fshc  1St Floor,586.56, 17-Mar-2015
873,Revenue,CCHD,Bed Purchasing - Southmead Hospital,Permanent Nursing,Fshc  1St Floor,1388.20, 17-Mar-2015
874,Revenue,CCHD,Bed Purchasing - Southmead Hospital,Permanent Nursing,Fshc  1St Floor,873.88, 17-Mar-2015
875,Revenue,CCHD,Bed Purchasing - Southmead Hospital,Permanent Nursing,Fshc  1St Floor,1084.40, 17-Mar-2015
876,Revenue,CCHD,Bed Purchasing - Southmead Hospital,Permanent Nursing,Fshc  1St Floor,1312.68, 17-Mar-2015
877,Revenue,CCHD,Bed Purchasing - North,Permanent Nursing,Fshc  1St Floor,1270.20, 17-Mar-2015
878,Revenue,CCHD,Bed Purchasing - South,Permanent Nursing,Fshc  1St Floor,1337.24, 17-Mar-2015
879,Revenue,CCHD,Bed Purchasing - Southmead Hospital,Permanent Nursing,Fshc  1St Floor,1822.56, 17-Mar-2015
880,Revenue,CCHD,Bed Purchasing - North,Permanent Residential,Fshc  1St Floor,3000.64, 17-Mar-2015
881,Revenue,CCHD,Bed Purchasing - North,Permanent Nursing,Fshc  1St Floor,1394.04, 17-Mar-2015
882,Revenue,CCHD,Bed Purchasing - Southmead Hospital,Respite Planned - Residential,Fshc  1St Floor,2696.71, 17-Mar-2015
883,Revenue,CCHD,Bed Purchasing - Southmead Hospital,Permanent Residential,Fshc  1St Floor,1952.00, 17-Mar-2015
884,Revenue,CCHD,Bed Purchasing - Southmead Hospital,Permanent Nursing,Fshc  1St Floor,1319.28, 17-Mar-2015
885,Revenue,CCHD,Bed Purchasing - North,Respite Emergency - Nursing,Fshc  1St Floor,740.14, 17-Mar-2015
886,Revenue,CCHD,Bed Purchasing - South,Permanent Residential,Fshc  1St Floor,1952.00, 17-Mar-2015
887,Revenue,CCHD,Bed Purchasing - Southmead Hospital,Permanent Nursing,Fshc  1St Floor,1381.00, 17-Mar-2015
888,Revenue,CCHD,Bed Purchasing - Southmead Hospital,Permanent Residential,Fshc  1St Floor,1484.20, 17-Mar-2015
889,Revenue,CCHD,Bed Purchasing - Southmead Hospital,Respite Planned - Residential,Fshc  1St Floor,1944.14, 17-Mar-2015
890,Revenue,CCHD,Bed Purchasing - Southmead Hospital,Respite Planned - Residential,Fshc  1St Floor,1756.00, 17-Mar-2015
891,Revenue,CCHD,Bed Purchasing - North,Respite Emergency - Residential,Fshc  1St Floor,2370.29, 17-Mar-2015
892,Revenue,CCHD,Bed Purchasing - North,Respite Emergency - Residential,Fshc  1St Floor,1693.29, 17-Mar-2015
893,Revenue,CCHD,Bed Purchasing - North,Permanent Residential,Fshc  1St Floor,1167.12, 17-Mar-2015
894,Revenue,CCHD,Bed Purchasing - North,Permanent Nursing,Fshc  1St Floor,1143.32, 17-Mar-2015
895,Revenue,CCHD,Bed Purchasing - South,Permanent Nursing,Fshc  1St Floor,1248.96, 17-Mar-2015
896,Revenue,CCHD,Bed Purchasing - Southmead Hospital,Permanent Nursing,Fshc  1St Floor,1373.21, 17-Mar-2015
897,Revenue,CCHD,Bed Purchasing - Southmead Hospital,Permanent Nursing,Fshc  1St Floor,1130.88, 17-Mar-2015
898,Revenue,CCHD,Bed Purchasing - North,Respite Emergency - Residential,Fshc  1St Floor,1756.00, 17-Mar-2015
899,Revenue,CCHD,Bed Purchasing - South,Permanent Nursing,Fshc  1St Floor,6701.50, 17-Mar-2015
900,Revenue,CCHD,Swift Dump Code,Permanent Residential,Fshc  1St Floor,1788.60, 17-Mar-2015
901,Revenue,CCHD,Bed Purchasing - South,Permanent Nursing,Fshc  1St Floor,1356.20, 17-Mar-2015
902,Revenue,CCHD,Bed Purchasing - North,Permanent Nursing,Fshc  1St Floor,1884.00, 17-Mar-2015
903,Revenue,CCHD,Bed Purchasing - Southmead Hospital,Permanent Nursing,Fshc  1St Floor,1983.14, 17-Mar-2015
904,Revenue,CCHD,Bed Purchasing - Southmead Hospital,Permanent Nursing,Fshc  1St Floor,1388.20, 17-Mar-2015
905,Revenue,CCHD,South Glos Users in South Glos Homes,Permanent Nursing,Fshc  1St Floor,649.50, 17-Mar-2015
906,Revenue,CCHD,Bed Purchasing - Southmead Hospital,Permanent Nursing,Fshc  1St Floor,1203.24, 17-Mar-2015
907,Revenue,CCHD,Bed Purchasing - Southmead Hospital,Permanent Nursing,Fshc  1St Floor,1384.20, 17-Mar-2015
908,Revenue,CCHD,Bed Purchasing - South,Permanent Residential,Fshc  1St Floor,901.60, 17-Mar-2015
909,Revenue,CCHD,Bed Purchasing - South,Permanent Nursing,Fshc  1St Floor,1236.24, 17-Mar-2015
910,Revenue,CCHD,Bed Purchasing - South,Permanent Residential,Fshc  1St Floor,1260.20, 17-Mar-2015
911,Revenue,CCHD,Bed Purchasing - Southmead Hospital,Permanent Nursing,Fshc  1St Floor,1388.20, 17-Mar-2015
912,Revenue,CCHD,Bed Purchasing - North,Respite Planned - Residential,Fshc  1St Floor,878.00, 17-Mar-2015
913,Revenue,CCHD,Bed Purchasing - Southmead Hospital,Permanent Nursing,Fshc  1St Floor,1388.20, 17-Mar-2015
914,Revenue,CCHD,Bed Purchasing - Southmead Hospital,Permanent Nursing,Fshc  1St Floor,1308.28, 17-Mar-2015
915,Revenue,CCHD,Bed Purchasing - Southmead Hospital,Permanent Nursing,Fshc  1St Floor,997.48, 17-Mar-2015
916,Revenue,CCHD,Bed Purchasing - Southmead Hospital,Permanent Residential,Fshc  1St Floor,1475.64, 17-Mar-2015
917,Revenue,CCHD,Bed Purchasing - South,Permanent Nursing,Fshc  1St Floor,2826.00, 17-Mar-2015
918,Revenue,CCHD,Bed purchasing - Elderly S117 - South,Permanent Nursing,Fshc  1St Floor,1884.00, 17-Mar-2015
919,Revenue,CCHD,Bed Purchasing - Southmead Hospital,Permanent Residential,Fshc  1St Floor,1122.08, 17-Mar-2015
920,Revenue,CCHD,Bed Purchasing - South,Permanent Nursing,Fshc  1St Floor,1385.40, 17-Mar-2015
921,Revenue,CCHD,Bed Purchasing - South,Permanent Residential,Fshc  1St Floor,1371.16, 17-Mar-2015
922,Revenue,CCHD,Bed Purchasing - Southmead Hospital,Permanent Nursing,Fshc  1St Floor,777.80, 17-Mar-2015
923,Revenue,CCHD,Bed Purchasing - North,Permanent Residential,Fshc  1St Floor,1216.92, 17-Mar-2015
924,Revenue,CCHD,Bed Purchasing - South,Permanent Nursing,Fshc  1St Floor,1193.88, 17-Mar-2015
925,Revenue,CCHD,Bed Purchasing - South,Permanent Nursing,Fshc  1St Floor,1304.72, 17-Mar-2015
926,Revenue,CCHD,Bed Purchasing - South,Permanent Nursing,Fshc  1St Floor,1668.40, 17-Mar-2015
927,Revenue,CCHD,Bed Purchasing - South,Permanent Nursing,Fshc  1St Floor,1132.32, 17-Mar-2015
928,Revenue,CCHD,Bed Purchasing - Southmead Hospital,Permanent Nursing,Fshc  1St Floor,1224.08, 17-Mar-2015
929,Revenue,CCHD,Bed Purchasing - Southmead Hospital,Permanent Nursing,Fshc  1St Floor,958.64, 17-Mar-2015
930,Revenue,CCHD,Bed Purchasing - Southmead Hospital,Permanent Nursing,Fshc  1St Floor,1549.00, 17-Mar-2015
931,Revenue,CCHD,Bed Purchasing - Southmead Hospital,Permanent Nursing,Fshc  1St Floor,1364.92, 17-Mar-2015
932,Revenue,CCHD,Bed Purchasing - Southmead Hospital,Permanent Nursing,Fshc  1St Floor,1388.20, 17-Mar-2015
933,Revenue,CCHD,Bed Purchasing - Southmead Hospital,Permanent Nursing,Fshc  1St Floor,881.80, 17-Mar-2015
934,Revenue,CCHD,Bed Purchasing - South,Permanent Nursing,Fshc  1St Floor,1199.48, 17-Mar-2015
935,Revenue,CCHD,Bed Purchasing - South,Permanent Nursing,Fshc  1St Floor,3610.75, 17-Mar-2015
936,Revenue,CCHD,Bed Purchasing - South,Permanent Residential,Fshc  1St Floor,2704.20, 17-Mar-2015
937,Revenue,CCHD,Bed Purchasing - North,Permanent Nursing,Fshc  1St Floor,1402.40, 17-Mar-2015
938,Revenue,CCHD,Bed Purchasing - Southmead Hospital,Permanent Nursing,Fshc  1St Floor,923.92, 17-Mar-2015
939,Revenue,CCHD,Bed Purchasing - North,Respite Emergency - Residential,Fshc  1St Floor,1898.20, 17-Mar-2015
940,Revenue,CCHD,Bed Purchasing - Southmead Hospital,Permanent Nursing,Fshc  1St Floor,1284.32, 17-Mar-2015
941,Revenue,CCHD,Bed Purchasing - North,Permanent Nursing,Fshc  1St Floor,1346.88, 17-Mar-2015
942,Revenue,CCHD,Bed Purchasing - South,Permanent Nursing,Fshc  1St Floor,1196.88, 17-Mar-2015
943,Revenue,CCHD,Bed Purchasing - Southmead Hospital,Permanent Residential,Fshc  1St Floor,1550.64, 17-Mar-2015
944,Revenue,CCHD,Bed Purchasing - North,Permanent Nursing,Fshc  1St Floor,843.72, 17-Mar-2015
945,Revenue,CCHD,Bed Purchasing - North,Permanent Nursing,Fshc  1St Floor,1496.20, 17-Mar-2015
946,Revenue,CCHD,Bed Purchasing - North,Permanent Nursing,Fshc  1St Floor,1229.36, 17-Mar-2015
947,Revenue,CCHD,Bed Purchasing - Southmead Hospital,Permanent Nursing,Fshc  1St Floor,1344.20, 17-Mar-2015
948,Revenue,CCHD,Bed Purchasing - South,Permanent Nursing,Fshc  1St Floor,857.04, 17-Mar-2015
949,Revenue,CCHD,Bed Purchasing - North,Permanent Nursing,Fshc  1St Floor,1154.04, 17-Mar-2015
950,Revenue,CCHD,Bed Purchasing - Southmead Hospital,Permanent Nursing,Fshc  1St Floor,1496.20, 17-Mar-2015
951,Revenue,CCHD,Bed Purchasing - North,Permanent Nursing,Fshc  1St Floor,1368.56, 17-Mar-2015
952,Revenue,CCHD,Bed Purchasing - South,Permanent Nursing,Fshc  1St Floor,2593.25, 17-Mar-2015
953,Revenue,CCHD,Bed Purchasing - South,Permanent Nursing,Fshc  1St Floor,1320.20, 17-Mar-2015
954,Revenue,CCHD,Bed Purchasing - Southmead Hospital,Permanent Residential,Fshc  1St Floor,1233.08, 17-Mar-2015
955,Revenue,CCHD,Bed Purchasing - Southmead Hospital,Permanent Nursing,Fshc  1St Floor,1263.24, 17-Mar-2015
956,Revenue,CCHD,Bed Purchasing - Southmead Hospital,Permanent Nursing,Fshc  1St Floor,1236.88, 17-Mar-2015
957,Revenue,CCHD,Bed purchasing - Elderly S117 - South,Permanent Nursing,Fshc  1St Floor,1992.00, 17-Mar-2015
958,Revenue,CCHD,Bed Purchasing - North,Permanent Residential,Fshc  1St Floor,1125.72, 17-Mar-2015
959,Revenue,CCHD,Bed Purchasing - Southmead Hospital,Permanent Nursing,Fshc  1St Floor,950.68, 17-Mar-2015
960,Revenue,CCHD,Bed Purchasing - Elderly S117- North,Permanent Nursing,Fshc  1St Floor,1992.00, 17-Mar-2015
961,Revenue,CCHD,Bed Purchasing - North,Permanent Nursing,Fshc  1St Floor,1727.86, 17-Mar-2015
962,Revenue,CCHD,Bed Purchasing - Frenchay Hospital,Permanent Nursing,Fshc  1St Floor,9725.30, 17-Mar-2015
963,Revenue,CCHD,Bed Purchasing - Southmead Hospital,Permanent Nursing,Fshc  1St Floor,12948.00, 17-Mar-2015
964,Revenue,CCHD,Bed Purchasing - Southmead Hospital,Permanent Nursing,Fshc  1St Floor,1346.04, 17-Mar-2015
965,Revenue,CCHD,Bed Purchasing - North,Permanent Residential,Fshc  1St Floor,1432.20, 17-Mar-2015
966,Revenue,CCHD,Bed Purchasing - Southmead Hospital,Permanent Nursing,Fshc  1St Floor,1100.44, 17-Mar-2015
967,Revenue,CCHD,Bed Purchasing - North,Permanent Residential,Fshc  1St Floor,1043.24, 17-Mar-2015
968,Revenue,CCHD,Bed Purchasing - South,Permanent Residential,Fshc  1St Floor,1351.48, 17-Mar-2015
969,Revenue,CCHD,Bed Purchasing - South,Permanent Nursing,Fshc  1St Floor,2244.30, 17-Mar-2015
970,Revenue,CCHD,Bed Purchasing - Southmead Hospital,Permanent Residential,Fshc  1St Floor,806.60, 17-Mar-2015
971,Revenue,CCHD,Bed Purchasing - South,Permanent Residential,Gatchell House,1420.84, 17-Mar-2015
972,Revenue,CCHD,CAH Assistant Directors,Agency Staff (Admin/Support Staff) Pay,Gatenby Sanderson Limited,14012.50, 24-Mar-2015
973,Revenue,CCHD,Alexandra Way,Prop.Serv. General Repairs,George Grimes,1025.00, 04-Mar-2015
974,Revenue,CCHD,Section 117 Placements MH Younger,Permanent Residential,Gladstone House,2762.16, 17-Mar-2015
975,Revenue,CCHD,Bed Purchasing - South,Permanent Residential,Glasallt Fawr,4615.60, 17-Mar-2015
976,Revenue,CCHD,Bed Purchasing - North,Permanent Residential,Glebe House Nursing Home,2147.60, 17-Mar-2015
977,Revenue,CCHD,Bed Purchasing - North,Permanent Nursing,Glebe House Nursing Home,1982.08, 17-Mar-2015
978,Revenue,CCHD,Bed Purchasing - South,Permanent Residential,Glebe House Nursing Home,2044.08, 17-Mar-2015
979,Revenue,CCHD,Bed Purchasing - North,Permanent Residential,Glebe House Nursing Home,1869.44, 17-Mar-2015
980,Revenue,CCHD,Bed Purchasing - North,Permanent Nursing,Glebe House Nursing Home,1832.52, 17-Mar-2015
981,Revenue,CCHD,Bed Purchasing - North,Permanent Nursing,Glebe House Nursing Home,2166.72, 17-Mar-2015
982,Revenue,CCHD,Bed Purchasing - North,Permanent Residential,Glebe House Nursing Home,2593.00, 17-Mar-2015
983,Revenue,CCHD,Mental Health and Emotional Wellbeing,Project Funding,Golden Oldies,1000.00, 31-Mar-2015
984,Revenue,CCHD,Cambrian Green Day Service,Cleaning & Domestic Services,Gompels Healthcare Ltd,620.50, 20-Mar-2015
985,Revenue,CCHD,Bed Purchasing - South,Permanent Residential,Gordena Care Home,2113.64, 17-Mar-2015
986,Revenue,CCHD,Bed Purchasing - South,Permanent Residential,Gordena Care Home,4799.84, 17-Mar-2015
987,Revenue,CCHD,Bed Purchasing - South,Permanent Residential,Gordena Care Home,3159.76, 17-Mar-2015
988,Revenue,CCHD,Bed Purchasing - South,Permanent Residential,Gordena Care Home,2968.16, 17-Mar-2015
989,Revenue,CCHD,Bed Purchasing - South,Permanent Residential,Gordena Care Home,1933.24, 17-Mar-2015
990,Revenue,CCHD,Bed Purchasing - South,Permanent Residential,Gordena Care Limited,4217.76, 17-Mar-2015
991,Revenue,CCHD,Bed purchasing - S28A Under 65 - South,Permanent Residential,Gordena Care Limited,4116.00, 17-Mar-2015
992,Revenue,CCHD,Bed Purchasing - North,Permanent Residential,Gordena Care Limited,4218.96, 17-Mar-2015
993,Revenue,CCHD,Bed Purchasing - South,Permanent Nursing,Gracefields Nursing Home,1705.28, 17-Mar-2015
994,Revenue,CCHD,Bed purchasing - Elderly S117 - South,Permanent Nursing,Gracefields Nursing Home,2395.80, 17-Mar-2015
995,Revenue,CCHD,Bed purchasing - Elderly S117 - South,Permanent Nursing,Gracefields Nursing Home,2356.44, 17-Mar-2015
996,Revenue,CCHD,South Glos Users in South Glos Homes,Permanent Nursing,Gracefields Nursing Home,966.33, 17-Mar-2015
997,Revenue,CCHD,Bed Purchasing - South,Permanent Nursing,Gracefields Nursing Home,2227.80, 17-Mar-2015
998,Revenue,CCHD,Bed Purchasing - Southmead Hospital,Permanent Nursing,Gracefields Nursing Home,1576.80, 17-Mar-2015
999,Revenue,CCHD,South Glos Users in South Glos Homes,Permanent Nursing,Gracefields Nursing Home,1869.29, 17-Mar-2015
1000,Revenue,CCHD,South Glos Users in South Glos Homes,Permanent Nursing,Gracefields Nursing Home,1362.36, 17-Mar-2015
1001,Revenue,CCHD,South Glos Users in South Glos Homes,Permanent Nursing,Gracefields Nursing Home,506.93, 17-Mar-2015
1002,Revenue,CCHD,South Glos Users in South Glos Homes,Permanent Nursing,Gracefields Nursing Home,1394.05, 17-Mar-2015
1003,Revenue,CCHD,Bed Purchasing - Southmead Hospital,Permanent Nursing,Gracefields Nursing Home,1860.64, 17-Mar-2015
1004,Revenue,CCHD,Bed Purchasing - Southmead Hospital,Permanent Nursing,Gracefields Nursing Home,1530.44, 17-Mar-2015
1005,Revenue,CCHD,South Glos Users in South Glos Homes,Permanent Nursing,Gracefields Nursing Home,1029.69, 17-Mar-2015
1006,Revenue,CCHD,Bed Purchasing - North,Permanent Residential,Greensleeves,1331.92, 17-Mar-2015
1007,Revenue,CCHD,Bed Purchasing - South,Permanent Residential,Grove Care,1873.12, 17-Mar-2015
1008,Revenue,CCHD,User Involvement,Other Supplies & Services,Growing Support CIC,4333.75, 27-Mar-2015
1009,Revenue,CCHD,Mental Health and Emotional Wellbeing,Project Funding,Guys and Dolls,1000.00, 30-Mar-2015
1010,Revenue,CCHD,Bed Purchasing - South,Permanent Residential,Gwendoline House,952.12, 17-Mar-2015
1011,Revenue,CCHD,Bed Purchasing - South,Permanent Residential,Gwendoline House,14633.63, 17-Mar-2015
1012,Revenue,CCHD,Bed Purchasing - South,Permanent Residential,Gwendoline House,1143.56, 17-Mar-2015
1013,Revenue,CCHD,Bed Purchasing - South,Permanent Residential,Gwendoline House,1516.28, 17-Mar-2015
1014,Revenue,CCHD,Bed Purchasing - Southmead Hospital,Permanent Residential,Gwendoline House,1620.20, 17-Mar-2015
1015,Revenue,CCHD,Woodleaze,Prop.Serv. General Repairs,H Mealing & Sons Limited,500.00, 19-Mar-2015
1016,Revenue,CCHD,Social Lettings Agency,Fees - General,Individual,15.78, 27-Mar-2015
1017,Revenue,CCHD,Social Lettings Agency,Other Supplies & Services,Individual,508.21, 27-Mar-2015
1018,Revenue,CCHD,Bed Purchasing - South,Permanent Residential,Harefield Hall,1347.12, 17-Mar-2015
1019,Revenue,CCHD,Bed Purchasing - South,Permanent Residential,Harefield Hall,1203.20, 17-Mar-2015
1020,Revenue,CCHD,Bed Purchasing - South,Permanent Residential,Harefield Hall,1140.08, 17-Mar-2015
1021,Revenue,CCHD,Bed Purchasing - South,Permanent Residential,Harefield Hall,1036.40, 17-Mar-2015
1022,Revenue,CCHD,Bed Purchasing - South,Permanent Residential,Harefield Hall,1304.48, 17-Mar-2015
1023,Revenue,CCHD,Bed Purchasing - South,Permanent Residential,Harefield Hall,881.52, 17-Mar-2015
1024,Revenue,CCHD,Bed Purchasing - South,Permanent Residential,Harefield Hall,2004.20, 17-Mar-2015
1025,Revenue,CCHD,Bed Purchasing - North,Permanent Nursing,Hc-One Ltd,1492.36, 17-Mar-2015
1026,Revenue,CCHD,Bed Purchasing - North,Permanent Residential,Hc-One Ltd,1006.84, 17-Mar-2015
1027,Revenue,CCHD,Bed Purchasing - North,Permanent Nursing,Hc-One Ltd,1518.60, 17-Mar-2015
1028,Revenue,CCHD,Bed Purchasing - North,Permanent Nursing,Hc-One Ltd,1496.20, 17-Mar-2015
1029,Revenue,CCHD,Bed Purchasing - South,Permanent Residential,Heathwood Rest Home,1009.80, 17-Mar-2015
1030,Revenue,CCHD,Bed Purchasing - Southmead Hospital,Permanent Residential,Heathwood Rest Home,1009.80, 17-Mar-2015
1031,Revenue,CCHD,Home Care - Elderly - South,Day Care / Social Activities,Helping Hands Homecare,230.69, 05-Mar-2015
1032,Revenue,CCHD,Home Care - Elderly - South,Other Small Contracts,Helping Hands Homecare,1599.19, 05-Mar-2015
1033,Revenue,CCHD,Home Care - Elderly - North,Day Care / Social Activities,Helping Hands Homecare,782.00, 05-Mar-2015
1034,Revenue,CCHD,Home Care - Elderly - North,Other Small Contracts,Helping Hands Homecare,1552.27, 05-Mar-2015
1035,Revenue,CCHD,Day Care - North,Day Care / Social Activities,Helping Hands Homecare,93.84, 05-Mar-2015
1036,Revenue,CCHD,Under 65s -MH  Home Care Purch,Other Small Contracts,Helping Hands Homecare,31.28, 05-Mar-2015
1037,Revenue,CCHD,Home care - Elderly MH - North,Other Small Contracts,Helping Hands Homecare,62.56, 05-Mar-2015
1038,Revenue,CCHD,Home Care - Elderly - South,Day Care / Social Activities,Helping Hands Homecare,246.33, 06-Mar-2015
1039,Revenue,CCHD,Home Care - Elderly - South,Other Small Contracts,Helping Hands Homecare,1552.27, 06-Mar-2015
1040,Revenue,CCHD,Home Care - Elderly - North,Day Care / Social Activities,Helping Hands Homecare,852.38, 06-Mar-2015
1041,Revenue,CCHD,Home Care - Elderly - North,Other Small Contracts,Helping Hands Homecare,1595.28, 06-Mar-2015
1042,Revenue,CCHD,Day Care - North,Day Care / Social Activities,Helping Hands Homecare,93.84, 06-Mar-2015
1043,Revenue,CCHD,Under 65s -MH  Home Care Purch,Other Small Contracts,Helping Hands Homecare,31.28, 06-Mar-2015
1044,Revenue,CCHD,Home care - Elderly MH - North,Other Small Contracts,Helping Hands Homecare,62.56, 06-Mar-2015
1045,Revenue,CCHD,Home Care - Elderly - South,Day Care / Social Activities,Helping Hands Homecare,234.60, 06-Mar-2015
1046,Revenue,CCHD,Home Care - Elderly - South,Other Small Contracts,Helping Hands Homecare,1067.43, 06-Mar-2015
1047,Revenue,CCHD,Home Care - Elderly - North,Day Care / Social Activities,Helping Hands Homecare,828.92, 06-Mar-2015
1048,Revenue,CCHD,Home Care - Elderly - North,Other Small Contracts,Helping Hands Homecare,1497.53, 06-Mar-2015
1049,Revenue,CCHD,Day Care - North,Day Care / Social Activities,Helping Hands Homecare,93.84, 06-Mar-2015
1050,Revenue,CCHD,Under 65s -MH  Home Care Purch,Other Small Contracts,Helping Hands Homecare,31.28, 06-Mar-2015
1051,Revenue,CCHD,Home care - Elderly MH - North,Other Small Contracts,Helping Hands Homecare,62.56, 06-Mar-2015
1052,Revenue,CCHD,S117 Placements PCT,Permanent Residential,Hesley Hall,18209.52, 17-Mar-2015
1053,Revenue,CCHD,Bed Purchasing - Southmead Hospital,Permanent Residential,High Border Lodge,1442.96, 17-Mar-2015
1054,Revenue,CCHD,Bed Purchasing - Southmead Hospital,Permanent Residential,Highfield House,2100.30, 17-Mar-2015
1055,Revenue,CCHD,Bed Purchasing - Southmead Hospital,Permanent Residential,Highgate Studios,1174.24, 17-Mar-2015
1056,Revenue,CCHD,Bed Purchasing - North,Permanent Residential,Holmleigh Care Homes Ltd,4059.84, 17-Mar-2015
1057,Revenue,CCHD,Bed Purchasing - South,Permanent Residential,Holmleigh Care Homes Ltd,5102.60, 17-Mar-2015
1058,Revenue,CCHD,Bed Purchasing - North,Permanent Residential,Home Farm Trust Ltd  5-6 Brook Office Pa,2852.08, 17-Mar-2015
1059,Revenue,CCHD,Bed Purchasing - South,Permanent Residential,Home Farm Trust Ltd  5-6 Brook Office Pa,5126.28, 17-Mar-2015
1060,Revenue,CCHD,Bed Purchasing - North,Permanent Residential,Home Farm Trust Ltd  5-6 Brook Office Pa,3442.72, 17-Mar-2015
1061,Revenue,CCHD,Bed Purchasing - South,Permanent Residential,Home Farm Trust Ltd  5-6 Brook Office Pa,5550.52, 17-Mar-2015
1062,Revenue,CCHD,18-25 Year Olds,Permanent Residential,Home From Home Care Ltd,8988.20, 17-Mar-2015
1063,Revenue,CCHD,Tenancy Start Up Scheme,Other Supplies & Services,Home Turf Lettings,1009.92, 27-Mar-2015
1064,Revenue,CCHD,Tenancy Start Up Scheme,Other Supplies & Services,Home Turf Lettings,1262.48, 30-Mar-2015
1065,Revenue,CCHD,Tenancy Start Up Scheme,Other Supplies & Services,Home Turf Lettings,2100.20, 30-Mar-2015
1066,Revenue,CCHD,Home Care - Elderly - South,Other Small Contracts,Homecare 4U,463.32, 17-Mar-2015
1067,Revenue,CCHD,Home Care - Elderly - North,Other Small Contracts,Homecare 4U,205.92, 17-Mar-2015
1068,Revenue,CCHD,Home Care - Elderly - South,Other Small Contracts,Homecare 4U,467.28, 17-Mar-2015
1069,Revenue,CCHD,Home Care - Elderly - North,Other Small Contracts,Homecare 4U,209.88, 17-Mar-2015
1070,Revenue,CCHD,Bed Purchasing - North,Permanent Residential,Homes Caring For Autism Ltd  Churchill H,9907.24, 17-Mar-2015
1071,Revenue,CCHD,18-25 Year Olds,Permanent Residential,Homes Caring For Autism Ltd  Churchill H,12903.72, 17-Mar-2015
1072,Revenue,CCHD,Bed Purchasing - Southmead Hospital,Permanent Nursing,Horfield Care Limited,2490.80, 17-Mar-2015
1073,Revenue,CCHD,Bed Purchasing - Southmead Hospital,Permanent Nursing,Horfield Care Limited,2490.80, 17-Mar-2015
1074,Revenue,CCHD,Bed Purchasing - Southmead Hospital,Permanent Nursing,Horfield Care Limited,1495.38, 17-Mar-2015
1075,Revenue,CCHD,Bed Purchasing - Southmead Hospital,Permanent Nursing,Horfield Care Limited,1327.88, 17-Mar-2015
1076,Revenue,CCHD,Bed Purchasing - Southmead Hospital,Permanent Nursing,Horfield Care Limited,2134.97, 17-Mar-2015
1077,Revenue,CCHD,Bed Purchasing - South,Permanent Nursing,Horfield Care Limited,1551.44, 17-Mar-2015
1078,Revenue,CCHD,Bed Purchasing - Southmead Hospital,Permanent Nursing,Horfield Care Limited,1650.04, 17-Mar-2015
1079,Revenue,CCHD,Bed Purchasing - North,Permanent Nursing,Horfield Care Limited,2490.80, 17-Mar-2015
1080,Revenue,CCHD,Bed Purchasing - South,Permanent Nursing,Horfield Care Limited,1225.76, 17-Mar-2015
1081,Revenue,CCHD,Bed Purchasing - Southmead Hospital,Permanent Nursing,Horfield Care Limited,2490.80, 17-Mar-2015
1082,Revenue,CCHD,Bed Purchasing - Southmead Hospital,Respite Planned - Nursing,Horfield Care Limited,2047.24, 17-Mar-2015
1083,Revenue,CCHD,Bed Purchasing - South,Respite Emergency - Nursing,Horfield Care Limited,1096.74, 17-Mar-2015
1084,Revenue,CCHD,Home Care - Elderly - North,Private & Voluntary Home Care,Housing 21,38183.98, 10-Mar-2015
1085,Revenue,CCHD,Home Care - Elderly - North,Day Care / Social Activities,Humphrey Repton Day Centre,640.00, 13-Mar-2015
1086,Revenue,CCHD,User Involvement,Other Supplies & Services,Inclusive Media Solutions,3200.00, 31-Mar-2015
1087,Revenue,CCHD,Information Systems - Software,Software Support & Maintenance,Infosol Limited,6120.00, 16-Mar-2015
1088,Revenue,CCHD,Tenancy Start Up Scheme,Recovery of Expenditure,Insisys ltd,1217.75, 16-Mar-2015
1089,Revenue,CCHD,Care Management Team - South,Agency Staff (Operational)/PCT Pay,IPE,3176.36, 02-Mar-2015
1090,Revenue,CCHD,Social Lettings Agency,Fees - General,Individual,11.60, 11-Mar-2015
1091,Revenue,CCHD,Social Lettings Agency,Other Supplies & Services,Individual,589.41, 11-Mar-2015
1092,Revenue,CCHD,Tenancy Start Up Scheme,Fees & Charges Income - General,Individual,1400.00, 20-Mar-2015
1093,Revenue,CCHD,Tenancy Start Up Scheme,Other Supplies & Services,Individual,1300.00, 25-Mar-2015
1094,Revenue,CCHD,Homeless - Private Sector Leasing,Other Supplies & Services,Individual,594.00, 13-Mar-2015
1095,Revenue,CCHD,Training - Adult Services,Training Expenses,JK Training,1050.00, 27-Mar-2015
1096,Revenue,CCHD,Training - Adult Services,Training Expenses,JK Training,700.00, 27-Mar-2015
1097,Revenue,CCHD,TSG Practice Placements,Training Expenses,Individual,1000.00, 06-Mar-2015
1098,Revenue,CCHD,Mental Health and Emotional Wellbeing,Project Funding,Juice Community Project CIC,1000.00, 30-Mar-2015
1099,Revenue,CCHD,Home Care - Elderly - South,Supported Living,Julia Simone- Supp. Ind.,1165.80, 17-Mar-2015
1100,Revenue,CCHD,Younger MH non-res purchasing,Supported Living,Julia Simone- Supp. Ind.,1165.80, 17-Mar-2015
1101,Revenue,CCHD,Home Care - Elderly - North,Supported Living,Julia Simone- Supp. Ind.,1165.80, 17-Mar-2015
1102,Revenue,CCHD,Younger MH non-res purchasing,Supported Living,Julia Simone- Supp. Ind.,1165.80, 17-Mar-2015
1103,Revenue,CCHD,Bed Purchasing - South,Permanent Residential,Julia Simone- Supp. Ind.,3960.52, 17-Mar-2015
1104,Revenue,CCHD,Bed purchasing -S28A  Under 65 - North,Permanent Residential,Julia Simone- Supp. Ind.,3494.52, 17-Mar-2015
1105,Revenue,CCHD,Tenancy Start Up Scheme,Other Supplies & Services,K A Properties t/a Martin and Co,1506.24, 12-Mar-2015
1106,Revenue,CCHD,Management & Support costs,Consultants Fees,K J Harwood Limited,1365.40, 26-Mar-2015
1107,Revenue,CCHD,Bed Purchasing - South,Permanent Residential,Karenza Ltd,1135.53, 17-Mar-2015
1108,Revenue,CCHD,Bed Purchasing - South,Permanent Residential,Kenver House Residential Home,2484.73, 17-Mar-2015
1109,Revenue,CCHD,Bed Purchasing - Southmead Hospital,Permanent Residential,Kenver House Residential Home,1643.72, 17-Mar-2015
1110,Revenue,CCHD,Bed Purchasing - Southmead Hospital,Permanent Residential,Kenver House Residential Home,1671.08, 17-Mar-2015
1111,Revenue,CCHD,Bed Purchasing - South,Permanent Residential,Kenver House Residential Home,1527.68, 17-Mar-2015
1112,Revenue,CCHD,Bed Purchasing - South,Permanent Residential,Kenver House Residential Home,1136.68, 17-Mar-2015
1113,Revenue,CCHD,Bed Purchasing - South,Permanent Residential,Kenver House Residential Home,1370.92, 17-Mar-2015
1114,Revenue,CCHD,Bed Purchasing - South,Permanent Residential,Kenver House Residential Home,1691.08, 17-Mar-2015
1115,Revenue,CCHD,Bed Purchasing - South,Permanent Residential,Kenver House Residential Home,1671.08, 17-Mar-2015
1116,Revenue,CCHD,Bed Purchasing - South,Permanent Residential,Kenver House Residential Home,835.54, 17-Mar-2015
1117,Revenue,CCHD,Bed Purchasing - South,Permanent Residential,Kenver House Residential Home,2166.88, 17-Mar-2015
1118,Revenue,CCHD,Bed Purchasing - South,Permanent Residential,Kenver House Residential Home,1635.08, 17-Mar-2015
1119,Revenue,CCHD,Bed Purchasing - Southmead Hospital,Permanent Residential,Kenver House Residential Home,1671.00, 17-Mar-2015
1120,Revenue,CCHD,Bed Purchasing - South,Permanent Residential,Kenver House Residential Home,1414.64, 17-Mar-2015
1121,Revenue,CCHD,Bed Purchasing - Southmead Hospital,Permanent Residential,Kenver House Residential Home,1562.40, 17-Mar-2015
1122,Revenue,CCHD,Bed Purchasing - North,Permanent Nursing,Kingfisher Lodge Care Centre,2514.24, 17-Mar-2015
1123,Revenue,CCHD,Mental Health and Emotional Wellbeing,Project Funding,Kingsmeadow Community Flat,8762.00, 30-Mar-2015
1124,Revenue,CCHD,Bed Purchasing - North,Permanent Residential,Kisimul Group,11388.88, 17-Mar-2015
1125,Revenue,CCHD,Home Care - Elderly - South,Other Small Contracts,Kumari Care Limited,2983.78, 19-Mar-2015
1126,Revenue,CCHD,Home Care - Elderly - North,Other Small Contracts,Kumari Care Limited,833.86, 19-Mar-2015
1127,Revenue,CCHD,Day Care - South,Day Care / Social Activities,Kumari Care Limited,96.50, 19-Mar-2015
1128,Revenue,CCHD,Home Care - Elderly - South,Other Small Contracts,Kumari Care Limited,2926.14, 17-Mar-2015
1129,Revenue,CCHD,Home Care - Elderly - North,Other Small Contracts,Kumari Care Limited,833.90, 17-Mar-2015
1130,Revenue,CCHD,Day Care - South,Day Care / Social Activities,Kumari Care Limited,96.50, 17-Mar-2015
1131,Revenue,CCHD,Home Care - Elderly - South,Day Care / Social Activities,Kumari Care Limited,96.50, 30-Mar-2015
1132,Revenue,CCHD,Home Care - Elderly - South,Other Small Contracts,Kumari Care Limited,2883.42, 30-Mar-2015
1133,Revenue,CCHD,Home Care - Elderly - North,Other Small Contracts,Kumari Care Limited,832.66, 30-Mar-2015
1134,Revenue,CCHD,Bed Purchasing - North,Permanent Nursing,Leonard Cheshire  National Account Centr,5036.48, 17-Mar-2015
1135,Revenue,CCHD,Bed Purchasing - North,Permanent Residential,Leonard Cheshire  National Account Centr,2910.92, 17-Mar-2015
1136,Revenue,CCHD,Bed Purchasing - South,Permanent Residential,Leonard Cheshire  National Account Centr,3339.04, 17-Mar-2015
1137,Revenue,CCHD,Bed Purchasing - North,Permanent Nursing,Leonard Cheshire  National Account Centr,3520.60, 17-Mar-2015
1138,Revenue,CCHD,Bed Purchasing - North,Permanent Nursing,Leonard Cheshire  National Account Centr,2764.56, 17-Mar-2015
1139,Revenue,CCHD,18-25 Year Olds,Permanent Residential,Leonard Cheshire  National Account Centr,3196.52, 17-Mar-2015
1140,Revenue,CCHD,Bed Purchasing - North,Permanent Residential,Leonard Cheshire  National Account Centr,11918.96, 17-Mar-2015
1141,Revenue,CCHD,Bed Purchasing - North,Permanent Residential,Leonard Cheshire  National Account Centr,11915.84, 17-Mar-2015
1142,Revenue,CCHD,Bed Purchasing - South,Permanent Residential,Leonard Cheshire  National Account Centr,8984.16, 17-Mar-2015
1143,Revenue,CCHD,Bed Purchasing - North,Permanent Nursing,Leonard Cheshire  National Account Centr,2881.12, 17-Mar-2015
1144,Revenue,CCHD,Bed Purchasing - North,Permanent Nursing,Leonard Cheshire  National Account Centr,3869.32, 17-Mar-2015
1145,Revenue,CCHD,Bed Purchasing - North,Permanent Residential,Leonard Cheshire  National Account Centr,2932.64, 17-Mar-2015
1146,Revenue,CCHD,Bed Purchasing - North,Permanent Nursing,Leonard Cheshire  National Account Centr,3271.52, 17-Mar-2015
1147,Revenue,CCHD,Bed Purchasing - North,Permanent Nursing,Leonard Cheshire  National Account Centr,11206.16, 17-Mar-2015
1148,Revenue,CCHD,Bed Purchasing - South,Permanent Nursing,Leonard Cheshire  National Account Centr,2908.60, 17-Mar-2015
1149,Revenue,CCHD,Bed Purchasing - Southmead Hospital,Permanent Nursing,Leonard Cheshire  National Account Centr,3041.76, 17-Mar-2015
1150,Revenue,CCHD,South Glos Users in all other LA Homes,Permanent Nursing,Leonard Cheshire  National Account Centr,610.44, 17-Mar-2015
1151,Revenue,CCHD,Bed Purchasing - North,Permanent Nursing,Leonard Cheshire  National Account Centr,3358.64, 17-Mar-2015
1152,Revenue,CCHD,Bed Purchasing - North,Permanent Nursing,Leonard Cheshire  National Account Centr,4127.12, 17-Mar-2015
1153,Revenue,CCHD,Bed Purchasing - South,Permanent Nursing,Leonard Cheshire  National Account Centr,9121.76, 17-Mar-2015
1154,Revenue,CCHD,Woodleaze,Furniture & Fittings Loose,Let Us Furnish,1612.50, 11-Mar-2015
1155,Revenue,CCHD,Bed Purchasing - Southmead Hospital,Permanent Residential,Little Croft,1080.92, 17-Mar-2015
1156,Revenue,CCHD,Bed Purchasing - Southmead Hospital,Permanent Residential,Little Croft,1252.04, 17-Mar-2015
1157,Revenue,CCHD,Bed Purchasing - Southmead Hospital,Permanent Residential,Little Croft,1268.20, 17-Mar-2015
1158,Revenue,CCHD,Bed Purchasing - South,Permanent Residential,Little Croft,1570.60, 17-Mar-2015
1159,Revenue,CCHD,Bed Purchasing - South,Respite Planned - Residential,Little Croft,3850.00, 17-Mar-2015
1160,Revenue,CCHD,Bed Purchasing - Southmead Hospital,Permanent Residential,Little Croft,1287.96, 17-Mar-2015
1161,Revenue,CCHD,Bed Purchasing - South,Permanent Residential,Little Croft,903.84, 17-Mar-2015
1162,Revenue,CCHD,Bed Purchasing - Southmead Hospital,Permanent Residential,Little Croft,1748.76, 17-Mar-2015
1163,Revenue,CCHD,Bed Purchasing - Southmead Hospital,Permanent Residential,Little Croft,1432.20, 17-Mar-2015
1164,Revenue,CCHD,Bed Purchasing - South,Permanent Residential,Little Croft,1234.96, 17-Mar-2015
1165,Revenue,CCHD,Bed Purchasing - South,Permanent Residential,Little Croft,1405.40, 17-Mar-2015
1166,Revenue,CCHD,Bed Purchasing - Southmead Hospital,Permanent Residential,Little Croft,1260.20, 17-Mar-2015
1167,Revenue,CCHD,Bed Purchasing - North,Permanent Residential,Little Croft,1367.56, 17-Mar-2015
1168,Revenue,CCHD,Bed Purchasing - Southmead Hospital,Permanent Residential,Little Croft,1260.20, 17-Mar-2015
1169,Revenue,CCHD,Bed Purchasing - North,Permanent Residential,Littlecroft Residential Homes  Longcroft,6481.28, 17-Mar-2015
1170,Revenue,CCHD,Home Care - Elderly - North,Day Care / Social Activities,Lloyds TSB Commercial Finance Limited,117.60, 11-Mar-2015
1171,Revenue,CCHD,Home Care - Elderly - North,Other Small Contracts,Lloyds TSB Commercial Finance Limited,6249.60, 11-Mar-2015
1172,Revenue,CCHD,Home Care - Elderly - North,Day Care / Social Activities,Lloyds TSB Commercial Finance Limited,260.40, 18-Mar-2015
1173,Revenue,CCHD,Home Care - Elderly - North,Other Small Contracts,Lloyds TSB Commercial Finance Limited,6409.20, 18-Mar-2015
1174,Revenue,CCHD,Home Care - Elderly - North,Day Care / Social Activities,Lloyds TSB Commercial Finance Limited,214.20, 18-Mar-2015
1175,Revenue,CCHD,Home Care - Elderly - North,Other Small Contracts,Lloyds TSB Commercial Finance Limited,6291.60, 18-Mar-2015
1176,Revenue,CCHD,Home Care - Elderly - North,Day Care / Social Activities,Lloyds TSB Commercial Finance Limited,256.20, 31-Mar-2015
1177,Revenue,CCHD,Home Care - Elderly - North,Other Small Contracts,Lloyds TSB Commercial Finance Limited,6631.80, 31-Mar-2015
1178,Revenue,CCHD,Home Care - Elderly - North,Day Care / Social Activities,Lloyds TSB Commercial Finance Limited,218.40, 31-Mar-2015
1179,Revenue,CCHD,Home Care - Elderly - North,Other Small Contracts,Lloyds TSB Commercial Finance Limited,6942.60, 31-Mar-2015
1180,Revenue,CCHD,Home Care - Elderly - North,Day Care / Social Activities,Lloyds TSB Commercial Finance Limited,210.00, 31-Mar-2015
1181,Revenue,CCHD,Home Care - Elderly - North,Other Small Contracts,Lloyds TSB Commercial Finance Limited,7030.80, 31-Mar-2015
1182,Revenue,CCHD,Bed Purchasing - Under 65s PWLD - South,Respite Planned - Residential,Lloyds TSB Commercial Finance Limited,9144.52, 11-Mar-2015
1183,Revenue,CCHD,Supported Living - South,Private & Voluntary Home Care,Lloyds TSB Commercial Finance Limited,3465.00, 20-Mar-2015
1184,Revenue,CCHD,Supported Living - South,Private & Voluntary Home Care,Lloyds TSB Commercial Finance Limited,10744.00, 20-Mar-2015
1185,Revenue,CCHD,Supported Living - South,Private & Voluntary Home Care,Lloyds TSB Commercial Finance Limited,3744.56, 20-Mar-2015
1186,Revenue,CCHD,Supported Living - South,Private & Voluntary Home Care,Lloyds TSB Commercial Finance Limited,3955.09, 20-Mar-2015
1187,Revenue,CCHD,Supported Living - South,Private & Voluntary Home Care,Lloyds TSB Commercial Finance Limited,3620.94, 20-Mar-2015
1188,Revenue,CCHD,Supported Living - South,Private & Voluntary Home Care,Lloyds TSB Commercial Finance Limited,9157.12, 20-Mar-2015
1189,Revenue,CCHD,Supported Living - South,Private & Voluntary Home Care,Lloyds TSB Commercial Finance Limited,3177.40, 20-Mar-2015
1190,Revenue,CCHD,Supported Living - South,Private & Voluntary Home Care,Lloyds TSB Commercial Finance Limited,7636.00, 20-Mar-2015
1191,Revenue,CCHD,Supported Living - South,Private & Voluntary Home Care,Lloyds TSB Commercial Finance Limited,3794.64, 20-Mar-2015
1192,Revenue,CCHD,Supported Living - North,Private & Voluntary Home Care,Lloyds TSB Commercial Finance Limited,9286.08, 20-Mar-2015
1193,Revenue,CCHD,Supported Living - South,Private & Voluntary Home Care,Lloyds TSB Commercial Finance Limited,3586.01, 20-Mar-2015
1194,Revenue,CCHD,Supported Living - South,Private & Voluntary Home Care,Lloyds TSB Commercial Finance Limited,3310.29, 20-Mar-2015
1195,Revenue,CCHD,Supported Living - South,Private & Voluntary Home Care,Lloyds TSB Commercial Finance Limited,5738.76, 20-Mar-2015
1196,Revenue,CCHD,Supported Living - South,Private & Voluntary Home Care,Lloyds TSB Commercial Finance Limited,3611.20, 20-Mar-2015
1197,Revenue,CCHD,MH Purchasing - Younger,Independent Living,Lloyds TSB Commercial Finance Limited,42168.00, 20-Mar-2015
1198,Revenue,CCHD,Supported Living - South,Private & Voluntary Home Care,Lloyds TSB Commercial Finance Limited,3535.00, 20-Mar-2015
1199,Revenue,CCHD,Supported Living - North,Private & Voluntary Home Care,Lloyds TSB Commercial Finance Limited,7866.88, 20-Mar-2015
1200,Revenue,CCHD,Supported Living - South,Private & Voluntary Home Care,Lloyds TSB Commercial Finance Limited,3413.90, 20-Mar-2015
1201,Revenue,CCHD,Supported Living - South,Private & Voluntary Home Care,Loga Care Ltd (T/A Logacare),3795.33, 05-Mar-2015
1202,Revenue,CCHD,Home Care - Elderly - North,Day Care / Social Activities,Lower Kilcott,1466.00, 17-Mar-2015
1203,Revenue,CCHD,Home Care - Elderly - North,Day Care / Social Activities,Lower Kilcott,702.56, 17-Mar-2015
1204,Revenue,CCHD,Home Care - Elderly - North,Day Care / Social Activities,Lower Kilcott,560.64, 17-Mar-2015
1205,Revenue,CCHD,Homelessness Grant,Other Supplies & Services,Mainstay Group Limited,1513.00, 31-Mar-2015
1206,Revenue,CCHD,Bed Purchasing - Southmead Hospital,Permanent Nursing,Majestic 3 Limited,1000.20, 17-Mar-2015
1207,Revenue,CCHD,Purchase of Non-Res Care - North,Day Care / Social Activities,Make It Mentoring (MiM),2464.00, 02-Mar-2015
1208,Revenue,CCHD,Purchase of Non-Res Care - North,Day Care / Social Activities,Make It Mentoring (MiM),1960.00, 05-Mar-2015
1209,Revenue,CCHD,Purchase of Non-Res Care - North,Day Care / Social Activities,Make It Mentoring (MiM),784.00, 13-Mar-2015
1210,Revenue,CCHD,Purchase of Non-Res Care - South,Day Care / Social Activities,Make It Mentoring (MiM),560.00, 31-Mar-2015
1211,Revenue,CCHD,Bed Purchasing - Southmead Hospital,Permanent Residential,Manor Cottage,1260.20, 17-Mar-2015
1212,Revenue,CCHD,Bed Purchasing - Southmead Hospital,Permanent Residential,Manor Cottage,1032.52, 17-Mar-2015
1213,Revenue,CCHD,Bed Purchasing - South,Permanent Residential,Manor Cottage,1456.60, 17-Mar-2015
1214,Revenue,CCHD,Bed Purchasing - Southmead Hospital,Permanent Residential,Manor Cottage,1260.20, 17-Mar-2015
1215,Revenue,CCHD,Bed Purchasing - North,Permanent Residential,Manton Hall Residential Home,1521.60, 17-Mar-2015
1216,Revenue,CCHD,Section 117 Placements MH Younger,Day Care / Social Activities,Maples Community Care Limited,798.00, 13-Mar-2015
1217,Revenue,CCHD,Section 117 Placements MH Younger,Day Care / Social Activities,Maples Community Care Limited,2597.00, 13-Mar-2015
1218,Revenue,CCHD,Social Lettings Agency,Fees - General,Individual,11.60, 20-Mar-2015
1219,Revenue,CCHD,Social Lettings Agency,Other Supplies & Services,Individual,655.41, 20-Mar-2015
1220,Revenue,CCHD,Bed Purchasing - South,Permanent Residential,Marsden Healthcare Ltd,1263.20, 17-Mar-2015
1221,Revenue,CCHD,Bed Purchasing - South,Permanent Residential,Marsden Healthcare Ltd,3247.80, 17-Mar-2015
1222,Revenue,CCHD,Bed Purchasing - South,Permanent Residential,Marsden Healthcare Ltd,1525.64, 17-Mar-2015
1223,Revenue,CCHD,Bed Purchasing - South,Permanent Nursing,Meadow Care Home,1541.00, 17-Mar-2015
1224,Revenue,CCHD,Home Care - Elderly - South,Day Care / Social Activities,Mears Care,77.00, 06-Mar-2015
1225,Revenue,CCHD,Home Care - Elderly - South,Other Small Contracts,Mears Care,623.70, 06-Mar-2015
1226,Revenue,CCHD,Home Care - Elderly - North,Other Small Contracts,Mears Care,3722.95, 06-Mar-2015
1227,Revenue,CCHD,Day Care - North,Day Care / Social Activities,Mears Care,30.80, 06-Mar-2015
1228,Revenue,CCHD,Under 65s -MH  Home Care Purch,Other Small Contracts,Mears Care,107.80, 06-Mar-2015
1229,Revenue,CCHD,Home Care - Elderly - South,Day Care / Social Activities,Mears Care,88.55, 17-Mar-2015
1230,Revenue,CCHD,Home Care - Elderly - South,Other Small Contracts,Mears Care,546.70, 17-Mar-2015
1231,Revenue,CCHD,Home Care - Elderly - North,Other Small Contracts,Mears Care,3607.45, 17-Mar-2015
1232,Revenue,CCHD,Day Care - North,Day Care / Social Activities,Mears Care,30.80, 17-Mar-2015
1233,Revenue,CCHD,Under 65s -MH  Home Care Purch,Other Small Contracts,Mears Care,119.35, 17-Mar-2015
1234,Revenue,CCHD,Home Care - Elderly - South,Day Care / Social Activities,Mears Care,88.55, 25-Mar-2015
1235,Revenue,CCHD,Home Care - Elderly - South,Other Small Contracts,Mears Care,635.25, 25-Mar-2015
1236,Revenue,CCHD,Home Care - Elderly - North,Other Small Contracts,Mears Care,3457.30, 25-Mar-2015
1237,Revenue,CCHD,Under 65s -MH  Home Care Purch,Other Small Contracts,Mears Care,115.50, 25-Mar-2015
1238,Revenue,CCHD,Home Care - Elderly - South,Day Care / Social Activities,Mears Care,88.55, 26-Mar-2015
1239,Revenue,CCHD,Home Care - Elderly - South,Other Small Contracts,Mears Care,604.45, 26-Mar-2015
1240,Revenue,CCHD,Home Care - Elderly - North,Other Small Contracts,Mears Care,3284.05, 26-Mar-2015
1241,Revenue,CCHD,Under 65s -MH  Home Care Purch,Other Small Contracts,Mears Care,115.50, 26-Mar-2015
1242,Revenue,CCHD,Home Care - Elderly - South,Private & Voluntary Home Care,Mears Care,49219.00, 27-Mar-2015
1243,Revenue,CCHD,Home Care - Elderly - South,Other Small Contracts,Medacs Home Care,427.00, 05-Mar-2015
1244,Revenue,CCHD,Home Care - Elderly - North,Other Small Contracts,Medacs Home Care,441.00, 05-Mar-2015
1245,Revenue,CCHD,Younger MH non-res purchasing,Other Small Contracts,Medacs Home Care,87.50, 05-Mar-2015
1246,Revenue,CCHD,Home Care - Elderly - South,Other Small Contracts,Medacs Home Care,427.00, 09-Mar-2015
1247,Revenue,CCHD,Home Care - Elderly - North,Other Small Contracts,Medacs Home Care,434.00, 09-Mar-2015
1248,Revenue,CCHD,Younger MH non-res purchasing,Other Small Contracts,Medacs Home Care,94.50, 09-Mar-2015
1249,Revenue,CCHD,Home Care - Elderly - South,Other Small Contracts,Medacs Home Care,434.00, 18-Mar-2015
1250,Revenue,CCHD,Home Care - Elderly - North,Other Small Contracts,Medacs Home Care,423.50, 18-Mar-2015
1251,Revenue,CCHD,Younger MH non-res purchasing,Other Small Contracts,Medacs Home Care,91.00, 18-Mar-2015
1252,Revenue,CCHD,NRS Contract,Daily Living Equipment,Medequip Assistive Technology Ltd,23288.29, 27-Mar-2015
1253,Revenue,CCHD,NRS Contract,Daily Living Equipment,Medequip Assistive Technology Ltd,98788.84, 27-Mar-2015
1254,Revenue,CCHD,Bed Purchasing - South,Permanent Residential,Mencap,2252.48, 17-Mar-2015
1255,Revenue,CCHD,Supported Living (S28a) South,Private & Voluntary Home Care,Mencap - PS Central & Cymru,3841.88, 02-Mar-2015
1256,Revenue,CCHD,Supported Living (S28a) South,Private & Voluntary Home Care,Mencap - PS Central & Cymru,3841.88, 23-Mar-2015
1257,Revenue,CCHD,Learning Difficulties Development Fund,Other Supplies & Services,Mencap Employment,720.00, 12-Mar-2015
1258,Revenue,CCHD,Planning and Partnerships Procurement,Other Supplies & Services,Merlin Housing Society,10000.00, 27-Mar-2015
1259,Revenue,CCHD,Mental Health and Emotional Wellbeing,Project Funding,Merlin Housing Society,9000.00, 30-Mar-2015
1260,Revenue,CCHD,Homelessness Grant,Other Supplies & Services,Merlin Housing Society,3489.28, 31-Mar-2015
1261,Revenue,CCHD,Intermediate Care Accommodation,Other Supplies & Services,Merlin Housing Society,969.93, 25-Mar-2015
1262,Revenue,CCHD,Training - Adult Services,Training Expenses,Michael Mandelstam Ltd,860.00, 16-Mar-2015
1263,Revenue,CCHD,Home Care - Elderly - South,Other Small Contracts,MiHomecare,210.60, 25-Mar-2015
1264,Revenue,CCHD,Home Care - Elderly - North,Other Small Contracts,MiHomecare,291.60, 25-Mar-2015
1265,Revenue,CCHD,Home Care - Elderly - South,Supported Living,Mike Durrant - Cherry Orchards,1281.43, 17-Mar-2015
1266,Revenue,CCHD,Home Care - Elderly - South,Supported Living,Mike Durrant - Cherry Orchards,1780.00, 17-Mar-2015
1267,Revenue,CCHD,Home Care - Elderly - South,Supported Living,Mike Durrant - Cherry Orchards,1780.00, 17-Mar-2015
1268,Revenue,CCHD,Bed Purchasing - Southmead Hospital,Permanent Residential,Milburn Finance,1055.44, 17-Mar-2015
1269,Revenue,CCHD,Home Care - Elderly - South,Supported Living,Milestones - Unit 10,3592.96, 17-Mar-2015
1270,Revenue,CCHD,Home Care - Elderly - North,Supported Living,Milestones - Unit 10,4293.72, 17-Mar-2015
1271,Revenue,CCHD,Home Care - Elderly - South,Supported Living,Milestones - Unit 10,3592.96, 17-Mar-2015
1272,Revenue,CCHD,Supported Living (S28a) North,Private & Voluntary Home Care,Milestones - Unit 10,4032.80, 17-Mar-2015
1273,Revenue,CCHD,Home Care - Elderly - South,Supported Living,Milestones - Unit 10,3604.68, 17-Mar-2015
1274,Revenue,CCHD,Home Care - Elderly - South,Supported Living,Milestones - Unit 10,2292.92, 17-Mar-2015
1275,Revenue,CCHD,Supported Living (S28a) North,Private & Voluntary Home Care,Milestones - Unit 10,4002.44, 17-Mar-2015
1276,Revenue,CCHD,Supported Living (S28a) North,Private & Voluntary Home Care,Milestones - Unit 10,4002.44, 17-Mar-2015
1277,Revenue,CCHD,Supported Living (S28a) North,Private & Voluntary Home Care,Milestones - Unit 10,4032.80, 17-Mar-2015
1278,Revenue,CCHD,Supported Living (S28a) South,Supported Living,Milestones - Unit 10,3839.88, 17-Mar-2015
1279,Revenue,CCHD,Supported Living (S28a) North,Private & Voluntary Home Care,Milestones - Unit 10,3564.60, 17-Mar-2015
1280,Revenue,CCHD,Supported Living (S28a) North,Private & Voluntary Home Care,Milestones - Unit 10,3564.60, 17-Mar-2015
1281,Revenue,CCHD,Home Care - Elderly - South,Supported Living,Milestones - Unit 10,2949.92, 17-Mar-2015
1282,Revenue,CCHD,Supported Living (S28a) South,Supported Living,Milestones - Unit 10,5447.00, 17-Mar-2015
1283,Revenue,CCHD,Home Care - Elderly - South,Supported Living,Milestones - Unit 10,2208.68, 17-Mar-2015
1284,Revenue,CCHD,Supported Living (S28a) South,Supported Living,Milestones - Unit 10,2208.68, 17-Mar-2015
1285,Revenue,CCHD,Supported Living (S28a) North,Private & Voluntary Home Care,Milestones - Unit 10,4303.72, 17-Mar-2015
1286,Revenue,CCHD,Supported Living (S28a) North,Private & Voluntary Home Care,Milestones - Unit 10,3576.60, 17-Mar-2015
1287,Revenue,CCHD,Supported Living (S28a) South,Supported Living,Milestones - Unit 10,2088.68, 17-Mar-2015
1288,Revenue,CCHD,Supported Living (S28a) South,Supported Living,Milestones - Unit 10,2208.68, 17-Mar-2015
1289,Revenue,CCHD,Supported Living (S28a) South,Supported Living,Milestones - Unit 10,2949.92, 17-Mar-2015
1290,Revenue,CCHD,Bed Purchasing - North,Permanent Residential,Milestones - Unit 10,2653.24, 17-Mar-2015
1291,Revenue,CCHD,Bed Purchasing - North,Permanent Residential,Milestones - Unit 10,3435.28, 17-Mar-2015
1292,Revenue,CCHD,Bed Purchasing - South,Permanent Residential,Milestones - Unit 10,4867.92, 17-Mar-2015
1293,Revenue,CCHD,Bed Purchasing - South,Permanent Residential,Milestones - Unit 10,5442.48, 17-Mar-2015
1294,Revenue,CCHD,Bed Purchasing - South,Permanent Nursing,Milestones - Unit 10,2740.16, 17-Mar-2015
1295,Revenue,CCHD,Bed Purchasing - South,Permanent Nursing,Milestones - Unit 10,1281.68, 17-Mar-2015
1296,Revenue,CCHD,Bed Purchasing - South,Permanent Residential,Milestones - Unit 10,3605.96, 17-Mar-2015
1297,Revenue,CCHD,Bed purchasing - Elderly S117 - South,Permanent Nursing,Milestones - Unit 10,1992.00, 17-Mar-2015
1298,Revenue,CCHD,Bed purchasing - Elderly S117 - South,Permanent Nursing,Milestones - Unit 10,1992.00, 17-Mar-2015
1299,Revenue,CCHD,Bed Purchasing - South,Permanent Nursing,Milestones - Unit 10,926.60, 17-Mar-2015
1300,Revenue,CCHD,Bed Purchasing - North,Permanent Nursing,Milestones - Unit 10,1421.72, 17-Mar-2015
1301,Revenue,CCHD,Bed Purchasing - North,Respite Emergency - Residential,Milestones - Unit 10,9090.72, 17-Mar-2015
1302,Revenue,CCHD,Bed Purchasing - South,Permanent Residential,Milestones - Unit 10,4125.12, 17-Mar-2015
1303,Revenue,CCHD,Bed purchasing -S28A  Under 65 - North,Permanent Nursing,Milestones - Unit 10,5411.96, 17-Mar-2015
1304,Revenue,CCHD,Bed purchasing -S28A  Under 65 - North,Permanent Residential,Milestones - Unit 10,5334.12, 17-Mar-2015
1305,Revenue,CCHD,Bed purchasing - S28A Under 65 - South,Permanent Residential,Milestones - Unit 10,5527.88, 17-Mar-2015
1306,Revenue,CCHD,Bed Purchasing - South,Permanent Residential,Milestones - Unit 10,1302.92, 17-Mar-2015
1307,Revenue,CCHD,Bed Purchasing - South,Permanent Residential,Milestones - Unit 10,58756.83, 17-Mar-2015
1308,Revenue,CCHD,Bed Purchasing - South,Permanent Residential,Milestones - Unit 10,5534.96, 17-Mar-2015
1309,Revenue,CCHD,Bed purchasing - S28A Under 65 - South,Permanent Nursing,Milestones - Unit 10,7294.32, 17-Mar-2015
1310,Revenue,CCHD,MH Purchasing - Younger,Permanent Residential,Milestones - Unit 10,860.20, 17-Mar-2015
1311,Revenue,CCHD,Bed Purchasing - South,Permanent Residential,Milestones - Unit 10,5124.60, 17-Mar-2015
1312,Revenue,CCHD,Bed Purchasing - North,Permanent Residential,Milestones - Unit 10,4023.56, 17-Mar-2015
1313,Revenue,CCHD,Bed purchasing -S28A  Under 65 - North,Permanent Residential,Milestones - Unit 10,5258.04, 17-Mar-2015
1314,Revenue,CCHD,Bed Purchasing - North,Permanent Residential,Milestones - Unit 10,4634.84, 17-Mar-2015
1315,Revenue,CCHD,Bed purchasing -S28A  Under 65 - North,Permanent Residential,Milestones - Unit 10,7058.72, 17-Mar-2015
1316,Revenue,CCHD,Bed purchasing -S28A  Under 65 - North,Permanent Nursing,Milestones - Unit 10,5801.32, 17-Mar-2015
1317,Revenue,CCHD,Bed Purchasing - South,Permanent Residential,Milestones - Unit 10,4515.52, 17-Mar-2015
1318,Revenue,CCHD,Bed Purchasing - South,Permanent Residential,Milestones - Unit 10,3210.16, 17-Mar-2015
1319,Revenue,CCHD,Bed purchasing -S28A  Under 65 - North,Permanent Residential,Milestones - Unit 10,6755.12, 17-Mar-2015
1320,Revenue,CCHD,Bed purchasing - S28A Under 65 - South,Permanent Residential,Milestones - Unit 10,4525.88, 17-Mar-2015
1321,Revenue,CCHD,Bed Purchasing - S28A - Over 65- North,Permanent Residential,Milestones - Unit 10,6604.52, 17-Mar-2015
1322,Revenue,CCHD,Bed purchasing -S28A  Under 65 - North,Permanent Residential,Milestones - Unit 10,7114.72, 17-Mar-2015
1323,Revenue,CCHD,Bed purchasing -S28A  Under 65 - North,Permanent Residential,Milestones - Unit 10,7058.72, 17-Mar-2015
1324,Revenue,CCHD,Bed Purchasing - LD S28A- Over 65- South,Permanent Residential,Milestones - Unit 10,4098.32, 17-Mar-2015
1325,Revenue,CCHD,Bed purchasing - S28A Under 65 - South,Permanent Residential,Milestones - Unit 10,4867.92, 17-Mar-2015
1326,Revenue,CCHD,Bed purchasing - S28A Under 65 - South,Permanent Residential,Milestones - Unit 10,4761.36, 17-Mar-2015
1327,Revenue,CCHD,Bed purchasing - S28A Under 65 - South,Permanent Residential,Milestones - Unit 10,3663.96, 17-Mar-2015
1328,Revenue,CCHD,Bed Purchasing - LD S28A- Over 65- South,Permanent Residential,Milestones - Unit 10,5091.12, 17-Mar-2015
1329,Revenue,CCHD,Bed Purchasing - LD S28A- Over 65- South,Permanent Residential,Milestones - Unit 10,4919.32, 17-Mar-2015
1330,Revenue,CCHD,Bed Purchasing - LD S28A- Over 65- South,Permanent Residential,Milestones - Unit 10,5075.32, 17-Mar-2015
1331,Revenue,CCHD,Bed Purchasing - LD S28A- Over 65- South,Permanent Residential,Milestones - Unit 10,4353.28, 17-Mar-2015
1332,Revenue,CCHD,Bed Purchasing - LD S28A- Over 65- South,Permanent Residential,Milestones - Unit 10,5170.20, 17-Mar-2015
1333,Revenue,CCHD,Bed Purchasing - S28A - Over 65- North,Permanent Residential,Milestones - Unit 10,2875.08, 17-Mar-2015
1334,Revenue,CCHD,Bed Purchasing - S28A - Over 65- North,Permanent Nursing,Milestones - Unit 10,1030.78, 17-Mar-2015
1335,Revenue,CCHD,Section 117 Placements MH Younger,Permanent Residential,Milestones - Unit 10,1356.00, 17-Mar-2015
1336,Revenue,CCHD,Bed Purchasing - South,Permanent Residential,Milestones - Unit 10,860.20, 17-Mar-2015
1337,Revenue,CCHD,Bed purchasing - S28A Under 65 - South,Permanent Residential,Milestones - Unit 10,5415.92, 17-Mar-2015
1338,Revenue,CCHD,Bed Purchasing - North,Permanent Residential,Milestones - Unit 10,4307.44, 17-Mar-2015
1339,Revenue,CCHD,Bed Purchasing - North,Permanent Nursing,Milestones - Unit 10,6842.60, 17-Mar-2015
1340,Revenue,CCHD,Bed Purchasing - North,Permanent Nursing,Milestones - Unit 10,1104.48, 17-Mar-2015
1341,Revenue,CCHD,Bed Purchasing - South,Permanent Residential,Milestones - Unit 10,4271.52, 17-Mar-2015
1342,Revenue,CCHD,Bed purchasing -S28A  Under 65 - North,Permanent Residential,Milestones - Unit 10,5675.56, 17-Mar-2015
1343,Revenue,CCHD,Bed Purchasing - S28A - Over 65- North,Permanent Residential,Milestones - Unit 10,3599.08, 17-Mar-2015
1344,Revenue,CCHD,Bed Purchasing - Elderly S117- North,Permanent Residential,Milestones - Unit 10,1756.00, 17-Mar-2015
1345,Revenue,CCHD,MH Purchasing - Younger,Permanent Residential,Milestones - Unit 10,1036.60, 17-Mar-2015
1346,Revenue,CCHD,Bed Purchasing - S28A - Over 65- North,Permanent Residential,Milestones - Unit 10,3214.56, 17-Mar-2015
1347,Revenue,CCHD,Bed Purchasing - LD S28A- Over 65- South,Permanent Residential,Milestones - Unit 10,3882.08, 17-Mar-2015
1348,Revenue,CCHD,Bed purchasing - S28A Under 65 - South,Permanent Residential,Milestones - Unit 10,61555.05, 17-Mar-2015
1349,Revenue,CCHD,Bed purchasing - S28A Under 65 - South,Permanent Residential,Milestones - Unit 10,5171.56, 17-Mar-2015
1350,Revenue,CCHD,Bed purchasing - S28A Under 65 - South,Permanent Nursing,Milestones - Unit 10,5364.24, 17-Mar-2015
1351,Revenue,CCHD,Bed Purchasing - LD S28A- Over 65- South,Permanent Nursing,Milestones - Unit 10,5225.52, 17-Mar-2015
1352,Revenue,CCHD,Bed Purchasing - LD S28A- Over 65- South,Permanent Residential,Milestones - Unit 10,4802.88, 17-Mar-2015
1353,Revenue,CCHD,Bed Purchasing - LD S28A- Over 65- South,Permanent Residential,Milestones - Unit 10,4599.84, 17-Mar-2015
1354,Revenue,CCHD,Bed purchasing - S28A Under 65 - South,Permanent Residential,Milestones - Unit 10,6053.44, 17-Mar-2015
1355,Revenue,CCHD,Bed Purchasing - LD S28A- Over 65- South,Permanent Residential,Milestones - Unit 10,4667.16, 17-Mar-2015
1356,Revenue,CCHD,Bed Purchasing - S28A - Over 65- North,Permanent Residential,Milestones - Unit 10,4750.44, 17-Mar-2015
1357,Revenue,CCHD,Bed Purchasing - South,Permanent Nursing,Milestones - Unit 10,3284.32, 17-Mar-2015
1358,Revenue,CCHD,Bed Purchasing - S28A - Over 65- North,Permanent Residential,Milestones - Unit 10,4588.52, 17-Mar-2015
1359,Revenue,CCHD,Bed Purchasing - S28A - Over 65- North,Permanent Residential,Milestones - Unit 10,4759.28, 17-Mar-2015
1360,Revenue,CCHD,Bed purchasing - S28A Under 65 - South,Permanent Residential,Milestones - Unit 10,4756.28, 17-Mar-2015
1361,Revenue,CCHD,Bed Purchasing - S28A - Over 65- North,Permanent Residential,Milestones - Unit 10,4503.16, 17-Mar-2015
1362,Revenue,CCHD,Bed purchasing -S28A  Under 65 - North,Permanent Residential,Milestones - Unit 10,7058.72, 17-Mar-2015
1363,Revenue,CCHD,Bed purchasing -S28A  Under 65 - North,Permanent Residential,Milestones - Unit 10,3304.04, 17-Mar-2015
1364,Revenue,CCHD,Bed Purchasing - S28A - Over 65- North,Permanent Residential,Milestones - Unit 10,3133.72, 17-Mar-2015
1365,Revenue,CCHD,Bed Purchasing - S28A - Over 65- North,Permanent Residential,Milestones - Unit 10,3431.24, 17-Mar-2015
1366,Revenue,CCHD,Bed Purchasing - LD S28A- Over 65- South,Permanent Residential,Milestones - Unit 10,3086.04, 17-Mar-2015
1367,Revenue,CCHD,Bed Purchasing - North,Permanent Residential,Milestones - Unit 10,6773.16, 17-Mar-2015
1368,Revenue,CCHD,Bed Purchasing - South,Permanent Residential,Milestones - Unit 10,1318.68, 17-Mar-2015
1369,Revenue,CCHD,MH Purchasing - Younger,Permanent Nursing,Milestones - Unit 10,937.80, 17-Mar-2015
1370,Revenue,CCHD,MH Purchasing - Younger,Permanent Nursing,Milestones - Unit 10,952.20, 17-Mar-2015
1371,Revenue,CCHD,Bed Purchasing - South,Permanent Residential,Milestones - Unit 10,3254.24, 17-Mar-2015
1372,Revenue,CCHD,Bed purchasing - S28A Under 65 - South,Permanent Residential,Milestones - Unit 10,5919.12, 17-Mar-2015
1373,Revenue,CCHD,Bed purchasing - S28A Under 65 - South,Permanent Residential,Milestones - Unit 10,6010.16, 17-Mar-2015
1374,Revenue,CCHD,Bed Purchasing - LD S28A- Over 65- South,Permanent Residential,Milestones - Unit 10,4353.28, 17-Mar-2015
1375,Revenue,CCHD,Bed Purchasing - South,Permanent Residential,Milestones - Unit 10,5919.52, 17-Mar-2015
1376,Revenue,CCHD,Bed Purchasing - LD S28A- Over 65- South,Permanent Nursing,Milestones - Unit 10,4528.36, 17-Mar-2015
1377,Revenue,CCHD,Bed Purchasing - LD S28A- Over 65- South,Permanent Nursing,Milestones - Unit 10,5225.52, 17-Mar-2015
1378,Revenue,CCHD,Bed Purchasing - LD S28A- Over 65- South,Permanent Residential,Milestones - Unit 10,3540.96, 17-Mar-2015
1379,Revenue,CCHD,Bed Purchasing - LD S28A- Over 65- South,Permanent Residential,Milestones - Unit 10,4343.36, 17-Mar-2015
1380,Revenue,CCHD,Bed Purchasing - South,Permanent Residential,Milestones - Unit 10,1224.16, 17-Mar-2015
1381,Revenue,CCHD,Bed purchasing -S28A  Under 65 - North,Permanent Nursing,Milestones - Unit 10,7675.92, 17-Mar-2015
1382,Revenue,CCHD,Bed Purchasing - Southmead Hospital,Permanent Nursing,Milestones - Unit 10,1348.48, 17-Mar-2015
1383,Revenue,CCHD,Bed Purchasing - South,Permanent Residential,Milestones - Unit 10,5257.00, 17-Mar-2015
1384,Revenue,CCHD,Bed Purchasing - Elderly S117- North,Permanent Nursing,Milestones - Unit 10,1992.00, 17-Mar-2015
1385,Revenue,CCHD,Bed Purchasing - North,Permanent Nursing,Milestones - Unit 10,1444.04, 17-Mar-2015
1386,Revenue,CCHD,Bed Purchasing - North,Permanent Nursing,Milestones - Unit 10,836.44, 17-Mar-2015
1387,Revenue,CCHD,Section 117 Placements MH Younger,Permanent Residential,Milestones - Unit 10,1356.00, 17-Mar-2015
1388,Revenue,CCHD,Bed Purchasing - South,Permanent Nursing,Milestones - Unit 10,3389.36, 17-Mar-2015
1389,Revenue,CCHD,Bed Purchasing - South,Permanent Residential,Milestones - Unit 10,3389.48, 17-Mar-2015
1390,Revenue,CCHD,Bed Purchasing - LD S28A- Over 65- South,Permanent Nursing,Milestones - Unit 10,2981.68, 17-Mar-2015
1391,Revenue,CCHD,Bed Purchasing - LD S28A- Over 65- South,Permanent Nursing,Milestones - Unit 10,2767.44, 17-Mar-2015
1392,Revenue,CCHD,Bed Purchasing - S28A - Over 65- North,Permanent Nursing,Milestones - Unit 10,3692.72, 17-Mar-2015
1393,Revenue,CCHD,Bed Purchasing - S28A - Over 65- North,Permanent Nursing,Milestones - Unit 10,3684.72, 17-Mar-2015
1394,Revenue,CCHD,MH Purchasing - Younger,Respite Planned - Residential,Milestones - Unit 10,3734.48, 17-Mar-2015
1395,Revenue,CCHD,Home Care - Elderly - South,Day Care / Social Activities,Milestones Homecare & Dementia Service,31.04, 26-Mar-2015
1396,Revenue,CCHD,Home Care - Elderly - South,Other Small Contracts,Milestones Homecare & Dementia Service,1520.96, 26-Mar-2015
1397,Revenue,CCHD,Home Care - Elderly - North,Other Small Contracts,Milestones Homecare & Dementia Service,1478.28, 26-Mar-2015
1398,Revenue,CCHD,Home care - Elderly MH - North,Other Small Contracts,Milestones Homecare & Dementia Service,38.80, 26-Mar-2015
1399,Revenue,CCHD,Home Care - Elderly - South,Day Care / Social Activities,Milestones Supported Living Services,6775.14, 26-Mar-2015
1400,Revenue,CCHD,Home Care - Elderly - South,Other Small Contracts,Milestones Supported Living Services,3794.84, 26-Mar-2015
1401,Revenue,CCHD,Home Care - Elderly - South,Supported Living,Milestones Supported Living Services,673.68, 26-Mar-2015
1402,Revenue,CCHD,Home Care - Elderly - North,Day Care / Social Activities,Milestones Supported Living Services,3356.37, 26-Mar-2015
1403,Revenue,CCHD,Home Care - Elderly - North,Other Small Contracts,Milestones Supported Living Services,946.36, 26-Mar-2015
1404,Revenue,CCHD,Day Care - South,Day Care / Social Activities,Milestones Supported Living Services,114.00, 26-Mar-2015
1405,Revenue,CCHD,Day Care - North,Day Care / Social Activities,Milestones Supported Living Services,149.15, 26-Mar-2015
1406,Revenue,CCHD,Younger MH non-res purchasing,Day Care / Social Activities,Milestones Supported Living Services,28.07, 26-Mar-2015
1407,Revenue,CCHD,Home care - Elderly MH - North,Other Small Contracts,Milestones Supported Living Services,64.16, 26-Mar-2015
1408,Revenue,CCHD,Supported Living (S28a) North,Private & Voluntary Home Care,Milestones Trust,760.00, 09-Mar-2015
1409,Revenue,CCHD,Supported Living (S28a) North,Private & Voluntary Home Care,Milestones Trust,760.00, 31-Mar-2015
1410,Revenue,CCHD,Elderly MH Day Care North,Day Care / Social Activities,Milestones Trust,625.05, 31-Mar-2015
1411,Revenue,CCHD,Bed Purchasing - Southmead Hospital,Permanent Residential,Mostyn Lodge Residential Home,1133.48, 17-Mar-2015
1412,Revenue,CCHD,Bed Purchasing - North,Permanent Residential,Mostyn Lodge Residential Home,1234.64, 17-Mar-2015
1413,Revenue,CCHD,Bed Purchasing - Southmead Hospital,Permanent Nursing,Mount Elton Nursing Home,3307.94, 13-Mar-2015
1414,Revenue,CCHD,Social Lettings Agency,Fees - General,Individual,10.00, 06-Mar-2015
1415,Revenue,CCHD,Social Lettings Agency,Other Supplies & Services,Individual,565.00, 06-Mar-2015
1416,Revenue,CCHD,Social Lettings Agency,Fees - General,Individual,10.00, 18-Mar-2015
1417,Revenue,CCHD,Social Lettings Agency,Other Supplies & Services,Individual,565.00, 18-Mar-2015
1418,Revenue,CCHD,Social Lettings Agency,Fees - General,Individual,10.09, 06-Mar-2015
1419,Revenue,CCHD,Social Lettings Agency,Other Supplies & Services,Individual,570.66, 06-Mar-2015
1420,Revenue,CCHD,Social Lettings Agency,Fees - General,Individual,10.10, 06-Mar-2015
1421,Revenue,CCHD,Social Lettings Agency,Other Supplies & Services,Individual,570.64, 06-Mar-2015
1422,Revenue,CCHD,Social Lettings Agency,Fees - General,Individual,10.00, 20-Mar-2015
1423,Revenue,CCHD,Social Lettings Agency,Other Supplies & Services,Individual,565.00, 20-Mar-2015
1424,Revenue,CCHD,Social Lettings Agency,Fees - General,Individual,8.60, 20-Mar-2015
1425,Revenue,CCHD,Social Lettings Agency,Other Supplies & Services,Individual,582.00, 20-Mar-2015
1426,Revenue,CCHD,Homeless - Private Sector Leasing,Other Supplies & Services,Individual,565.00, 23-Mar-2015
1427,Revenue,CCHD,Social Lettings Agency,Fees - General,Individual,11.71, 02-Mar-2015
1428,Revenue,CCHD,Social Lettings Agency,Other Supplies & Services,Individual,661.96, 02-Mar-2015
1429,Revenue,CCHD,Social Lettings Agency,Fees - General,Individual,10.00, 06-Mar-2015
1430,Revenue,CCHD,Social Lettings Agency,Other Supplies & Services,Individual,565.00, 06-Mar-2015
1431,Revenue,CCHD,Social Lettings Agency,Fees - General,Individual,11.60, 12-Mar-2015
1432,Revenue,CCHD,Social Lettings Agency,Other Supplies & Services,Individual,655.41, 12-Mar-2015
1433,Revenue,CCHD,Social Lettings Agency,Fees - General,Individual,10.00, 06-Mar-2015
1434,Revenue,CCHD,Social Lettings Agency,Other Supplies & Services,Individual,565.00, 06-Mar-2015
1435,Revenue,CCHD,Social Lettings Agency,Fees - General,Individual,16.16, 20-Mar-2015
1436,Revenue,CCHD,Social Lettings Agency,Other Supplies & Services,Individual,662.78, 20-Mar-2015
1437,Revenue,CCHD,Tenancy Start Up Scheme,Other Supplies & Services,Individual,1300.00, 25-Mar-2015
1438,Revenue,CCHD,Social Lettings Agency,Fees - General,Individual,10.00, 30-Mar-2015
1439,Revenue,CCHD,Social Lettings Agency,Other Supplies & Services,Individual,565.00, 30-Mar-2015
1440,Revenue,CCHD,Social Lettings Agency,Fees - General,Individual,7.50, 05-Mar-2015
1441,Revenue,CCHD,Social Lettings Agency,Other Supplies & Services,Individual,580.00, 05-Mar-2015
1442,Revenue,CCHD,Tenancy Start Up Scheme,Other Supplies & Services,Individual,1400.00, 20-Mar-2015
1443,Revenue,CCHD,Home Care - Elderly - South,Day Care / Social Activities,Mrs B Kimber -  CM2000,2094.24, 11-Mar-2015
1444,Revenue,CCHD,Home Care - Elderly - South,Other Small Contracts,Mrs B Kimber -  CM2000,8971.83, 11-Mar-2015
1445,Revenue,CCHD,Home Care - Elderly - South,Supported Living,Mrs B Kimber -  CM2000,32.88, 11-Mar-2015
1446,Revenue,CCHD,Home Care - Elderly - North,Day Care / Social Activities,Mrs B Kimber -  CM2000,476.76, 11-Mar-2015
1447,Revenue,CCHD,Home Care - Elderly - North,Other Small Contracts,Mrs B Kimber -  CM2000,5014.20, 11-Mar-2015
1448,Revenue,CCHD,Under 65s -MH  Home Care Purch,Other Small Contracts,Mrs B Kimber -  CM2000,65.76, 11-Mar-2015
1449,Revenue,CCHD,Elderly MH Day Care North,Day Care / Social Activities,Mrs B Kimber -  CM2000,49.32, 11-Mar-2015
1450,Revenue,CCHD,Home Care - Elderly - South,Day Care / Social Activities,Mrs B Kimber -  CM2000,1132.17, 11-Mar-2015
1451,Revenue,CCHD,Home Care - Elderly - South,Other Small Contracts,Mrs B Kimber -  CM2000,10070.76, 11-Mar-2015
1452,Revenue,CCHD,Home Care - Elderly - South,Supported Living,Mrs B Kimber -  CM2000,32.88, 11-Mar-2015
1453,Revenue,CCHD,Home Care - Elderly - North,Day Care / Social Activities,Mrs B Kimber -  CM2000,493.20, 11-Mar-2015
1454,Revenue,CCHD,Home Care - Elderly - North,Other Small Contracts,Mrs B Kimber -  CM2000,5227.92, 11-Mar-2015
1455,Revenue,CCHD,Under 65s -MH  Home Care Purch,Other Small Contracts,Mrs B Kimber -  CM2000,65.76, 11-Mar-2015
1456,Revenue,CCHD,Elderly MH Day Care North,Day Care / Social Activities,Mrs B Kimber -  CM2000,98.64, 11-Mar-2015
1457,Revenue,CCHD,Home Care - Elderly - South,Day Care / Social Activities,Mrs B Kimber -  CM2000,2104.35, 11-Mar-2015
1458,Revenue,CCHD,Home Care - Elderly - South,Other Small Contracts,Mrs B Kimber -  CM2000,9580.80, 11-Mar-2015
1459,Revenue,CCHD,Home Care - Elderly - South,Supported Living,Mrs B Kimber -  CM2000,28.77, 11-Mar-2015
1460,Revenue,CCHD,Home Care - Elderly - North,Day Care / Social Activities,Mrs B Kimber -  CM2000,526.08, 11-Mar-2015
1461,Revenue,CCHD,Home Care - Elderly - North,Other Small Contracts,Mrs B Kimber -  CM2000,5893.74, 11-Mar-2015
1462,Revenue,CCHD,Under 65s -MH  Home Care Purch,Other Small Contracts,Mrs B Kimber -  CM2000,65.76, 11-Mar-2015
1463,Revenue,CCHD,Elderly MH Day Care North,Day Care / Social Activities,Mrs B Kimber -  CM2000,94.53, 11-Mar-2015
1464,Revenue,CCHD,Home Care - Elderly - South,Day Care / Social Activities,Mrs B Kimber -  CM2000,1117.95, 26-Mar-2015
1465,Revenue,CCHD,Home Care - Elderly - South,Other Small Contracts,Mrs B Kimber -  CM2000,10753.20, 26-Mar-2015
1466,Revenue,CCHD,Home Care - Elderly - South,Supported Living,Mrs B Kimber -  CM2000,32.88, 26-Mar-2015
1467,Revenue,CCHD,Home Care - Elderly - North,Day Care / Social Activities,Mrs B Kimber -  CM2000,447.99, 26-Mar-2015
1468,Revenue,CCHD,Home Care - Elderly - North,Other Small Contracts,Mrs B Kimber -  CM2000,5930.73, 26-Mar-2015
1469,Revenue,CCHD,Under 65s -MH  Home Care Purch,Other Small Contracts,Mrs B Kimber -  CM2000,65.76, 26-Mar-2015
1470,Revenue,CCHD,Elderly MH Day Care North,Day Care / Social Activities,Mrs B Kimber -  CM2000,98.64, 26-Mar-2015
1471,Revenue,CCHD,Home Care - Elderly - South,Day Care / Social Activities,Mrs B Kimber -  CM2000,1919.40, 23-Mar-2015
1472,Revenue,CCHD,Home Care - Elderly - South,Other Small Contracts,Mrs B Kimber -  CM2000,9469.53, 23-Mar-2015
1473,Revenue,CCHD,Home Care - Elderly - South,Supported Living,Mrs B Kimber -  CM2000,32.88, 23-Mar-2015
1474,Revenue,CCHD,Home Care - Elderly - North,Day Care / Social Activities,Mrs B Kimber -  CM2000,530.19, 23-Mar-2015
1475,Revenue,CCHD,Home Care - Elderly - North,Other Small Contracts,Mrs B Kimber -  CM2000,5980.05, 23-Mar-2015
1476,Revenue,CCHD,Under 65s -MH  Home Care Purch,Other Small Contracts,Mrs B Kimber -  CM2000,65.76, 23-Mar-2015
1477,Revenue,CCHD,Elderly MH Day Care North,Day Care / Social Activities,Mrs B Kimber -  CM2000,98.64, 23-Mar-2015
1478,Revenue,CCHD,Social Lettings Agency,Fees - General,Individual,10.00, 17-Mar-2015
1479,Revenue,CCHD,Social Lettings Agency,Other Supplies & Services,Individual,565.00, 17-Mar-2015
1480,Revenue,CCHD,Social Lettings Agency,Fees - General,Individual,10.00, 13-Mar-2015
1481,Revenue,CCHD,Social Lettings Agency,Other Supplies & Services,Individual,565.00, 13-Mar-2015
1482,Revenue,CCHD,Social Lettings Agency,Fees - General,Individual,10.00, 24-Mar-2015
1483,Revenue,CCHD,Social Lettings Agency,Other Supplies & Services,Individual,565.00, 24-Mar-2015
1484,Revenue,CCHD,Supported Living - North,Permanent Residential,Individual,880.08, 11-Mar-2015
1485,Revenue,CCHD,Social Lettings Agency,Fees - General,Individual,10.10, 13-Mar-2015
1486,Revenue,CCHD,Social Lettings Agency,Other Supplies & Services,Individual,570.64, 13-Mar-2015
1487,Revenue,CCHD,Social Lettings Agency,Fees - General,Individual,10.09, 12-Mar-2015
1488,Revenue,CCHD,Social Lettings Agency,Other Supplies & Services,Individual,570.66, 12-Mar-2015
1489,Revenue,CCHD,Supported Living - North,Permanent Residential,Individual,1097.49, 11-Mar-2015
1490,Revenue,CCHD,Supported Living - North,Permanent Residential,Individual,758.76, 24-Mar-2015
1491,Revenue,CCHD,Social Lettings Agency,Fees - General,Individual,10.00, 06-Mar-2015
1492,Revenue,CCHD,Social Lettings Agency,Other Supplies & Services,Individual,565.00, 06-Mar-2015
1493,Revenue,CCHD,Social Lettings Agency,Fees - General,Individual,17.13, 11-Mar-2015
1494,Revenue,CCHD,Social Lettings Agency,Other Supplies & Services,Individual,977.68, 11-Mar-2015
1495,Revenue,CCHD,Day Care - North,Day Care / Social Activities,NAS Services Limited,1375.20, 30-Mar-2015
1496,Revenue,CCHD,Day Care - South,Day Care / Social Activities,NAS Services Limited,515.70, 30-Mar-2015
1497,Revenue,CCHD,Day Care - South,Day Care / Social Activities,NAS Services Limited,897.70, 30-Mar-2015
1498,Revenue,CCHD,Younger MH non-res purchasing,Day Care / Social Activities,NAS Services Limited,859.50, 30-Mar-2015
1499,Revenue,CCHD,NHS Health Checks & Tobacco Control,Project Funding,National Centre for Smoking Cessation & Training,18385.88, 20-Mar-2015
1500,Revenue,CCHD,Newton House,Security Systems,National Security Group,493.23, 03-Mar-2015
1501,Revenue,CCHD,Newton House,Security Systems,National Security Group,65.42, 19-Mar-2015
1502,Revenue,CCHD,Drug/Alcohol Residential Rehab,Security Systems,National Security Group,53.52, 20-Mar-2015
1503,Revenue,CCHD,Bed Purchasing - North,Permanent Residential,National Star College,41638.20, 17-Mar-2015
1504,Revenue,CCHD,Home Care - Elderly - South,Day Care / Social Activities,Nestor T/A Allied Healthcare,98.80, 09-Mar-2015
1505,Revenue,CCHD,Home Care - Elderly - South,Other Small Contracts,Nestor T/A Allied Healthcare,3032.40, 09-Mar-2015
1506,Revenue,CCHD,Home Care - Elderly - North,Other Small Contracts,Nestor T/A Allied Healthcare,7962.92, 09-Mar-2015
1507,Revenue,CCHD,Day Care - North,Day Care / Social Activities,Nestor T/A Allied Healthcare,190.00, 09-Mar-2015
1508,Revenue,CCHD,Home care - Elderly MH - North,Other Small Contracts,Nestor T/A Allied Healthcare,53.20, 09-Mar-2015
1509,Revenue,CCHD,Home Care - Elderly - South,Day Care / Social Activities,Nestor T/A Allied Healthcare,98.80, 09-Mar-2015
1510,Revenue,CCHD,Home Care - Elderly - South,Other Small Contracts,Nestor T/A Allied Healthcare,3028.60, 09-Mar-2015
1511,Revenue,CCHD,Home Care - Elderly - North,Other Small Contracts,Nestor T/A Allied Healthcare,7953.84, 09-Mar-2015
1512,Revenue,CCHD,Day Care - North,Day Care / Social Activities,Nestor T/A Allied Healthcare,190.00, 09-Mar-2015
1513,Revenue,CCHD,Home care - Elderly MH - North,Other Small Contracts,Nestor T/A Allied Healthcare,53.20, 09-Mar-2015
1514,Revenue,CCHD,Home Care - Elderly - South,Day Care / Social Activities,Nestor T/A Allied Healthcare,60.80, 17-Mar-2015
1515,Revenue,CCHD,Home Care - Elderly - South,Other Small Contracts,Nestor T/A Allied Healthcare,3021.00, 17-Mar-2015
1516,Revenue,CCHD,Home Care - Elderly - North,Day Care / Social Activities,Nestor T/A Allied Healthcare,159.60, 17-Mar-2015
1517,Revenue,CCHD,Home Care - Elderly - North,Other Small Contracts,Nestor T/A Allied Healthcare,8157.00, 17-Mar-2015
1518,Revenue,CCHD,Day Care - North,Day Care / Social Activities,Nestor T/A Allied Healthcare,190.00, 17-Mar-2015
1519,Revenue,CCHD,Home care - Elderly MH - North,Other Small Contracts,Nestor T/A Allied Healthcare,53.20, 17-Mar-2015
1520,Revenue,CCHD,Home Care - Elderly - South,Other Small Contracts,Network Health & Social Care,206.82, 25-Mar-2015
1521,Revenue,CCHD,Home Care - Elderly - North,Day Care / Social Activities,Network Health & Social Care,30.64, 25-Mar-2015
1522,Revenue,CCHD,Home Care - Elderly - North,Other Small Contracts,Network Health & Social Care,1853.72, 25-Mar-2015
1523,Revenue,CCHD,Social Lettings Agency,Fees - General,Individual,10.00, 04-Mar-2015
1524,Revenue,CCHD,Social Lettings Agency,Other Supplies & Services,Individual,565.00, 04-Mar-2015
1525,Revenue,CCHD,Community Promoting Independence Team,"Holidays, Outings & Visits",Individual,1286.00, 04-Mar-2015
1526,Revenue,CCHD,Community Support - North,Preventative Assistance,Newcross Healthcare Solutions,831.34, 24-Mar-2015
1527,Revenue,CCHD,Community Support - North,Preventative Assistance,Newcross Healthcare Solutions,1154.73, 24-Mar-2015
1528,Revenue,CCHD,Community Support - North,Preventative Assistance,Newcross Healthcare Solutions,607.85, 24-Mar-2015
1529,Revenue,CCHD,SLA Grants - Support Serv,Other Supplies & Services,NHS South Gloucestershire CCG,23091.00, 13-Mar-2015
1530,Revenue,CCHD,Leadership and Business Support,Other Small Contracts,NHS South Gloucestershire CCG,209665.00, 27-Mar-2015
1531,Revenue,CCHD,Children & Young People�s Health,Other Small Contracts,North Bristol NHS Trust,122750.00, 23-Mar-2015
1532,Revenue,CCHD,Information Systems - Software,Computer Equipment - Purchase,Northgate Information Solutions UK Limited,3516.00, 30-Mar-2015
1533,Revenue,CCHD,Bed Purchasing - South,Permanent Residential,Norwood   Broadway House,4972.40, 17-Mar-2015
1534,Revenue,CCHD,Bed Purchasing - Southmead Hospital,Permanent Residential,Notaro Homes Ltd  Queensmead Court,3000.00, 17-Mar-2015
1535,Revenue,CCHD,Bed Purchasing - South,Permanent Residential,Notaro Homes Ltd  Queensmead Court,1884.80, 17-Mar-2015
1536,Revenue,CCHD,Bed Purchasing - Southmead Hospital,Permanent Residential,Notaro Homes Ltd  Queensmead Court,1389.00, 17-Mar-2015
1537,Revenue,CCHD,Bed Purchasing - South,Permanent Residential,Nova House Care Home,949.92, 17-Mar-2015
1538,Revenue,CCHD,Home Care - Elderly - South,Day Care / Social Activities,Nursing Solutions Limited,31.36, 03-Mar-2015
1539,Revenue,CCHD,Home Care - Elderly - South,Other Small Contracts,Nursing Solutions Limited,2450.00, 03-Mar-2015
1540,Revenue,CCHD,Home Care - Elderly - North,Other Small Contracts,Nursing Solutions Limited,689.92, 03-Mar-2015
1541,Revenue,CCHD,Home Care - Elderly - South,Day Care / Social Activities,Nursing Solutions Limited,31.36, 23-Mar-2015
1542,Revenue,CCHD,Home Care - Elderly - South,Other Small Contracts,Nursing Solutions Limited,2508.80, 23-Mar-2015
1543,Revenue,CCHD,Home Care - Elderly - North,Other Small Contracts,Nursing Solutions Limited,686.00, 23-Mar-2015
1544,Revenue,CCHD,Home Care - Elderly - South,Day Care / Social Activities,Nursing Solutions Limited,31.36, 23-Mar-2015
1545,Revenue,CCHD,Home Care - Elderly - South,Other Small Contracts,Nursing Solutions Limited,2504.88, 23-Mar-2015
1546,Revenue,CCHD,Home Care - Elderly - North,Other Small Contracts,Nursing Solutions Limited,697.76, 23-Mar-2015
1547,Revenue,CCHD,Section 117 Placements MH Younger,Permanent Nursing,Oaklands,6088.80, 17-Mar-2015
1548,Revenue,CCHD,Information Systems - Software,Software Support & Maintenance,Oracle Corporation UK Limited,2305.02, 06-Mar-2015
1549,Revenue,CCHD,Bed purchasing -S28A  Under 65 - North,Permanent Residential,Orchard End Limited,15125.76, 17-Mar-2015
1550,Revenue,CCHD,Turnberries,"Provisions (Food, etc)",Origin Cafe,527.00, 02-Mar-2015
1551,Revenue,CCHD,Bed Purchasing - Southmead Hospital,Permanent Residential,Osbourne Court,2530.48, 17-Mar-2015
1552,Revenue,CCHD,Bed Purchasing - Southmead Hospital,Permanent Residential,Osbourne Court,970.20, 17-Mar-2015
1553,Revenue,CCHD,Bed Purchasing - North,Permanent Residential,Osbourne Court,1796.40, 17-Mar-2015
1554,Revenue,CCHD,Bed Purchasing - North,Permanent Residential,Osbourne Court,2046.96, 17-Mar-2015
1555,Revenue,CCHD,Bed Purchasing - Southmead Hospital,Permanent Residential,Osbourne Court,1593.08, 17-Mar-2015
1556,Revenue,CCHD,Bed Purchasing - Elderly S117- North,Permanent Residential,Osbourne Court,1928.00, 17-Mar-2015
1557,Revenue,CCHD,Bed Purchasing - North,Respite Planned - Residential,Osbourne Court,1640.00, 17-Mar-2015
1558,Revenue,CCHD,Bed purchasing - S28A Under 65 - South,Permanent Residential,Osprey Court,4322.88, 17-Mar-2015
1559,Revenue,CCHD,Bed Purchasing - South,Permanent Residential,Osprey Court,7750.24, 17-Mar-2015
1560,Revenue,CCHD,Bed purchasing - S28A Under 65 - South,Permanent Residential,Osprey Court,6396.04, 17-Mar-2015
1561,Revenue,CCHD,Bed purchasing - Elderly S117 - South,Permanent Residential,Osprey Court,11328.56, 17-Mar-2015
1562,Revenue,CCHD,Breakthrough and Inclusion Work,Other Supplies & Services,P3D,2844.73, 09-Mar-2015
1563,Revenue,CCHD,Breakthrough and Inclusion Work,Other Supplies & Services,P3D,3327.12, 31-Mar-2015
1564,Revenue,CCHD,Bed Purchasing - Southmead Hospital,Permanent Nursing,Palm Court Nursing Home,1519.32, 17-Mar-2015
1565,Revenue,CCHD,Bed Purchasing - South,Permanent Residential,Park Farm House,1614.16, 17-Mar-2015
1566,Revenue,CCHD,Bed Purchasing - South,Permanent Residential,Park Hall,5470.70, 17-Mar-2015
1567,Revenue,CCHD,Bed Purchasing - North,Permanent Residential,Park Hall,5202.24, 17-Mar-2015
1568,Revenue,CCHD,Bed Purchasing - South,Permanent Residential,Park Hall,5014.44, 17-Mar-2015
1569,Revenue,CCHD,Bed Purchasing - South,Permanent Residential,Park Hall,2555.68, 17-Mar-2015
1570,Revenue,CCHD,Bed Purchasing - North,Permanent Residential,Park Hall,4967.68, 17-Mar-2015
1571,Revenue,CCHD,Bed purchasing - S28A Under 65 - South,Permanent Residential,Park Hall,4682.92, 17-Mar-2015
1572,Revenue,CCHD,Bed Purchasing - South,Permanent Residential,Park Hall,4990.40, 17-Mar-2015
1573,Revenue,CCHD,Bed Purchasing - North,Permanent Residential,Park Hall,4323.28, 17-Mar-2015
1574,Revenue,CCHD,Bed Purchasing - South,Permanent Residential,Park Hall,10767.96, 17-Mar-2015
1575,Revenue,CCHD,Bed purchasing -S28A  Under 65 - North,Permanent Residential,Park Hall,5931.12, 17-Mar-2015
1576,Revenue,CCHD,Bed purchasing - S28A Under 65 - South,Permanent Residential,Park Hall,5670.16, 17-Mar-2015
1577,Revenue,CCHD,18-25 Year Olds,Permanent Residential,Park Hall,7181.48, 17-Mar-2015
1578,Revenue,CCHD,Bed Purchasing - North,Permanent Residential,Parker Meadows,2200.18, 17-Mar-2015
1579,Revenue,CCHD,Social Lettings Agency,Fees - General,Individual,10.00, 27-Mar-2015
1580,Revenue,CCHD,Social Lettings Agency,Other Supplies & Services,Individual,565.00, 27-Mar-2015
1581,Revenue,CCHD,Bed Purchasing - South,Permanent Residential,Penleigh House Care Home,4560.48, 17-Mar-2015
1582,Revenue,CCHD,Bed Purchasing - South,Permanent Residential,Penleigh House Care Home,6430.64, 17-Mar-2015
1583,Revenue,CCHD,Bed Purchasing - South,Permanent Residential,Penleigh House Care Home,4318.88, 17-Mar-2015
1584,Revenue,CCHD,Bed purchasing - S28A Under 65 - South,Permanent Residential,Penleigh House Care Home,5497.68, 17-Mar-2015
1585,Revenue,CCHD,Bed Purchasing - South,Permanent Residential,Penleigh House Care Home,4966.16, 17-Mar-2015
1586,Revenue,CCHD,Home Care - Elderly - North,Day Care / Social Activities,Premier Homecare Limited,173.28, 09-Mar-2015
1587,Revenue,CCHD,Home Care - Elderly - North,Other Small Contracts,Premier Homecare Limited,13538.64, 09-Mar-2015
1588,Revenue,CCHD,Home care - Elderly MH - North,Other Small Contracts,Premier Homecare Limited,141.36, 09-Mar-2015
1589,Revenue,CCHD,Elderly MH Day Care North,Day Care / Social Activities,Premier Homecare Limited,72.96, 09-Mar-2015
1590,Revenue,CCHD,Home Care - Elderly - North,Day Care / Social Activities,Premier Homecare Limited,177.84, 17-Mar-2015
1591,Revenue,CCHD,Home Care - Elderly - North,Other Small Contracts,Premier Homecare Limited,13310.64, 17-Mar-2015
1592,Revenue,CCHD,Home care - Elderly MH - North,Other Small Contracts,Premier Homecare Limited,127.68, 17-Mar-2015
1593,Revenue,CCHD,Elderly MH Day Care North,Day Care / Social Activities,Premier Homecare Limited,72.96, 17-Mar-2015
1594,Revenue,CCHD,Home Care - Elderly - North,Day Care / Social Activities,Premier Homecare Limited,173.28, 19-Mar-2015
1595,Revenue,CCHD,Home Care - Elderly - North,Other Small Contracts,Premier Homecare Limited,13534.08, 19-Mar-2015
1596,Revenue,CCHD,Home care - Elderly MH - North,Other Small Contracts,Premier Homecare Limited,127.68, 19-Mar-2015
1597,Revenue,CCHD,Elderly MH Day Care North,Day Care / Social Activities,Premier Homecare Limited,72.96, 19-Mar-2015
1598,Revenue,CCHD,Home Care - Elderly - North,Day Care / Social Activities,Premier Homecare Limited,145.92, 25-Mar-2015
1599,Revenue,CCHD,Home Care - Elderly - North,Other Small Contracts,Premier Homecare Limited,13027.92, 25-Mar-2015
1600,Revenue,CCHD,Home care - Elderly MH - North,Other Small Contracts,Premier Homecare Limited,127.68, 25-Mar-2015
1601,Revenue,CCHD,Elderly MH Day Care North,Day Care / Social Activities,Premier Homecare Limited,72.96, 25-Mar-2015
1602,Revenue,CCHD,Home Care - Elderly - North,Other Small Contracts,Premier Homecare Limited,4480.00, 02-Mar-2015
1603,Revenue,CCHD,Home Care - Elderly - North,Other Small Contracts,Premier Homecare Limited,4480.00, 09-Mar-2015
1604,Revenue,CCHD,Home Care - Elderly - North,Other Small Contracts,Premier Homecare Limited,4480.00, 16-Mar-2015
1605,Revenue,CCHD,Home Care - Elderly - North,Other Small Contracts,Premier Homecare Limited,4480.00, 23-Mar-2015
1606,Revenue,CCHD,Home Care - Elderly - North,Other Small Contracts,Premier Homecare Limited,4480.00, 30-Mar-2015
1607,Revenue,CCHD,Home Care - Elderly - South,Day Care / Social Activities,Prestige Nursing,52.56, 05-Mar-2015
1608,Revenue,CCHD,Home Care - Elderly - South,Other Small Contracts,Prestige Nursing,350.40, 05-Mar-2015
1609,Revenue,CCHD,Home Care - Elderly - North,Day Care / Social Activities,Prestige Nursing,1410.36, 05-Mar-2015
1610,Revenue,CCHD,Home Care - Elderly - North,Other Small Contracts,Prestige Nursing,398.58, 05-Mar-2015
1611,Revenue,CCHD,Day Care - South,Day Care / Social Activities,Prestige Nursing,122.64, 05-Mar-2015
1612,Revenue,CCHD,Home Care - Elderly - South,Day Care / Social Activities,Prestige Nursing,52.56, 05-Mar-2015
1613,Revenue,CCHD,Home Care - Elderly - South,Other Small Contracts,Prestige Nursing,359.16, 05-Mar-2015
1614,Revenue,CCHD,Home Care - Elderly - North,Day Care / Social Activities,Prestige Nursing,1357.80, 05-Mar-2015
1615,Revenue,CCHD,Home Care - Elderly - North,Other Small Contracts,Prestige Nursing,490.56, 05-Mar-2015
1616,Revenue,CCHD,Day Care - South,Day Care / Social Activities,Prestige Nursing,122.64, 05-Mar-2015
1617,Revenue,CCHD,Home Care - Elderly - South,Day Care / Social Activities,Prestige Nursing,52.56, 17-Mar-2015
1618,Revenue,CCHD,Home Care - Elderly - South,Other Small Contracts,Prestige Nursing,328.50, 17-Mar-2015
1619,Revenue,CCHD,Home Care - Elderly - North,Day Care / Social Activities,Prestige Nursing,1349.04, 17-Mar-2015
1620,Revenue,CCHD,Home Care - Elderly - North,Other Small Contracts,Prestige Nursing,398.58, 17-Mar-2015
1621,Revenue,CCHD,Day Care - South,Day Care / Social Activities,Prestige Nursing,122.64, 17-Mar-2015
1622,Revenue,CCHD,Home Care - Elderly - South,Day Care / Social Activities,Prestige Nursing,52.56, 17-Mar-2015
1623,Revenue,CCHD,Home Care - Elderly - South,Other Small Contracts,Prestige Nursing,503.70, 17-Mar-2015
1624,Revenue,CCHD,Home Care - Elderly - North,Day Care / Social Activities,Prestige Nursing,1384.08, 17-Mar-2015
1625,Revenue,CCHD,Home Care - Elderly - North,Other Small Contracts,Prestige Nursing,560.10, 17-Mar-2015
1626,Revenue,CCHD,Day Care - South,Day Care / Social Activities,Prestige Nursing,122.64, 17-Mar-2015
1627,Revenue,CCHD,Sexual Health,Other Supplies & Services,Preventx Limited,5614.50, 25-Mar-2015
1628,Revenue,CCHD,Sexual Health,Other Supplies & Services,Preventx Limited,5243.50, 24-Mar-2015
1629,Revenue,CCHD,Bed Purchasing - North,Permanent Nursing,Ravenswood,2192.80, 17-Mar-2015
1630,Revenue,CCHD,Bed Purchasing - Elderly S117- North,Permanent Residential,Real Life Options,6632.64, 17-Mar-2015
1631,Revenue,CCHD,Breakthrough and Inclusion Work,Other Supplies & Services,Redefine Mentoring Ltd,4228.08, 31-Mar-2015
1632,Revenue,CCHD,Breakthrough and Inclusion Work,Other Supplies & Services,Redefine Mentoring Ltd,4657.76, 09-Mar-2015
1633,Revenue,CCHD,Bed Purchasing - Elderly S117- North,Permanent Nursing,Redholme Memory Care Limited,1991.84, 17-Mar-2015
1634,Revenue,CCHD,Bed Purchasing - South,Permanent Nursing,Regent House,2255.28, 17-Mar-2015
1635,Revenue,CCHD,Bed Purchasing - South,Permanent Nursing,Regent House,10658.92, 17-Mar-2015
1636,Revenue,CCHD,Bed Purchasing - South,Permanent Nursing,Regent House,2101.76, 17-Mar-2015
1637,Revenue,CCHD,Bed Purchasing - South,Permanent Nursing,Regent House,2391.04, 17-Mar-2015
1638,Revenue,CCHD,Bed Purchasing - South,Permanent Nursing,Regent House,1670.88, 17-Mar-2015
1639,Revenue,CCHD,Bed Purchasing - South,Permanent Nursing,Regent House,1978.40, 17-Mar-2015
1640,Revenue,CCHD,Bed Purchasing - South,Permanent Nursing,Regent House,2008.44, 17-Mar-2015
1641,Revenue,CCHD,Bed Purchasing - South,Permanent Nursing,Regent House,1726.76, 17-Mar-2015
1642,Revenue,CCHD,Bed Purchasing - South,Permanent Nursing,Regent House,1894.92, 17-Mar-2015
1643,Revenue,CCHD,Bed Purchasing - Southmead Hospital,Permanent Nursing,Regent House,1995.04, 17-Mar-2015
1644,Revenue,CCHD,Bed Purchasing - South,Permanent Nursing,Regent House,6540.61, 17-Mar-2015
1645,Revenue,CCHD,Bed Purchasing - South,Permanent Nursing,Regent House,2057.72, 17-Mar-2015
1646,Revenue,CCHD,Bed Purchasing - North,Permanent Nursing,Regent House,2004.36, 17-Mar-2015
1647,Revenue,CCHD,Bed Purchasing - Southmead Hospital,Permanent Nursing,Regent House,1207.52, 17-Mar-2015
1648,Revenue,CCHD,Bed purchasing - Elderly S117 - South,Permanent Nursing,Regent House,2996.44, 17-Mar-2015
1649,Revenue,CCHD,Bed Purchasing - South,Permanent Nursing,Regent House,1675.68, 17-Mar-2015
1650,Revenue,CCHD,Bed Purchasing - North,Permanent Nursing,Regent House,2549.44, 17-Mar-2015
1651,Revenue,CCHD,Bed Purchasing - Southmead Hospital,Permanent Nursing,Regent House,1406.44, 17-Mar-2015
1652,Revenue,CCHD,Bed Purchasing - South,Permanent Nursing,Regent House,1668.12, 17-Mar-2015
1653,Revenue,CCHD,Bed Purchasing - North,Permanent Nursing,Regent House,2500.64, 17-Mar-2015
1654,Revenue,CCHD,Bed Purchasing - South,Permanent Nursing,Regent House,1197.60, 17-Mar-2015
1655,Revenue,CCHD,Bed Purchasing - South,Permanent Nursing,Regent House,1280.24, 17-Mar-2015
1656,Revenue,CCHD,Bed Purchasing - South,Permanent Nursing,Regent House,2380.64, 17-Mar-2015
1657,Revenue,CCHD,Bed Purchasing - South,Permanent Nursing,Regent House,1965.24, 17-Mar-2015
1658,Revenue,CCHD,Bed Purchasing - South,Permanent Residential,Ridgeway House,3502.08, 17-Mar-2015
1659,Revenue,CCHD,Bed Purchasing - South,Permanent Residential,Riverside House,3611.04, 17-Mar-2015
1660,Revenue,CCHD,Bed Purchasing - Southmead Hospital,Permanent Nursing,Riversway Nursing Home,892.60, 17-Mar-2015
